Workbook

Sheet Datos (hidden)
B9: ANO | D9: MESES | F9: COD_RED | G9: DESC_RED | H9: RED | J9: COD_RED | K9: COD_MIC | L9: DESC_MICRO | M9: MICROREDES | O9: COD_ESTAB | P9: DESC_ESTAB | Q9: COD_RED | R9: COD_MIC | S9: COD_PROV | T9: COD_DIST | U9: REDMIC | V9: CONCATENAR | X9: COD_PROV | Y9: DESC_PROV | Z9: CONCATENAR | AB9: COD_PROV | AC9: COD_DIST | AD9: DESC_DIST | AE9: PROVDIST | AF9: CONCATENAR | AH9: UE
B10: 2024 | D10: 01-Enero | F10: 01 | G10: CUSCO SUR | H10: =CONCATENATE(F10," - ",G10) -> 01 - CUSCO SUR | J10: 00 | K10: 00 | L10: NO PERTENECE A NINGUNA MICRORED | M10: =CONCATENATE(J10,K10," - ",L10) -> 0000 - NO PERTENECE A NINGUNA MICRORED | O10: 000000000 | P10: (All) | Q10: 07 | R10: 00 | U10: =CONCATENATE(Q10,R10) -> 0700 | V10: =CONCATENATE(O10," - ",P10) -> 000000000 - (All) | X10: 00 | Y10: (All) | Z10: =CONCATENATE(X10," - ",Y10) -> 00 - (All) | AB10: 01 | AC10: 00 | AD10: (All) | AE10: =CONCATENATE(AB10,AC10) -> 0100 | AF10: =CONCATENATE(AB10,AC10," - ",AD10) -> 0100 - (All) | AH10: COD_RED | AI10: DESC_RED | AJ10: CONCATENAR
D11: 02-Febrero | F11: 02 | G11: CUSCO NORTE | H11: 02 - CUSCO NORTE | J11: 00 | K11: 99 | L11: (All) | M11: 0099 - (All) | O11: 000002289 | P11: HOSPITAL REGIONAL CUSCO | Q11: 07 | R11: 00 | S11: 01 | T11: 01 | U11: =CONCATENATE(Q11,R11) -> 0700 | V11: =CONCATENATE(O11," - ",P11) -> 000002289 - HOSPITAL REGIONAL CUSCO | X11: 01 | Y11: CUSCO | Z11: 01 - CUSCO | AB11: 01 | AC11: 01 | AD11: CUSCO | AE11: 0101 | AF11: 0101 - CUSCO | AH11: 1129 | AI11: UE - SALUD CANAS - CANCHIS - ESPINAR | AJ11: =CONCATENATE(AH11," - ",AI11) -> 1129 - UE - SALUD CANAS - CANCHIS - ESPINAR
D12: 03-Marzo | F12: 03 | G12: LA CONVENCION | H12: 03 - LA CONVENCION | J12: 01 | K12: 00 | L12: HOSPITAL | M12: 0100 - HOSPITAL | O12: 000002305 | P12: HOSPITAL ANTONIO LORENA | Q12: 07 | R12: 00 | S12: 01 | T12: 06 | U12: =CONCATENATE(Q12,R12) -> 0700 | V12: 000002305 - HOSPITAL ANTONIO LORENA | X12: 02 | Y12: ACOMAYO | Z12: 02 - ACOMAYO | AB12: 01 | AC12: 02 | AD12: CCORCA | AE12: 0102 | AF12: 0102 - CCORCA | AH12: 1130 | AI12: UE - HOSPITAL REGIONAL CUSCO | AJ12: 1130 - UE - HOSPITAL REGIONAL CUSCO
D13: 04-Abril | F13: 04 | G13: CANAS-CANCHIS-ESPINAR | H13: 04 - CANAS-CANCHIS-ESPINAR | J13: 01 | K13: 03 | L13: PARURO | M13: 0103 - PARURO | O13: 999999999 | P13: (All) | Q13: 07 | R13: 99 | U13: =CONCATENATE(Q13,R13) -> 0799 | V13: 999999999 - (All) | X13: 03 | Y13: ANTA | Z13: 03 - ANTA | AB13: 01 | AC13: 03 | AD13: POROY | AE13: 0103 | AF13: 0103 - POROY | AH13: 1169 | AI13: UE - HOSPITAL ANTONIO LORENA | AJ13: 1169 - UE - HOSPITAL ANTONIO LORENA
D14: 05-Mayo | F14: 05 | G14: KIMBIRI PICHARI | H14: 05 - KIMBIRI PICHARI | J14: 01 | K14: 06 | L14: PAUCARTAMBO | M14: 0106 - PAUCARTAMBO | O14: 000025210 | P14: TUPAC AMARU | Q14: 01 | R14: 00 | S14: 01 | T14: 05 | U14: 0100 | V14: 000025210 - TUPAC AMARU | X14: 04 | Y14: CALCA | Z14: 04 - CALCA | AB14: 01 | AC14: 04 | AD14: SAN JERONIMO | AE14: 0104 | AF14: 0104 - SAN JERONIMO | AH14: 1170 | AI14: UE - SALUD LA CONVENCION | AJ14: 1170 - UE - SALUD LA CONVENCION
D15: 06-Junio | F15: 06 | G15: CHUMBIVILCAS | H15: 06 - CHUMBIVILCAS | J15: 01 | K15: 12 | L15: URCOS | M15: 0112 - URCOS | O15: 000000000 | P15: (All) | Q15: 01 | R15: 16 | U15: =CONCATENATE(Q15,R15) -> 0116 | V15: =CONCATENATE(O15," - ",P15) -> 000000000 - (All) | X15: 05 | Y15: CANAS | Z15: 05 - CANAS | AB15: 01 | AC15: 05 | AD15: SAN SEBASTIAN | AE15: 0105 | AF15: 0105 - SAN SEBASTIAN | AH15: 1322 | AI15: UE - SALUD CUSCO SUR | AJ15: 1322 - UE - SALUD CUSCO SUR
D16: 07-Julio | F16: 07 | G16: HOSPITALES III | H16: 07 - HOSPITALES III | J16: 01 | K16: 13 | L16: ACOMAYO | M16: 0113 - ACOMAYO | O16: 000002300 | P16: SAN JERONIMO | Q16: 01 | R16: 16 | S16: 01 | T16: 04 | U16: 0116 | V16: 000002300 - SAN JERONIMO | X16: 06 | Y16: CANCHIS | Z16: 06 - CANCHIS | AB16: 01 | AC16: 06 | AD16: SANTIAGO | AE16: 0106 | AF16: 0106 - SANTIAGO | AH16: 1347 | AI16: UE - SALUD KIMBIRI PICHARI | AJ16: 1347 - UE - SALUD KIMBIRI PICHARI
D17: 08-Agosto | F17: 99 | G17: (All) | H17: 99 - (All) | J17: 01 | K17: 15 | L17: OCONGATE | M17: 0115 - OCONGATE | O17: 000002301 | P17: SAN SEBASTIAN | Q17: 01 | R17: 16 | S17: 01 | T17: 05 | U17: 0116 | V17: 000002301 - SAN SEBASTIAN | X17: 07 | Y17: CHUMBIVILCAS | Z17: 07 - CHUMBIVILCAS | AB17: 01 | AC17: 07 | AD17: SAYLLA | AE17: 0107 | AF17: 0107 - SAYLLA | AH17: 1348 | AI17: UE - SALUD CUSCO NORTE | AJ17: 1348 - UE - SALUD CUSCO NORTE
D18: 09-Setiembre | J18: 01 | K18: 16 | L18: CUSCO | M18: 0116 - CUSCO | O18: 000002303 | P18: SANTA ROSA | Q18: 01 | R18: 16 | S18: 01 | T18: 05 | U18: 0116 | V18: 000002303 - SANTA ROSA | X18: 08 | Y18: ESPINAR | Z18: 08 - ESPINAR | AB18: 01 | AC18: 08 | AD18: WANCHAQ | AE18: 0108 | AF18: 0108 - WANCHAQ | AH18: 1547 | AI18: UE - HOSPITAL DE ESPINAR | AJ18: 1547 - UE - HOSPITAL DE ESPINAR
D19: 10-Octubre | J19: 01 | K19: 99 | L19: (All) | M19: 0199 - (All) | O19: 000002314 | P19: SAYLLA | Q19: 01 | R19: 16 | S19: 01 | T19: 07 | U19: 0116 | V19: 000002314 - SAYLLA | X19: 09 | Y19: LA CONVENCION | Z19: 09 - LA CONVENCION | AB19: 02 | AC19: 00 | AD19: (All) | AE19: 0200 | AF19: 0200 - (All) | AH19: 1625 | AI19: UE - HOSPITAL SICUANI | AJ19: 1625 - UE - HOSPITAL SICUANI
D20: 11-Noviembre | J20: 02 | K20: 01 | L20: BELEMPAMPA | M20: 0201 - BELEMPAMPA | O20: 000002323 | P20: RONDOCAN | Q20: 01 | R20: 16 | S20: 02 | T20: 06 | U20: 0116 | V20: 000002323 - RONDOCAN | X20: 10 | Y20: PARURO | Z20: 10 - PARURO | AB20: 02 | AC20: 01 | AD20: ACOMAYO | AE20: 0201 | AF20: 0201 - ACOMAYO | AH20: 1626 | AI20: UE - HOSPITAL QUILLABAMBA | AJ20: 1626 - UE - HOSPITAL QUILLABAMBA
D21: 12-Diciembre | J21: 02 | K21: 02 | L21: WANCHAQ | M21: 0202 - WANCHAQ | O21: 000007699 | P21: CONCHACALLE | Q21: 01 | R21: 16 | S21: 01 | T21: 04 | U21: 0116 | V21: 000007699 - CONCHACALLE | X21: 11 | Y21: PAUCARTAMBO | Z21: 11 - PAUCARTAMBO | AB21: 02 | AC21: 02 | AD21: ACOPIA | AE21: 0202 | AF21: 0202 - ACOPIA | AH21: 1666 | AI21: UE - SALUD CHUMBIVILCAS | AJ21: 1666 - UE - SALUD CHUMBIVILCAS
J22: 02 | K22: 03 | L22: ANTA | M22: 0203 - ANTA | O22: 000010065 | P22: ESSALUD-SAN SEBASTIAN | Q22: 01 | R22: 16 | S22: 01 | T22: 05 | U22: 0116 | V22: 000010065 - ESSALUD-SAN SEBASTIAN | X22: 12 | Y22: QUISPICANCHI | Z22: 12 - QUISPICANCHI | AB22: 02 | AC22: 03 | AD22: ACOS | AE22: 0203 | AF22: 0203 - ACOS | AH22: 7777 | AI22: (All) | AJ22: 7777 - (All)
J23: 02 | K23: 04 | L23: LIMATAMBO | M23: 0204 - LIMATAMBO | O23: 000011743 | P23: SANIDAD-SANTA ROSA PNP | Q23: 01 | R23: 16 | S23: 01 | T23: 05 | U23: 0116 | V23: 000011743 - SANIDAD-SANTA ROSA PNP | X23: 13 | Y23: URUBAMBA | Z23: 13 - URUBAMBA | AB23: 02 | AC23: 04 | AD23: MOSOC LLACTA | AE23: 0204 | AF23: 0204 - MOSOC LLACTA
J24: 02 | K24: 05 | L24: PISAC | M24: 0205 - PISAC | O24: 000026181 | P24: MENTAL SAN SEBASTIAN | Q24: 01 | R24: 16 | S24: 01 | T24: 05 | U24: 0116 | V24: 000026181 - MENTAL SAN SEBASTIAN | AB24: 02 | AC24: 05 | AD24: POMACANCHI | AE24: 0205 | AF24: 0205 - POMACANCHI
J25: 02 | K25: 06 | L25: CALCA | M25: 0206 - CALCA | O25: 000030727 | P25: PATRÓN SAN SEBASTIAN | Q25: 01 | R25: 16 | S25: 01 | T25: 04 | U25: =CONCATENATE(Q25,R25) -> 0116 | V25: 000030727 - PATRÓN SAN SEBASTIAN | AB25: 02 | AC25: 06 | AD25: RONDOCAN | AE25: 0206 | AF25: 0206 - RONDOCAN
J26: 02 | K26: 07 | L26: URUBAMBA | M26: 0207 - URUBAMBA | O26: 000000000 | P26: (All) | Q26: 01 | R26: 03 | U26: =CONCATENATE(Q26,R26) -> 0103 | V26: 000000000 - (All) | AB26: 02 | AC26: 07 | AD26: SANGARARA | AE26: 0207 | AF26: 0207 - SANGARARA
J27: 02 | K27: 08 | L27: YANATILE | M27: 0208 - YANATILE | O27: 000002499 | P27: PARURO | Q27: 01 | R27: 03 | S27: 10 | T27: 01 | U27: 0103 | V27: 000002499 - PARURO | AB27: 03 | AC27: 00 | AD27: (All) | AE27: 0300 | AF27: 0300 - (All)
J28: 02 | K28: 09 | L28: SIETE CUARTONES | M28: 0209 - SIETE CUARTONES | O28: 000002500 | P28: ACCHA | Q28: 01 | R28: 03 | S28: 10 | T28: 02 | U28: 0103 | V28: 000002500 - ACCHA | AB28: 03 | AC28: 01 | AD28: ANTA | AE28: 0301 | AF28: 0301 - ANTA
J29: 02 | K29: 99 | L29: (All) | M29: 0299 - (All) | O29: 000002501 | P29: CCAPI | Q29: 01 | R29: 03 | S29: 10 | T29: 03 | U29: 0103 | V29: 000002501 - CCAPI | AB29: 03 | AC29: 02 | AD29: ANCAHUASI | AE29: 0302 | AF29: 0302 - ANCAHUASI
J30: 03 | K30: 00 | L30: HOSPITAL | M30: 0300 - HOSPITAL | O30: 000002502 | P30: CCOYABAMBA | Q30: 01 | R30: 03 | S30: 10 | T30: 03 | U30: 0103 | V30: 000002502 - CCOYABAMBA | AB30: 03 | AC30: 03 | AD30: CACHIMAYO | AE30: 0303 | AF30: 0303 - CACHIMAYO
J31: 03 | K31: 01 | L31: SANTA ANA | M31: 0301 - SANTA ANA | O31: 000002503 | P31: COLCHA | Q31: 01 | R31: 03 | S31: 10 | T31: 04 | U31: 0103 | V31: 000002503 - COLCHA | AB31: 03 | AC31: 04 | AD31: CHINCHAYPUJIO | AE31: 0304 | AF31: 0304 - CHINCHAYPUJIO
J32: 03 | K32: 02 | L32: MARANURA | M32: 0302 - MARANURA | O32: 000002504 | P32: HUANOQUITE | Q32: 01 | R32: 03 | S32: 10 | T32: 05 | U32: 0103 | V32: 000002504 - HUANOQUITE | AB32: 03 | AC32: 05 | AD32: HUAROCONDO | AE32: 0305 | AF32: 0305 - HUAROCONDO
J33: 03 | K33: 03 | L33: QUELLOUNO | M33: 0303 - QUELLOUNO | O33: 000002505 | P33: OMACHA | Q33: 01 | R33: 03 | S33: 10 | T33: 06 | U33: 0103 | V33: 000002505 - OMACHA | AB33: 03 | AC33: 06 | AD33: LIMATAMBO | AE33: 0306 | AF33: 0306 - LIMATAMBO
J34: 03 | K34: 04 | L34: KITENI | M34: 0304 - KITENI | O34: 000002506 | P34: ANTAPALLPA | Q34: 01 | R34: 03 | S34: 10 | T34: 06 | U34: 0103 | V34: 000002506 - ANTAPALLPA | AB34: 03 | AC34: 07 | AD34: MOLLEPATA | AE34: 0307 | AF34: 0307 - MOLLEPATA
J35: 03 | K35: 05 | L35: KAMISEA | M35: 0305 - KAMISEA | O35: 000002507 | P35: PACCARECTAMBO | Q35: 01 | R35: 03 | S35: 10 | T35: 07 | U35: 0103 | V35: 000002507 - PACCARECTAMBO | AB35: 03 | AC35: 08 | AD35: PUCYURA | AE35: 0308 | AF35: 0308 - PUCYURA
J36: 03 | K36: 06 | L36: PUCYURA | M36: 0306 - PUCYURA | O36: 000002509 | P36: YAURISQUE | Q36: 01 | R36: 03 | S36: 10 | T36: 09 | U36: 0103 | V36: 000002509 - YAURISQUE | AB36: 03 | AC36: 09 | AD36: ZURITE | AE36: 0309 | AF36: 0309 - ZURITE
J37: 03 | K37: 99 | L37: (All) | M37: 0399 - (All) | O37: 000006978 | P37: CCOCHIRIHUAY | Q37: 01 | R37: 03 | S37: 10 | T37: 04 | U37: 0103 | V37: 000006978 - CCOCHIRIHUAY | AB37: 04 | AC37: 00 | AD37: (All) | AE37: 0400 | AF37: 0400 - (All)
J38: 04 | K38: 00 | L38: HOSPITAL | M38: 0400 - HOSPITAL | O38: 000007147 | P38: HUASQUILLAY | Q38: 01 | R38: 03 | S38: 10 | T38: 06 | U38: 0103 | V38: 000007147 - HUASQUILLAY | AB38: 04 | AC38: 01 | AD38: CALCA | AE38: 0401 | AF38: 0401 - CALCA
J39: 04 | K39: 01 | L39: YANAOCA | M39: 0401 - YANAOCA | O39: 000012924 | P39: SAHUA SAHUA | Q39: 01 | R39: 03 | S39: 10 | T39: 06 | U39: 0103 | V39: 000012924 - SAHUA SAHUA | AB39: 04 | AC39: 02 | AD39: COYA | AE39: 0402 | AF39: 0402 - COYA
J40: 04 | K40: 02 | L40: EL DESCANSO | M40: 0402 - EL DESCANSO | O40: 000000000 | P40: (All) | Q40: 01 | R40: 06 | U40: 0106 | V40: 000000000 - (All) | AB40: 04 | AC40: 03 | AD40: LAMAY | AE40: 0403 | AF40: 0403 - LAMAY
J41: 04 | K41: 03 | L41: COMBAPATA | M41: 0403 - COMBAPATA | O41: 000002510 | P41: PAUCARTAMBO | Q41: 01 | R41: 06 | S41: 11 | T41: 01 | U41: 0106 | V41: 000002510 - PAUCARTAMBO | AB41: 04 | AC41: 04 | AD41: LARES | AE41: 0404 | AF41: 0404 - LARES
J42: 04 | K42: 04 | L42: TECHO OBRERO | M42: 0404 - TECHO OBRERO | O42: 000002511 | P42: MOLLOMARCA | Q42: 01 | R42: 06 | S42: 11 | T42: 01 | U42: 0106 | V42: 000002511 - MOLLOMARCA | AB42: 04 | AC42: 05 | AD42: PISAC | AE42: =CONCATENATE(AB42,AC42) -> 0405 | AF42: =CONCATENATE(AB42,AC42," - ",AD42) -> 0405 - PISAC
J43: 04 | K43: 05 | L43: PAMPAPHALLA | M43: 0405 - PAMPAPHALLA | O43: 000002512 | P43: CAICAY | Q43: 01 | R43: 06 | S43: 11 | T43: 02 | U43: 0106 | V43: 000002512 - CAICAY | AB43: 04 | AC43: 06 | AD43: SAN SALVADOR | AE43: 0406 | AF43: 0406 - SAN SALVADOR
J44: 04 | K44: 06 | L44: YAURI | M44: 0406 - YAURI | O44: 000002513 | P44: HUASAC | Q44: 01 | R44: 06 | S44: 11 | T44: 02 | U44: 0106 | V44: 000002513 - HUASAC | AB44: 04 | AC44: 07 | AD44: TARAY | AE44: 0407 | AF44: 0407 - TARAY
J45: 04 | K45: 99 | L45: (All) | M45: 0499 - (All) | O45: 000002514 | P45: CHALLABAMBA | Q45: 01 | R45: 06 | S45: 11 | T45: 03 | U45: 0106 | V45: 000002514 - CHALLABAMBA | AB45: 04 | AC45: 08 | AD45: YANATILE | AE45: 0408 | AF45: 0408 - YANATILE
J46: 05 | K46: 00 | L46: HOSPITAL | M46: 0500 - HOSPITAL | O46: 000002516 | P46: COLQUEPATA | Q46: 01 | R46: 06 | S46: 11 | T46: 04 | U46: 0106 | V46: 000002516 - COLQUEPATA | AB46: 05 | AC46: 00 | AD46: (All) | AE46: 0500 | AF46: 0500 - (All)
J47: 05 | K47: 01 | L47: KIMBIRI | M47: 0501 - KIMBIRI | O47: 000002517 | P47: PICHIHUA COLQUEPATA | Q47: 01 | R47: 06 | S47: 11 | T47: 04 | U47: 0106 | V47: 000002517 - PICHIHUA COLQUEPATA | AB47: 05 | AC47: 01 | AD47: YANAOCA | AE47: 0501 | AF47: 0501 - YANAOCA
J48: 05 | K48: 02 | L48: PICHARI | M48: 0502 - PICHARI | O48: 000002518 | P48: VIZCOCHONI | Q48: 01 | R48: 06 | S48: 11 | T48: 04 | U48: 0106 | V48: 000002518 - VIZCOCHONI | AB48: 05 | AC48: 02 | AD48: CHECCA | AE48: 0502 | AF48: 0502 - CHECCA
J49: 05 | K49: 99 | L49: (All) | M49: 0599 - (All) | O49: 000002519 | P49: AYRE | Q49: 01 | R49: 06 | S49: 11 | T49: 04 | U49: 0106 | V49: 000002519 - AYRE | AB49: 05 | AC49: 03 | AD49: KUNTURKANKI | AE49: 0503 | AF49: 0503 - KUNTURKANKI
J50: 06 | K50: 00 | L50: HOSPITAL | M50: 0600 - HOSPITAL | O50: 000002520 | P50: HUANCARANI | Q50: 01 | R50: 06 | S50: 11 | T50: 05 | U50: 0106 | V50: 000002520 - HUANCARANI | AB50: 05 | AC50: 04 | AD50: LANGUI | AE50: 0504 | AF50: 0504 - LANGUI
J51: 06 | K51: 09 | L51: SANTO TOMAS | M51: 0609 - SANTO TOMAS | O51: 000002521 | P51: PILCOPATA | Q51: 01 | R51: 06 | S51: 11 | T51: 06 | U51: 0106 | V51: 000002521 - PILCOPATA | AB51: 05 | AC51: 05 | AD51: LAYO | AE51: 0505 | AF51: 0505 - LAYO
J52: 06 | K52: 01 | L52: LIVITACA | M52: 0601 - LIVITACA | O52: 000002522 | P52: PATRIA | Q52: 01 | R52: 06 | S52: 11 | T52: 06 | U52: 0106 | V52: 000002522 - PATRIA | AB52: 05 | AC52: 06 | AD52: PAMPAMARCA | AE52: 0506 | AF52: 0506 - PAMPAMARCA
J53: 06 | K53: 99 | L53: (All) | M53: 0699 - (All) | O53: 000006979 | P53: TOCRA | Q53: 01 | R53: 06 | S53: 11 | T53: 04 | U53: 0106 | V53: 000006979 - TOCRA | AB53: 05 | AC53: 07 | AD53: QUEHUE | AE53: 0507 | AF53: 0507 - QUEHUE
J54: 07 | K54: 00 | L54: HOSPITAL | M54: 0700 - HOSPITAL | O54: 000010077 | P54: ESSALUD-PAUCARTAMBO | Q54: 01 | R54: 06 | S54: 11 | T54: 01 | U54: 0106 | V54: 000010077 - ESSALUD-PAUCARTAMBO | AB54: 05 | AC54: 08 | AD54: TUPAC AMARU | AE54: 0508 | AF54: 0508 - TUPAC AMARU
J55: 99 | K55: 99 | L55: (All) | M55: 9999 - (All) | O55: 000033777 | P55: MENTAL COMUNITARIO VIRGEN DEL ROSARIO | Q55: 01 | R55: 06 | S55: 11 | T55: 01 | U55: 0106 | V55: 000033777 - MENTAL COMUNITARIO VIRGEN DEL ROSARIO | AB55: 06 | AC55: 00 | AD55: (All) | AE55: 0600 | AF55: 0600 - (All)
O56: 000000000 | P56: (All) | Q56: 01 | R56: 12 | U56: 0112 | V56: 000000000 - (All) | AB56: 06 | AC56: 01 | AD56: SICUANI | AE56: 0601 | AF56: 0601 - SICUANI
O57: 000002523 | P57: URCOS | Q57: 01 | R57: 12 | S57: 12 | T57: 01 | U57: 0112 | V57: 000002523 - URCOS | AB57: 06 | AC57: 02 | AD57: CHECACUPE | AE57: 0602 | AF57: 0602 - CHECACUPE
O58: 000002525 | P58: ANDAHUAYLILLAS | Q58: 01 | R58: 12 | S58: 12 | T58: 02 | U58: 0112 | V58: 000002525 - ANDAHUAYLILLAS | AB58: 06 | AC58: 03 | AD58: COMBAPATA | AE58: 0603 | AF58: 0603 - COMBAPATA
O59: 000002530 | P59: CUSIPATA | Q59: 01 | R59: 12 | S59: 12 | T59: 06 | U59: 0112 | V59: 000002530 - CUSIPATA | AB59: 06 | AC59: 04 | AD59: MARANGANI | AE59: 0604 | AF59: 0604 - MARANGANI
O60: 000002532 | P60: HUARO | Q60: 01 | R60: 12 | S60: 12 | T60: 07 | U60: 0112 | V60: 000002532 - HUARO | AB60: 06 | AC60: 05 | AD60: PITUMARCA | AE60: 0605 | AF60: 0605 - PITUMARCA
O61: 000002533 | P61: URPAY | Q61: 01 | R61: 12 | S61: 12 | T61: 07 | U61: 0112 | V61: 000002533 - URPAY | AB61: 06 | AC61: 06 | AD61: SAN PABLO | AE61: 0606 | AF61: 0606 - SAN PABLO
O62: 000002534 | P62: LUCRE | Q62: 01 | R62: 12 | S62: 12 | T62: 08 | U62: 0112 | V62: 000002534 - LUCRE | AB62: 06 | AC62: 07 | AD62: SAN PEDRO | AE62: 0607 | AF62: 0607 - SAN PEDRO
O63: 000002537 | P63: OROPESA | Q63: 01 | R63: 12 | S63: 12 | T63: 11 | U63: 0112 | V63: 000002537 - OROPESA | AB63: 06 | AC63: 08 | AD63: TINTA | AE63: 0608 | AF63: 0608 - TINTA
O64: 000002538 | P64: QUIQUIJANA | Q64: 01 | R64: 12 | S64: 12 | T64: 12 | U64: 0112 | V64: 000002538 - QUIQUIJANA | AB64: 07 | AC64: 00 | AD64: (All) | AE64: 0700 | AF64: 0700 - (All)
O65: 000002539 | P65: CCOLCA | Q65: 01 | R65: 12 | S65: 12 | T65: 12 | U65: 0112 | V65: 000002539 - CCOLCA | AB65: 07 | AC65: 01 | AD65: SANTO TOMAS | AE65: 0701 | AF65: 0701 - SANTO TOMAS
O66: 000006980 | P66: CHILLIHUANI | Q66: 01 | R66: 12 | S66: 12 | T66: 06 | U66: 0112 | V66: 000006980 - CHILLIHUANI | AB66: 07 | AC66: 02 | AD66: CAPACMARCA | AE66: 0702 | AF66: 0702 - CAPACMARCA
O67: 000008911 | P67: HUARA HUARA | Q67: 01 | R67: 12 | S67: 12 | T67: 05 | U67: 0112 | V67: 000008911 - HUARA HUARA | AB67: 07 | AC67: 03 | AD67: CHAMACA | AE67: 0703 | AF67: 0703 - CHAMACA
O68: 000011747 | P68: SANIDAD-PUCUTO PNP | Q68: 01 | R68: 12 | S68: 12 | T68: 07 | U68: 0112 | V68: 000011747 - SANIDAD-PUCUTO PNP | AB68: 07 | AC68: 04 | AD68: COLQUEMARCA | AE68: 0704 | AF68: 0704 - COLQUEMARCA
O69: 000026385 | P69: ESSALUD-URCOS | Q69: 01 | R69: 12 | S69: 12 | T69: 01 | U69: 0112 | V69: 000026385 - ESSALUD-URCOS | AB69: 07 | AC69: 05 | AD69: LIVITACA | AE69: 0705 | AF69: 0705 - LIVITACA
O70: 000030708 | P70: MENTAL COMUNITARIO HUARO | Q70: 01 | R70: 12 | S70: 12 | T70: 07 | U70: 0112 | V70: 000030708 - MENTAL COMUNITARIO HUARO | AB70: 07 | AC70: 06 | AD70: LLUSCO | AE70: 0706 | AF70: 0706 - LLUSCO
O71: 000000000 | P71: (All) | Q71: 01 | R71: 13 | U71: 0113 | V71: 000000000 - (All) | AB71: 07 | AC71: 07 | AD71: QUIÑOTA | AE71: 0707 | AF71: 0707 - QUIÑOTA
O72: 000002317 | P72: ACOMAYO | Q72: 01 | R72: 13 | S72: 02 | T72: 01 | U72: 0113 | V72: 000002317 - ACOMAYO | AB72: 07 | AC72: 08 | AD72: VELILLE | AE72: 0708 | AF72: 0708 - VELILLE
O73: 000002318 | P73: ACOPIA | Q73: 01 | R73: 13 | S73: 02 | T73: 02 | U73: 0113 | V73: 000002318 - ACOPIA | AB73: 08 | AC73: 00 | AD73: (All) | AE73: 0800 | AF73: 0800 - (All)
O74: 000002319 | P74: ACOS | Q74: 01 | R74: 13 | S74: 02 | T74: 03 | U74: 0113 | V74: 000002319 - ACOS | AB74: 08 | AC74: 01 | AD74: ESPINAR | AE74: =CONCATENATE(AB74,AC74) -> 0801 | AF74: =CONCATENATE(AB74,AC74," - ",AD74) -> 0801 - ESPINAR
O75: 000002321 | P75: CENTRO DE SALUD POMACANCHI | Q75: 01 | R75: 13 | S75: 02 | T75: 05 | U75: 0113 | V75: =CONCATENATE(O75," - ",P75) -> 000002321 - CENTRO DE SALUD POMACANCHI | AB75: 08 | AC75: 02 | AD75: CONDOROMA | AE75: 0802 | AF75: 0802 - CONDOROMA
O76: 000002322 | P76: SAN JUAN DE POMACANCHI | Q76: 01 | R76: 13 | S76: 02 | T76: 05 | U76: 0113 | V76: 000002322 - SAN JUAN DE POMACANCHI | AB76: 08 | AC76: 03 | AD76: COPORAQUE | AE76: 0803 | AF76: 0803 - COPORAQUE
O77: 000002324 | P77: PUESTO DE SALUD SANGARARA | Q77: 01 | R77: 13 | S77: 02 | T77: 07 | U77: 0113 | V77: 000002324 - PUESTO DE SALUD SANGARARA | AB77: 08 | AC77: 04 | AD77: OCORURO | AE77: 0804 | AF77: 0804 - OCORURO
O78: 000002325 | P78: PUESTO DE SALUD MARCACONGA | Q78: 01 | R78: 13 | S78: 02 | T78: 07 | U78: 0113 | V78: 000002325 - PUESTO DE SALUD MARCACONGA | AB78: 08 | AC78: 05 | AD78: PALLPATA | AE78: 0805 | AF78: 0805 - PALLPATA
O79: 000002508 | P79: PILLPINTO | Q79: 01 | R79: 13 | S79: 10 | T79: 08 | U79: 0113 | V79: 000002508 - PILLPINTO | AB79: 08 | AC79: 06 | AD79: PICHIGUA | AE79: 0806 | AF79: 0806 - PICHIGUA
O80: 000010076 | P80: ESSALUD-ACOMAYO | Q80: 01 | R80: 13 | S80: 02 | T80: 01 | U80: 0113 | V80: 000010076 - ESSALUD-ACOMAYO | AB80: 08 | AC80: 07 | AD80: SUYCKUTAMBO | AE80: 0807 | AF80: 0807 - SUYCKUTAMBO
O81: 000012926 | P81: SANTA LUCIA | Q81: 01 | R81: 13 | S81: 02 | T81: 05 | U81: 0113 | V81: 000012926 - SANTA LUCIA | AB81: 08 | AC81: 08 | AD81: ALTO PICHIGUA | AE81: 0808 | AF81: 0808 - ALTO PICHIGUA
O82: 000000000 | P82: (All) | Q82: 01 | R82: 15 | U82: 0115 | V82: 000000000 - (All) | AB82: 09 | AC82: 00 | AD82: (All) | AE82: 0900 | AF82: 0900 - (All)
O83: 000002524 | P83: PAMPACAMARA | Q83: 01 | R83: 15 | S83: 12 | T83: 05 | U83: 0115 | V83: 000002524 - PAMPACAMARA | AB83: 09 | AC83: 01 | AD83: SANTA ANA | AE83: 0901 | AF83: 0901 - SANTA ANA
O84: 000002526 | P84: QUINCE MIL | Q84: 01 | R84: 15 | S84: 12 | T84: 03 | U84: 0115 | V84: 000002526 - QUINCE MIL | AB84: 09 | AC84: 02 | AD84: ECHARATE | AE84: 0902 | AF84: 0902 - ECHARATE
O85: 000002527 | P85: CCARHUAYO | Q85: 01 | R85: 15 | S85: 12 | T85: 04 | U85: 0115 | V85: 000002527 - CCARHUAYO | AB85: 09 | AC85: 03 | AD85: HUAYOPATA | AE85: 0903 | AF85: 0903 - HUAYOPATA
O86: 000002528 | P86: CCATCCA | Q86: 01 | R86: 15 | S86: 12 | T86: 05 | U86: 0115 | V86: 000002528 - CCATCCA | AB86: 09 | AC86: 04 | AD86: MARANURA | AE86: 0904 | AF86: 0904 - MARANURA
O87: 000002529 | P87: KCAURY | Q87: 01 | R87: 15 | S87: 12 | T87: 05 | U87: 0115 | V87: 000002529 - KCAURY | AB87: 09 | AC87: 05 | AD87: OCOBAMBA | AE87: 0905 | AF87: 0905 - OCOBAMBA
O88: 000002535 | P88: MARCAPATA | Q88: 01 | R88: 15 | S88: 12 | T88: 09 | U88: 0115 | V88: 000002535 - MARCAPATA | AB88: 09 | AC88: 06 | AD88: QUELLOUNO | AE88: 0906 | AF88: 0906 - QUELLOUNO
O89: 000002536 | P89: OCONGATE | Q89: 01 | R89: 15 | S89: 12 | T89: 10 | U89: 0115 | V89: 000002536 - OCONGATE | AB89: 09 | AC89: 07 | AD89: KIMBIRI | AE89: 0907 | AF89: 0907 - KIMBIRI
O90: 000006977 | P90: TINKI | Q90: 01 | R90: 15 | S90: 12 | T90: 10 | U90: =CONCATENATE(Q90,R90) -> 0115 | V90: 000006977 - TINKI | AB90: 09 | AC90: 08 | AD90: SANTA TERESA | AE90: 0908 | AF90: 0908 - SANTA TERESA
O91: 000007110 | P91: INCACANCHA | Q91: 01 | R91: 15 | S91: 12 | T91: 09 | U91: 0115 | V91: 000007110 - INCACANCHA | AB91: 09 | AC91: 09 | AD91: VILCABAMBA | AE91: 0909 | AF91: 0909 - VILCABAMBA
O92: 000012931 | P92: CHICHINA | Q92: 01 | R92: 15 | S92: 12 | T92: 05 | U92: 0115 | V92: 000012931 - CHICHINA | AB92: 09 | AC92: 10 | AD92: PICHARI | AE92: 0910 | AF92: 0910 - PICHARI
O93: 000016335 | P93: CCAPANA | Q93: 01 | R93: 15 | S93: 12 | T93: 05 | U93: 0115 | V93: 000016335 - CCAPANA | AB93: 09 | AC93: 11 | AD93: INKAWASI | AE93: 0911 | AF93: 0911 - INKAWASI
O94: 999999999 | P94: (All) | Q94: 01 | R94: 99 | U94: 0199 | V94: 999999999 - (All) | AB94: 09 | AC94: 12 | AD94: VILLA VIRGEN | AE94: 0912 | AF94: 0912 - VILLA VIRGEN
O95: 000000000 | P95: (All) | Q95: 02 | R95: 01 | U95: 0201 | V95: 000000000 - (All) | AB95: 09 | AC95: 13 | AD95: VILLA KINTIARINA | AE95: 0913 | AF95: 0913 - VILLA KINTIARINA
O96: 000002292 | P96: INDEPENDENCIA | Q96: 02 | R96: 01 | S96: 01 | T96: 01 | U96: 0201 | V96: 000002292 - INDEPENDENCIA | AB96: 09 | AC96: 14 | AD96: MEGANTONI | AE96: 0914 | AF96: 0914 - MEGANTONI
O97: 000002297 | P97: CCORCCA | Q97: 02 | R97: 01 | S97: 01 | T97: 02 | U97: 0201 | V97: 000002297 - CCORCCA | AB97: 09 | AC97: 15 | AD97: KUMPIRUSHIATO | AE97: 0915 | AF97: 0915 - KUMPIRUSHIATO
O98: 000002306 | P98: BELEMPAMPA | Q98: 02 | R98: 01 | S98: 01 | T98: 06 | U98: 0201 | V98: 000002306 - BELEMPAMPA | AB98: 09 | AC98: 16 | AD98: CIELO PUNCO | AE98: 0916 | AF98: 0916 - CIELO PUNCO
O99: 000002308 | P99: ZARZUELA ALTA | Q99: 02 | R99: 01 | S99: 01 | T99: 06 | U99: 0201 | V99: 000002308 - ZARZUELA ALTA | AB99: 09 | AC99: 17 | AD99: MANITEA | AE99: 0917 | AF99: 0917 - MANITEA
O100: 000002309 | P100: DIGNIDAD NACIONAL | Q100: 02 | R100: 01 | S100: 01 | T100: 06 | U100: 0201 | V100: 000002309 - DIGNIDAD NACIONAL | AB100: 09 | AC100: 18 | AD100: UNION ASHANINKA | AE100: 0918 | AF100: 0918 - UNION ASHANINKA
O101: 000002313 | P101: OCCOPATA | Q101: 02 | R101: 01 | S101: 01 | T101: 06 | U101: 0201 | V101: 000002313 - OCCOPATA | AB101: 10 | AC101: 00 | AD101: (All) | AE101: 1000 | AF101: 1000 - (All)
O102: 000010067 | P102: ESSALUD-SANTIAGO | Q102: 02 | R102: 01 | S102: 01 | T102: 06 | U102: 0201 | V102: 000010067 - ESSALUD-SANTIAGO | AB102: 10 | AC102: 01 | AD102: PARURO | AE102: 1001 | AF102: 1001 - PARURO
O103: 000010920 | P103: EJERCITO-QUINTA BRIGADA DE MONTAÑA | Q103: 02 | R103: 01 | S103: 01 | T103: 06 | U103: 0201 | V103: 000010920 - EJERCITO-QUINTA BRIGADA DE MONTAÑA | AB103: 10 | AC103: 02 | AD103: ACCHA | AE103: 1002 | AF103: 1002 - ACCHA
O104: 000026182 | P104: MENTAL SANTIAGO | Q104: 02 | R104: 01 | S104: 01 | T104: 06 | U104: 0201 | V104: 000026182 - MENTAL SANTIAGO | AB104: 10 | AC104: 03 | AD104: CCAPI | AE104: 1003 | AF104: 1003 - CCAPI
O105: 000000000 | P105: (All) | Q105: 02 | R105: 02 | U105: 0202 | V105: 000000000 - (All) | AB105: 10 | AC105: 04 | AD105: COLCHA | AE105: 1004 | AF105: 1004 - COLCHA
O106: 000002302 | P106: CCORAO | Q106: 02 | R106: 02 | S106: 01 | T106: 05 | U106: 0202 | V106: 000002302 - CCORAO | AB106: 10 | AC106: 05 | AD106: HUANOQUITE | AE106: =CONCATENATE(AB106,AC106) -> 1005 | AF106: =CONCATENATE(AB106,AC106," - ",AD106) -> 1005 - HUANOQUITE
O107: 000002307 | P107: MANCO CAPAC | Q107: 02 | R107: 02 | S107: 01 | T107: 06 | U107: 0202 | V107: 000002307 - MANCO CAPAC | AB107: 10 | AC107: 06 | AD107: OMACHA | AE107: 1006 | AF107: 1006 - OMACHA
O108: 000002310 | P108: CHOCCO | Q108: 02 | R108: 02 | S108: 01 | T108: 06 | U108: 0202 | V108: 000002310 - CHOCCO | AB108: 10 | AC108: 07 | AD108: PACCARITAMBO | AE108: 1007 | AF108: 1007 - PACCARITAMBO
O109: 000002315 | P109: WANCHAQ | Q109: 02 | R109: 02 | S109: 01 | T109: 08 | U109: 0202 | V109: 000002315 - WANCHAQ | AB109: 10 | AC109: 08 | AD109: PILLPINTO | AE109: 1008 | AF109: 1008 - PILLPINTO
O110: 000002316 | P110: TTIO | Q110: 02 | R110: 02 | S110: 01 | T110: 08 | U110: 0202 | V110: 000002316 - TTIO | AB110: 10 | AC110: 09 | AD110: YAURISQUE | AE110: 1009 | AF110: 1009 - YAURISQUE
O111: 000010041 | P111: ESSALUD-ADOLFO GUEVARA V. | Q111: 02 | R111: 02 | S111: 01 | T111: 08 | U111: 0202 | V111: 000010041 - ESSALUD-ADOLFO GUEVARA V. | AB111: 11 | AC111: 00 | AD111: (All) | AE111: 1100 | AF111: 1100 - (All)
O112: 000026183 | P112: ESSALUD-METROPOLITANO | Q112: 02 | R112: 02 | S112: 01 | T112: 08 | U112: 0202 | V112: 000026183 - ESSALUD-METROPOLITANO | AB112: 11 | AC112: 01 | AD112: PAUCARTAMBO | AE112: 1101 | AF112: 1101 - PAUCARTAMBO
O113: 000030730 | P113: PATRON SANTIAGO | Q113: 02 | R113: 02 | S113: 01 | T113: 08 | U113: 0202 | V113: 000030730 - PATRON SANTIAGO | AB113: 11 | AC113: 02 | AD113: CAICAY | AE113: 1102 | AF113: 1102 - CAICAY
O114: 000034419 | P114: MENTAL COMUNITARIO CUSCO | Q114: 02 | R114: 02 | S114: 01 | T114: 08 | U114: 0202 | V114: 000034419 - MENTAL COMUNITARIO CUSCO | AB114: 11 | AC114: 03 | AD114: CHALLABAMBA | AE114: 1103 | AF114: 1103 - CHALLABAMBA
O115: 000000000 | P115: (All) | Q115: 02 | R115: 03 | U115: 0203 | V115: 000000000 - (All) | AB115: 11 | AC115: 04 | AD115: COLQUEPATA | AE115: 1104 | AF115: 1104 - COLQUEPATA
O116: 000002326 | P116: ANTA | Q116: 02 | R116: 03 | S116: 03 | T116: 01 | U116: 0203 | V116: 000002326 - ANTA | AB116: 11 | AC116: 05 | AD116: HUANCARANI | AE116: 1105 | AF116: 1105 - HUANCARANI
O117: 000002327 | P117: CHACAN | Q117: 02 | R117: 03 | S117: 03 | T117: 01 | U117: 0203 | V117: 000002327 - CHACAN | AB117: 11 | AC117: 06 | AD117: KOSÑIPATA | AE117: 1106 | AF117: 1106 - KOSÑIPATA
O118: 000002328 | P118: COMPONE | Q118: 02 | R118: 03 | S118: 03 | T118: 01 | U118: 0203 | V118: 000002328 - COMPONE | AB118: 12 | AC118: 00 | AD118: (All) | AE118: 1200 | AF118: 1200 - (All)
O119: 000002329 | P119: CONCHACALLA | Q119: 02 | R119: 03 | S119: 03 | T119: 01 | U119: 0203 | V119: 000002329 - CONCHACALLA | AB119: 12 | AC119: 01 | AD119: URCOS | AE119: 1201 | AF119: 1201 - URCOS
O120: 000002330 | P120: ANCAHUASI | Q120: 02 | R120: 03 | S120: 03 | T120: 02 | U120: 0203 | V120: 000002330 - ANCAHUASI | AB120: 12 | AC120: 02 | AD120: ANDAHUAYLILLAS | AE120: 1202 | AF120: 1202 - ANDAHUAYLILLAS
O121: 000002331 | P121: CACHIMAYO | Q121: 02 | R121: 03 | S121: 03 | T121: 03 | U121: 0203 | V121: 000002331 - CACHIMAYO | AB121: 12 | AC121: 03 | AD121: CAMANTI | AE121: 1203 | AF121: 1203 - CAMANTI
O122: 000002332 | P122: CHINCHAYPUJIO | Q122: 02 | R122: 03 | S122: 03 | T122: 04 | U122: 0203 | V122: 000002332 - CHINCHAYPUJIO | AB122: 12 | AC122: 04 | AD122: CCARHUAYO | AE122: 1204 | AF122: 1204 - CCARHUAYO
O123: 000002333 | P123: HUAROCONDO | Q123: 02 | R123: 03 | S123: 03 | T123: 05 | U123: 0203 | V123: 000002333 - HUAROCONDO | AB123: 12 | AC123: 05 | AD123: CCATCA | AE123: 1205 | AF123: 1205 - CCATCA
O124: 000002334 | P124: HUAYLLACOCHA | Q124: 02 | R124: 03 | S124: 03 | T124: 05 | U124: 0203 | V124: 000002334 - HUAYLLACOCHA | AB124: 12 | AC124: 06 | AD124: CUSIPATA | AE124: 1206 | AF124: 1206 - CUSIPATA
O125: 000002339 | P125: PUCYURA ANTA | Q125: 02 | R125: 03 | S125: 03 | T125: 08 | U125: 0203 | V125: 000002339 - PUCYURA ANTA | AB125: 12 | AC125: 07 | AD125: HUARO | AE125: 1207 | AF125: 1207 - HUARO
O126: 000002340 | P126: ZURITE | Q126: 02 | R126: 03 | S126: 03 | T126: 09 | U126: 0203 | V126: 000002340 - ZURITE | AB126: 12 | AC126: 08 | AD126: LUCRE | AE126: 1208 | AF126: 1208 - LUCRE
O127: 000006972 | P127: PANTIPATA | Q127: 02 | R127: 03 | S127: 03 | T127: 04 | U127: 0203 | V127: 000006972 - PANTIPATA | AB127: 12 | AC127: 09 | AD127: MARCAPATA | AE127: 1209 | AF127: 1209 - MARCAPATA
O128: 000027790 | P128: MENTAL COMUNITARIO ANTA | Q128: 02 | R128: 03 | S128: 03 | T128: 01 | U128: 0203 | V128: 000027790 - MENTAL COMUNITARIO ANTA | AB128: 12 | AC128: 10 | AD128: OCONGATE | AE128: 1210 | AF128: 1210 - OCONGATE
O129: 000000000 | P129: (All) | Q129: 02 | R129: 04 | U129: 0204 | V129: 000000000 - (All) | AB129: 12 | AC129: 11 | AD129: OROPESA | AE129: 1211 | AF129: 1211 - OROPESA
O130: 000002336 | P130: LIMATAMBO | Q130: 02 | R130: 04 | S130: 03 | T130: 06 | U130: 0204 | V130: 000002336 - LIMATAMBO | AB130: 12 | AC130: 12 | AD130: QUIQUIJANA | AE130: 1212 | AF130: 1212 - QUIQUIJANA
O131: 000002337 | P131: PAMPACONGA | Q131: 02 | R131: 04 | S131: 03 | T131: 06 | U131: 0204 | V131: 000002337 - PAMPACONGA | AB131: 13 | AC131: 00 | AD131: (All) | AE131: 1300 | AF131: 1300 - (All)
O132: 000002338 | P132: MOLLEPATA | Q132: 02 | R132: 04 | S132: 03 | T132: 07 | U132: 0204 | V132: 000002338 - MOLLEPATA | AB132: 13 | AC132: 01 | AD132: URUBAMBA | AE132: 1301 | AF132: 1301 - URUBAMBA
O133: 000010761 | P133: URATARI | Q133: 02 | R133: 04 | S133: 03 | T133: 06 | U133: 0204 | V133: 000010761 - URATARI | AB133: 13 | AC133: 02 | AD133: CHINCHERO | AE133: 1302 | AF133: 1302 - CHINCHERO
O134: 000021061 | P134: HUAMANPATA | Q134: 02 | R134: 04 | S134: 03 | T134: 07 | U134: 0204 | V134: 000021061 - HUAMANPATA | AB134: 13 | AC134: 03 | AD134: HUAYLLABAMBA | AE134: 1303 | AF134: 1303 - HUAYLLABAMBA
O135: 000000000 | P135: (All) | Q135: 02 | R135: 05 | U135: 0205 | V135: 000000000 - (All) | AB135: 13 | AC135: 04 | AD135: MACHUPICCHU | AE135: 1304 | AF135: 1304 - MACHUPICCHU
O136: 000002343 | P136: COYA | Q136: 02 | R136: 05 | S136: 04 | T136: 02 | U136: 0205 | V136: 000002343 - COYA | AB136: 13 | AC136: 05 | AD136: MARAS | AE136: 1305 | AF136: 1305 - MARAS
O137: 000002344 | P137: LAMAY | Q137: 02 | R137: 05 | S137: 04 | T137: 03 | U137: 0205 | V137: 000002344 - LAMAY | AB137: 13 | AC137: 06 | AD137: OLLANTAYTAMBO | AE137: 1306 | AF137: 1306 - OLLANTAYTAMBO
O138: 000002348 | P138: PISAC | Q138: 02 | R138: 05 | S138: 04 | T138: 05 | U138: 0205 | V138: 000002348 - PISAC | AB138: 13 | AC138: 07 | AD138: YUCAY | AE138: 1307 | AF138: 1307 - YUCAY
O139: 000002349 | P139: CUYO CHICO | Q139: 02 | R139: 05 | S139: 04 | T139: 05 | U139: 0205 | V139: =CONCATENATE(O139," - ",P139) -> 000002349 - CUYO CHICO | AB139: 00 | AC139: 00 | AD139: (All) | AE139: 0000 | AF139: 0000 - (All)
O140: 000002350 | P140: CUYO GRANDE | Q140: 02 | R140: 05 | S140: 04 | T140: 05 | U140: 0205 | V140: 000002350 - CUYO GRANDE
O141: 000002351 | P141: QUELLO QUELLO | Q141: 02 | R141: 05 | S141: 04 | T141: 05 | U141: 0205 | V141: 000002351 - QUELLO QUELLO
O142: 000002352 | P142: SAN SALVADOR | Q142: 02 | R142: 05 | S142: 04 | T142: 06 | U142: 0205 | V142: 000002352 - SAN SALVADOR
O143: 000002353 | P143: TARAY | Q143: 02 | R143: 05 | S143: 04 | T143: 07 | U143: 0205 | V143: 000002353 - TARAY
O144: 000002354 | P144: HUANCALLE | Q144: 02 | R144: 05 | S144: 04 | T144: 07 | U144: 0205 | V144: 000002354 - HUANCALLE
O145: 000006970 | P145: TIRACANCHA | Q145: 02 | R145: 05 | S145: 04 | T145: 06 | U145: 0205 | V145: 000006970 - TIRACANCHA
O146: 000006975 | P146: SAYLLAFAYA | Q146: 02 | R146: 05 | S146: 04 | T146: 03 | U146: 0205 | V146: 000006975 - SAYLLAFAYA
O147: 000007145 | P147: HUAMA | Q147: 02 | R147: 05 | S147: 04 | T147: 03 | U147: 0205 | V147: 000007145 - HUAMA
O148: 000007146 | P148: POQUES | Q148: 02 | R148: 05 | S148: 04 | T148: 03 | U148: 0205 | V148: 000007146 - POQUES
O149: 000025368 | P149: HUARQUI | Q149: 02 | R149: 05 | S149: 04 | T149: 03 | U149: 0205 | V149: 000025368 - HUARQUI
O150: 000000000 | P150: (All) | Q150: 02 | R150: 06 | U150: 0206 | V150: 000000000 - (All)
O151: 000002341 | P151: CALCA | Q151: 02 | R151: 06 | S151: 04 | T151: 01 | U151: 0206 | V151: 000002341 - CALCA
O152: 000002342 | P152: AMPARAES | Q152: 02 | R152: 06 | S152: 04 | T152: 04 | U152: 0206 | V152: 000002342 - AMPARAES
O153: 000002345 | P153: CCACHIN | Q153: 02 | R153: 06 | S153: 04 | T153: 04 | U153: 0206 | V153: 000002345 - CCACHIN
O154: 000002346 | P154: CHOQUECANCHA | Q154: 02 | R154: 06 | S154: 04 | T154: 04 | U154: =CONCATENATE(Q154,R154) -> 0206 | V154: 000002346 - CHOQUECANCHA
O155: 000002347 | P155: LARES | Q155: 02 | R155: 06 | S155: 04 | T155: 04 | U155: 0206 | V155: 000002347 - LARES
O156: 000002361 | P156: SUYO | Q156: 02 | R156: 06 | S156: 04 | T156: 04 | U156: 0206 | V156: 000002361 - SUYO
O157: 000002515 | P157: PAROBAMBA | Q157: 02 | R157: 06 | S157: 11 | T157: 03 | U157: 0206 | V157: 000002515 - PAROBAMBA
O158: 000007143 | P158: OTOCANI | Q158: 02 | R158: 06 | S158: 11 | T158: 03 | U158: 0206 | V158: 000007143 - OTOCANI
O159: 000007144 | P159: PATABAMBA | Q159: 02 | R159: 06 | S159: 04 | T159: 07 | U159: 0206 | V159: 000007144 - PATABAMBA
O160: 000010069 | P160: ESSALUD-CALCA | Q160: 02 | R160: 06 | S160: 04 | T160: 01 | U160: 0206 | V160: 000010069 - ESSALUD-CALCA
O161: 000010759 | P161: HUARAN | Q161: 02 | R161: 06 | S161: 04 | T161: 01 | U161: 0206 | V161: 000010759 - HUARAN
O162: 000010762 | P162: ACCHA ALTA - PAMPALLACTA | Q162: 02 | R162: 06 | S162: 04 | T162: 01 | U162: 0206 | V162: 000010762 - ACCHA ALTA - PAMPALLACTA
O163: 000026273 | P163: MENTAL COMUNITARIO CALCA | Q163: 02 | R163: 06 | S163: 04 | T163: 01 | U163: 0206 | V163: 000026273 - MENTAL COMUNITARIO CALCA
O164: 000000000 | P164: (All) | Q164: 02 | R164: 07 | U164: 0207 | V164: 000000000 - (All)
O165: 000002540 | P165: URUBAMBA | Q165: 02 | R165: 07 | S165: 13 | T165: 01 | U165: 0207 | V165: 000002540 - URUBAMBA
O166: 000002541 | P166: YANAHUARA | Q166: 02 | R166: 07 | S166: 13 | T166: 01 | U166: 0207 | V166: 000002541 - YANAHUARA
O167: 000002543 | P167: CHINCHERO | Q167: 02 | R167: 07 | S167: 13 | T167: 02 | U167: 0207 | V167: 000002543 - CHINCHERO
O168: 000002544 | P168: OCCOTUAN | Q168: 02 | R168: 07 | S168: 13 | T168: 02 | U168: 0207 | V168: 000002544 - OCCOTUAN
O169: 000002545 | P169: HUAYLLABAMBA | Q169: 02 | R169: 07 | S169: 13 | T169: 03 | U169: 0207 | V169: 000002545 - HUAYLLABAMBA
O170: 000002546 | P170: MACHUPICCHU | Q170: 02 | R170: 07 | S170: 13 | T170: 04 | U170: 0207 | V170: 000002546 - MACHUPICCHU
O171: 000002547 | P171: COLLPANI | Q171: 02 | R171: 07 | S171: 13 | T171: 04 | U171: 0207 | V171: 000002547 - COLLPANI
O172: 000002548 | P172: MARAS | Q172: 02 | R172: 07 | S172: 13 | T172: 05 | U172: 0207 | V172: 000002548 - MARAS
O173: 000002549 | P173: OLLANTAYTAMBO | Q173: 02 | R173: 07 | S173: 13 | T173: 06 | U173: 0207 | V173: 000002549 - OLLANTAYTAMBO
O174: 000002550 | P174: CHILLCA | Q174: 02 | R174: 07 | S174: 13 | T174: 06 | U174: 0207 | V174: 000002550 - CHILLCA
O175: 000002551 | P175: YUCAY | Q175: 02 | R175: 07 | S175: 13 | T175: 07 | U175: 0207 | V175: 000002551 - YUCAY
O176: 000006974 | P176: CAMINO INCA HUAYLLABAMBA | Q176: 02 | R176: 07 | S176: 13 | T176: 04 | U176: 0207 | V176: 000006974 - CAMINO INCA HUAYLLABAMBA
O177: 000010060 | P177: ESSALUD-URUBAMBA | Q177: 02 | R177: 07 | S177: 13 | T177: 01 | U177: 0207 | V177: 000010060 - ESSALUD-URUBAMBA
O178: 000010073 | P178: ESSALUD-MACHU PICCHU | Q178: 02 | R178: 07 | S178: 13 | T178: 04 | U178: 0207 | V178: 000010073 - ESSALUD-MACHU PICCHU
O179: 000010758 | P179: CRUZPATA | Q179: 02 | R179: 07 | S179: 13 | T179: 05 | U179: 0207 | V179: 000010758 - CRUZPATA
O180: 000010760 | P180: PATACANCHA | Q180: 02 | R180: 07 | S180: 13 | T180: 06 | U180: 0207 | V180: 000010760 - PATACANCHA
O181: 000030666 | P181: MENTAL COMUNITARIO URUBAMBA | Q181: 02 | R181: 07 | S181: 13 | T181: 01 | U181: 0207 | V181: 000030666 - MENTAL COMUNITARIO URUBAMBA
O182: 000000000 | P182: (All) | Q182: 02 | R182: 08 | U182: 0208 | V182: 000000000 - (All)
O183: 000002355 | P183: LA QUEBRADA | Q183: 02 | R183: 08 | S183: 04 | T183: 08 | U183: 0208 | V183: 000002355 - LA QUEBRADA
O184: 000002356 | P184: CCORIMAYO | Q184: 02 | R184: 08 | S184: 04 | T184: 08 | U184: 0208 | V184: 000002356 - CCORIMAYO
O185: 000002357 | P185: COLCCA YANATILE | Q185: 02 | R185: 08 | S185: 04 | T185: 08 | U185: 0208 | V185: 000002357 - COLCCA YANATILE
O186: 000002358 | P186: MUYUPAY | Q186: 02 | R186: 08 | S186: 04 | T186: 08 | U186: 0208 | V186: 000002358 - MUYUPAY
O187: 000002359 | P187: PUTUCUSI | Q187: 02 | R187: 08 | S187: 04 | T187: 08 | U187: 0208 | V187: 000002359 - PUTUCUSI
O188: 000002360 | P188: QUESQUENTO | Q188: 02 | R188: 08 | S188: 04 | T188: 08 | U188: 0208 | V188: 000002360 - QUESQUENTO
O189: 000002362 | P189: HUACHIBAMBA | Q189: 02 | R189: 08 | S189: 04 | T189: 08 | U189: 0208 | V189: 000002362 - HUACHIBAMBA
O190: 000002464 | P190: VERSALLES | Q190: 02 | R190: 08 | S190: 09 | T190: 05 | U190: 0208 | V190: 000002464 - VERSALLES
O191: 000002467 | P191: PUENTE SANTIAGO | Q191: 02 | R191: 08 | S191: 09 | T191: 06 | U191: 0208 | V191: 000002467 - PUENTE SANTIAGO
O192: 000006971 | P192: COMBAPATA YANATILE | Q192: 02 | R192: 08 | S192: 04 | T192: 08 | U192: 0208 | V192: 000006971 - COMBAPATA YANATILE
O193: 000006973 | P193: BELLAVISTA | Q193: 02 | R193: 08 | S193: 04 | T193: 08 | U193: 0208 | V193: 000006973 - BELLAVISTA
O194: 000007142 | P194: CHANCAMAYO | Q194: 02 | R194: 08 | S194: 04 | T194: 08 | U194: 0208 | V194: 000007142 - CHANCAMAYO
O195: 000000000 | P195: (All) | Q195: 02 | R195: 09 | U195: 0209 | V195: 000000000 - (All)
O196: 000002290 | P196: SAN PEDRO CUSCO | Q196: 02 | R196: 09 | S196: 01 | T196: 01 | U196: 0209 | V196: 000002290 - SAN PEDRO CUSCO
O197: 000002291 | P197: SIETE CUARTONES | Q197: 02 | R197: 09 | S197: 01 | T197: 01 | U197: 0209 | V197: 000002291 - SIETE CUARTONES
O198: 000002293 | P198: MIRAFLORES | Q198: 02 | R198: 09 | S198: 01 | T198: 01 | U198: 0209 | V198: 000002293 - MIRAFLORES
O199: 000002294 | P199: PICCHU LA RINCONADA | Q199: 02 | R199: 09 | S199: 01 | T199: 01 | U199: 0209 | V199: 000002294 - PICCHU LA RINCONADA
O200: 000002295 | P200: BUENA VISTA | Q200: 02 | R200: 09 | S200: 01 | T200: 01 | U200: 0209 | V200: 000002295 - BUENA VISTA
O201: 000002299 | P201: POROY | Q201: 02 | R201: 09 | S201: 01 | T201: 03 | U201: 0209 | V201: 000002299 - POROY
O202: 999999999 | P202: (All) | Q202: 02 | R202: 99 | U202: 0299 | V202: 999999999 - (All)
O203: 000002421 | P203: HOSPITAL QUILLABAMBA | Q203: 03 | R203: 00 | S203: 09 | T203: 01 | U203: =CONCATENATE(Q203,R203) -> 0300 | V203: =CONCATENATE(O203," - ",P203) -> 000002421 - HOSPITAL QUILLABAMBA
O204: 000000000 | P204: (All) | Q204: 03 | R204: 01 | U204: =CONCATENATE(Q204,R204) -> 0301 | V204: =CONCATENATE(O204," - ",P204) -> 000000000 - (All)
O205: 000002422 | P205: HUAYANAY | Q205: 03 | R205: 01 | S205: 09 | T205: 01 | U205: =CONCATENATE(Q205,R205) -> 0301 | V205: =CONCATENATE(O205," - ",P205) -> 000002422 - HUAYANAY
O206: 000002423 | P206: IDMA | Q206: 03 | R206: 01 | S206: 09 | T206: 01 | U206: 0301 | V206: =CONCATENATE(O206," - ",P206) -> 000002423 - IDMA
O207: 000002424 | P207: POTRERO | Q207: 03 | R207: 01 | S207: 09 | T207: 01 | U207: 0301 | V207: =CONCATENATE(O207," - ",P207) -> 000002424 - POTRERO
O208: 000002425 | P208: ECHARATE | Q208: 03 | R208: 01 | S208: 09 | T208: 02 | U208: 0301 | V208: 000002425 - ECHARATE
... 230 more rows

Sheet TD (hidden)
B2: Datos | F2: Tabla | G2: =IF(F3="(Todas)","CUSCO ","") -> 
B3: RED | C3: 03 - LA CONVENCION | F3: =TRIM(MID(C3,5,90)) -> LA CONVENCION | G3: =IF(F3="(All)"," ",F3) -> LA CONVENCION
B4: Micro Red | C4: 0399 - (All) | F4: =TRIM(MID(C4,7,90)) -> (All)
B5: Establecimiento | C5: 999999999 - (All) | F5: =TRIM(MID(C5,12,90)) -> (All)
B6: Provincia | C6: 00 - (All) | F6: =TRIM(MID(C6,6,90)) -> (All)
B7: Distrito | C7: 0000 - (All) | F7: =TRIM(MID(C7,8,90)) -> (All)
B8: UE | C8: 7777 - (All) | F8: =TRIM(MID(C8,8,90)) -> (All)
B10: AÑO | C10: 2024
B11: MESES | C11: 1 | D11: 2 | E11: 3 | F11: 4 | G11: 5 | H11: 6 | I11: 7 | J11: 8 | K11: 9 | L11: 10 | M11: 11 | N11: 0
B12: Mes_desc | C12: =IF(C11=1,"ENERO","") -> ENERO | D12: =IF(D11=2,"FEBRERO","") -> FEBRERO | E12: =IF(E11=3,"MARZO","") -> MARZO | F12: =IF(F11=4,"ABRIL","") -> ABRIL | G12: =IF(G11=5,"MAYO","") -> MAYO | H12: =IF(H11=6,"JUNIO","") -> JUNIO | I12: =IF(I11=7,"JULIO","") -> JULIO | J12: =IF(J11=8,"AGOSTO","") -> AGOSTO | K12: =IF(K11=9,"SETIEMBRE","") -> SETIEMBRE | L12: =IF(L11=10,"OCTUBRE","") -> OCTUBRE | M12: =IF(M11=11,"NOVIEMBRE","") -> NOVIEMBRE | N12: =IF(N11=12,"DICIEMBRE","") ->  | O12: =IF(C11=1,C12,IF(D11=2,D12,IF(E11=3,E12,IF(F11=4,F12,IF(G11=5,G12,IF(H11=6,H12,IF(I11=7,I12,IF(J11=8,J12,IF(K11=9,K12,IF(L11=10,L12,IF(M11=11,M12,IF(N11=12,N12,"")))))))))))) -> ENERO
B14: ACUMULADO | C14: 20 | D14: 22 | E14: 24 | F14: 26 | G14: 28 | H14: 30 | I14: 32 | J14: 34 | K14: 36 | L14: 38 | M14: 40 | O14: =MIN(C14:N14) -> 20 | P14: =MAX(C14:N14) -> 40
B15: Mes_desc_Acu | C15: =IF(C14=20,"ENERO","") -> ENERO | D15: =IF(D14=22,"FEBRERO","") -> FEBRERO | E15: =IF(E14=24,"MARZO","") -> MARZO | F15: =IF(F14=26,"ABRIL","") -> ABRIL | G15: =IF(G14=28,"MAYO","") -> MAYO | H15: =IF(H14=30,"JUNIO","") -> JUNIO | I15: =IF(I14=32,"JULIO","") -> JULIO | J15: =IF(J14=34,"AGOSTO","") -> AGOSTO | K15: =IF(K14=36,"SETIEMBRE","") -> SETIEMBRE | L15: =IF(L14=38,"OCTUBRE","") -> OCTUBRE | M15: =IF(M14=40,"NOVIEMBRE","") -> NOVIEMBRE | N15: =IF(N14=42,"DICIEMBRE","") ->  | O15: =IF(O14=C14,C15,IF(O14=D14,D15,IF(O14=E14,E15,IF(O14=F14,F15,IF(O14=G14,G15,IF(O14=H14,H15,IF(O14=I14,I15,IF(O14=J14,J15,IF(O14=K14,K15,IF(O14=L14,L15,IF(O14=M14,M15,IF(O14=N14,N15,"")))))))))))) -> ENERO | P15: =IF(P14=D14,D15,IF(P14=E14,E15,IF(P14=F14,F15,IF(P14=G14,G15,IF(P14=H14,H15,IF(P14=I14,I15,IF(P14=J14,J15,IF(P14=K14,K15,IF(P14=L14,L15,IF(P14=M14,M15,IF(P14=N14,N15,IF(P14=O14,O15,"")))))))))))) -> NOVIEMBRE
O16: =CONCATENATE(O15," - ",P15) -> ENERO - NOVIEMBRE
O17: =IF(O14=P14,O12,O16) -> ENERO - NOVIEMBRE
A25: Anio | B25: 2024
A26: UE | B26: (Todas)
A27: Red | B27: LA CONVENCION
A28: MicroRed | B28: (Todas)
A29: EESS | B29: (Todas)
A30: Provincia | B30: (Todas)
A31: Distrito | B31: (Todas)
A33: Etiquetas de fila | B33: BAS001 | C33: BAS002 | D33: BAS003 | E33: BAS004 | F33: BAS005 | G33: BAS006 | H33: BAS007 | I33: BAS008 | J33: BAS009 | K33: BAS010 | L33: BAS011 | M33: BAS012 | N33: BAS013 | O33: BAS014 | P33: BAS015 | Q33: BAS016 | R33: BAS017 | S33: BAS018 | T33: BAS019 | U33: BAS020 | V33: BAS021 | W33: BAS022 | X33: BAS023 | Y33: BAS024 | Z33: BAS025 | AA33: BAS026 | AB33: BAS027 | AC33: BAS028 | AD33: BAS029 | AE33: BAS030 | AF33: BAS031 | AG33: BAS032 | AH33: BAS033 | AI33: BAS034 | AJ33: BAS035 | AK33: BAS036 | AL33: BAS037 | AM33: BAS038 | AN33: BAS039 | AO33: BAS040 | AP33: BAS041 | AQ33: BAS042 | AR33: BAS043 | AS33: BAS044 | AT33: BAS045 | AU33: BAS046 | AV33: BAS047 | AW33: BAS048 | AX33: BAS049 | AY33: BAS050 | AZ33: BAS051 | BA33: BAS052 | BB33: BAS053 | BC33: BAS054 | BD33: BAS055 | BE33: BAS056 | BF33: BAS057 | BG33: BAS058 | BH33: BAS059 | BI33: BAS060 | BJ33: BAS061 | BK33: BAS062 | BL33: BAS063 | BM33: BAS064 | BN33: BAS065 | BO33: BAS066 | BP33: BAS067 | BQ33: BAS068 | BR33: BAS069 | BS33: BAS070 | BT33: BAS071 | BU33: BAS072 | BV33: BAS073 | BW33: BAS074 | BX33: BAS075 | BY33: BAS076 | BZ33: BAS077 | CA33: BAS078 | CB33: BAS079 | CC33: BAS080 | CD33: BAS081 | CE33: BAS082 | CF33: BAS083 | CG33: BAS084 | CH33: BAS085 | CI33: BAS086 | CJ33: BAS087 | CK33: BAS088 | CL33: BAS089 | CM33: BAS090 | CN33: BAS091 | CO33: BAS092 | CP33: BAS093 | CQ33: BAS094 | CR33: BAS095 | CS33: BAS096 | CT33: BAS097 | CU33: BAS098 | CV33: BAS099 | CW33: BAS100 | CX33: BAS101 | CY33: BAS102 | CZ33: BAS103 | DA33: BAS104 | DB33: BAS105 | DC33: BAS106 | DD33: BAS107 | DE33: BAS108 | DF33: BAS109 | DG33: BAS110 | DH33: BAS111 | DI33: BAS112 | DJ33: BAS113 | DK33: BAS114 | DL33: BAS115 | DM33: BAS116 | DN33: BAS117 | DO33: BAS118 | DP33: BAS119 | DQ33: BAS120 | DR33: BAS121 | DS33: BAS122 | DT33: BAS123 | DU33: BAS124 | DV33: BAS125 | DW33: BAS126 | DX33: BAS127 | DY33: BAS128 | DZ33: BAS129 | EA33: BAS130 | EB33: BAS131 | EC33: BAS132 | ED33: BAS133 | EE33: BAS134 | EF33: BAS135 | EG33: BAS136 | EH33: BAS137 | EI33: BAS138 | EJ33: BAS139 | EK33: BAS140 | EL33: BAS141 | EM33: BAS142 | EN33: BAS143 | EO33: BAS144 | EP33: BAS145 | EQ33: BAS146 | ER33: BAS147 | ES33: BAS148 | ET33: BAS149 | EU33: BAS150 | EV33: BAS151 | EW33: BAS152 | EX33: BAS153 | EY33: BAS154 | EZ33: BAS155 | FA33: BAS156 | FB33: BAS157 | FC33: BAS158 | FD33: BAS159 | FE33: BAS160 | FF33: BAS161 | FG33: BAS162 | FH33: BAS163 | FI33: BAS164 | FJ33: BAS165 | FK33: BAS166 | FL33: BAS167 | FM33: BAS168 | FN33: BAS169 | FO33: BAS170 | FP33: BAS171 | FQ33: BAS172 | FR33: BAS173 | FS33: BAS174 | FT33: BAS175 | FU33: BAS176 | FV33: BAS177 | FW33: BAS178 | FX33: BAS179 | FY33: BAS180 | FZ33: BAS181 | GA33: BAS182 | GB33: BAS183 | GC33: BAS184 | GD33: BAS185 | GE33: BAS186 | GF33: BAS187 | GG33: BAS188 | GH33: BAS189 | GI33: BAS190 | GJ33: BAS191 | GK33: BAS192 | GL33: BAS193 | GM33: BAS194 | GN33: BAS195 | GO33: BAS196 | GP33: BAS197 | GQ33: BAS198 | GR33: BAS199 | GS33: BAS200 | GT33: BAS201 | GU33: BAS202 | GV33: BAS203 | GW33: BAS204 | GX33: BAS205 | GY33: BAS206 | GZ33: BAS207 | HA33: BAS208 | HB33: BAS209 | HC33: BAS210 | HD33: BAS211 | HE33: BAS212 | HF33: BAS213 | HG33: BAS214 | HH33: BAS215 | HI33: BAS216 | HJ33: BAS217 | HK33: BAS218 | HL33: BAS219 | HM33: BAS220 | HN33: BAS221 | HO33: BAS222 | HP33: BAS223 | HQ33: BAS224 | HR33: BAS225 | HS33: BAS226 | HT33: BAS227 | HU33: BAS228 | HV33: BAS229 | HW33: BAS230
A34: 1 | B34: 284 | C34: 45 | D34: 158 | E34: 417 | F34: 186 | G34: 1090 | H34: 0 | I34: 0 | J34: 0 | K34: 0 | L34: 193 | M34: 108 | N34: 194 | O34: 478 | P34: 172 | Q34: 1145 | R34: 187 | S34: 105 | T34: 193 | U34: 475 | V34: 172 | W34: 1132 | X34: 0 | Y34: 0 | Z34: 0 | AA34: 0 | AB34: 0 | AC34: 0 | AD34: 0 | AE34: 0 | AF34: 0 | AG34: 0 | AH34: 0 | AI34: 0 | AJ34: 0 | AK34: 0 | AL34: 0 | AM34: 0 | AN34: 0 | AO34: 0 | AP34: 0 | AQ34: 0 | AR34: 0 | AS34: 0 | AT34: 0 | AU34: 0 | AV34: 0 | AW34: 0 | AX34: 0 | AY34: 0 | AZ34: 0 | BA34: 0 | BB34: 0 | BC34: 0 | BD34: 0 | BE34: 0 | BF34: 0 | BG34: 0 | BH34: 0 | BI34: 0 | BJ34: 0 | BK34: 0 | BL34: 0 | BM34: 0 | BN34: 0 | BO34: 0 | BP34: 0 | BQ34: 0 | BR34: 0 | BS34: 0 | BT34: 0 | BU34: 0 | BV34: 0 | BW34: 0 | BX34: 0 | BY34: 0 | BZ34: 0 | CA34: 0 | CB34: 0 | CC34: 0 | CD34: 0 | CE34: 0 | CF34: 0 | CG34: 0 | CH34: 0 | CI34: 0 | CJ34: 0 | CK34: 0 | CL34: 0 | CM34: 0 | CN34: 0 | CO34: 0 | CP34: 0 | CQ34: 0 | CR34: 0 | CS34: 0 | CT34: 0 | CU34: 0 | CV34: 0 | CW34: 0 | CX34: 0 | CY34: 0 | CZ34: 0 | DA34: 0 | DB34: 0 | DC34: 0 | DD34: 0 | DE34: 0 | DF34: 0 | DG34: 0 | DH34: 0 | DI34: 0 | DJ34: 0 | DK34: 0 | DL34: 0 | DM34: 0 | DN34: 0 | DO34: 0 | DP34: 0 | DQ34: 0 | DR34: 0 | DS34: 0 | DT34: 0 | DU34: 0 | DV34: 0 | DW34: 0 | DX34: 0 | DY34: 0 | DZ34: 0 | EA34: 0 | EB34: 0 | EC34: 0 | ED34: 0 | EE34: 0 | EF34: 0 | EG34: 0 | EH34: 0 | EI34: 0 | EJ34: 0 | EK34: 0 | EL34: 0 | EM34: 0 | EN34: 0 | EO34: 0 | EP34: 0 | EQ34: 0 | ER34: 0 | ES34: 0 | ET34: 0 | EU34: 0 | EV34: 0 | EW34: 0 | EX34: 0 | EY34: 0 | EZ34: 0 | FA34: 0 | FB34: 0 | FC34: 0 | FD34: 0 | FE34: 0 | FF34: 0 | FG34: 0 | FH34: 0 | FI34: 0 | FJ34: 0 | FK34: 0 | FL34: 0 | FM34: 0 | FN34: 0 | FO34: 0 | FP34: 0 | FQ34: 0 | FR34: 0 | FS34: 0 | FT34: 0 | FU34: 0 | FV34: 0 | FW34: 0 | FX34: 0 | FY34: 0 | FZ34: 0 | GA34: 0 | GB34: 0 | GC34: 0 | GD34: 0 | GE34: 0 | GF34: 0 | GG34: 0 | GH34: 0 | GI34: 0 | GJ34: 0 | GK34: 0 | GL34: 0 | GM34: 0 | GN34: 0 | GO34: 0 | GP34: 0 | GQ34: 0 | GR34: 0 | GS34: 0 | GT34: 0 | GU34: 0 | GV34: 0 | GW34: 0 | GX34: 0 | GY34: 0 | GZ34: 0 | HA34: 0 | HB34: 0 | HC34: 0 | HD34: 0 | HE34: 0 | HF34: 0 | HG34: 0 | HH34: 0 | HI34: 0 | HJ34: 0 | HK34: 0 | HL34: 0 | HM34: 0 | HN34: 0 | HO34: 0 | HP34: 0 | HQ34: 0 | HR34: 0 | HS34: 0 | HT34: 0 | HU34: 0 | HV34: 0 | HW34: 0
A35: 2 | B35: 147 | C35: 34 | D35: 75 | E35: 238 | F35: 109 | G35: 603 | H35: 0 | I35: 0 | J35: 0 | K35: 0 | L35: 213 | M35: 106 | N35: 291 | O35: 506 | P35: 198 | Q35: 1314 | R35: 213 | S35: 106 | T35: 291 | U35: 505 | V35: 198 | W35: 1313 | X35: 0 | Y35: 0 | Z35: 0 | AA35: 0 | AB35: 1 | AC35: 1 | AD35: 0 | AE35: 0 | AF35: 0 | AG35: 0 | AH35: 0 | AI35: 0 | AJ35: 0 | AK35: 0 | AL35: 0 | AM35: 0 | AN35: 0 | AO35: 0 | AP35: 0 | AQ35: 0 | AR35: 0 | AS35: 0 | AT35: 0 | AU35: 0 | AV35: 0 | AW35: 0 | AX35: 0 | AY35: 0 | AZ35: 0 | BA35: 0 | BB35: 0 | BC35: 0 | BD35: 0 | BE35: 0 | BF35: 0 | BG35: 0 | BH35: 0 | BI35: 0 | BJ35: 0 | BK35: 0 | BL35: 0 | BM35: 0 | BN35: 0 | BO35: 0 | BP35: 0 | BQ35: 0 | BR35: 0 | BS35: 0 | BT35: 0 | BU35: 0 | BV35: 0 | BW35: 0 | BX35: 0 | BY35: 0 | BZ35: 0 | CA35: 0 | CB35: 0 | CC35: 0 | CD35: 0 | CE35: 0 | CF35: 0 | CG35: 0 | CH35: 0 | CI35: 0 | CJ35: 0 | CK35: 0 | CL35: 0 | CM35: 0 | CN35: 0 | CO35: 0 | CP35: 0 | CQ35: 0 | CR35: 0 | CS35: 0 | CT35: 0 | CU35: 0 | CV35: 0 | CW35: 0 | CX35: 0 | CY35: 0 | CZ35: 0 | DA35: 0 | DB35: 0 | DC35: 0 | DD35: 0 | DE35: 0 | DF35: 0 | DG35: 0 | DH35: 0 | DI35: 0 | DJ35: 0 | DK35: 0 | DL35: 0 | DM35: 0 | DN35: 0 | DO35: 0 | DP35: 0 | DQ35: 0 | DR35: 0 | DS35: 0 | DT35: 0 | DU35: 0 | DV35: 0 | DW35: 0 | DX35: 0 | DY35: 0 | DZ35: 0 | EA35: 0 | EB35: 0 | EC35: 0 | ED35: 0 | EE35: 0 | EF35: 0 | EG35: 0 | EH35: 0 | EI35: 0 | EJ35: 0 | EK35: 0 | EL35: 0 | EM35: 0 | EN35: 0 | EO35: 0 | EP35: 0 | EQ35: 0 | ER35: 0 | ES35: 0 | ET35: 0 | EU35: 0 | EV35: 0 | EW35: 0 | EX35: 0 | EY35: 0 | EZ35: 0 | FA35: 0 | FB35: 0 | FC35: 0 | FD35: 0 | FE35: 0 | FF35: 0 | FG35: 0 | FH35: 0 | FI35: 0 | FJ35: 0 | FK35: 0 | FL35: 0 | FM35: 0 | FN35: 0 | FO35: 0 | FP35: 0 | FQ35: 0 | FR35: 0 | FS35: 0 | FT35: 0 | FU35: 0 | FV35: 0 | FW35: 0 | FX35: 0 | FY35: 0 | FZ35: 0 | GA35: 0 | GB35: 0 | GC35: 0 | GD35: 0 | GE35: 0 | GF35: 0 | GG35: 0 | GH35: 0 | GI35: 0 | GJ35: 0 | GK35: 0 | GL35: 0 | GM35: 0 | GN35: 0 | GO35: 0 | GP35: 0 | GQ35: 0 | GR35: 0 | GS35: 0 | GT35: 0 | GU35: 0 | GV35: 0 | GW35: 0 | GX35: 0 | GY35: 0 | GZ35: 0 | HA35: 0 | HB35: 0 | HC35: 0 | HD35: 0 | HE35: 0 | HF35: 0 | HG35: 0 | HH35: 0 | HI35: 0 | HJ35: 0 | HK35: 0 | HL35: 0 | HM35: 0 | HN35: 0 | HO35: 0 | HP35: 0 | HQ35: 0 | HR35: 0 | HS35: 0 | HT35: 0 | HU35: 0 | HV35: 0 | HW35: 0
A36: 3 | B36: 87 | C36: 40 | D36: 67 | E36: 148 | F36: 57 | G36: 399 | H36: 0 | I36: 0 | J36: 0 | K36: 0 | L36: 216 | M36: 147 | N36: 248 | O36: 547 | P36: 197 | Q36: 1355 | R36: 216 | S36: 147 | T36: 247 | U36: 547 | V36: 196 | W36: 1353 | X36: 0 | Y36: 0 | Z36: 0 | AA36: 0 | AB36: 0 | AC36: 0 | AD36: 0 | AE36: 0 | AF36: 0 | AG36: 0 | AH36: 0 | AI36: 0 | AJ36: 0 | AK36: 0 | AL36: 0 | AM36: 0 | AN36: 0 | AO36: 0 | AP36: 0 | AQ36: 0 | AR36: 0 | AS36: 0 | AT36: 0 | AU36: 0 | AV36: 0 | AW36: 0 | AX36: 0 | AY36: 0 | AZ36: 0 | BA36: 0 | BB36: 0 | BC36: 0 | BD36: 0 | BE36: 0 | BF36: 0 | BG36: 0 | BH36: 0 | BI36: 0 | BJ36: 0 | BK36: 0 | BL36: 0 | BM36: 0 | BN36: 0 | BO36: 0 | BP36: 0 | BQ36: 0 | BR36: 0 | BS36: 0 | BT36: 0 | BU36: 0 | BV36: 0 | BW36: 0 | BX36: 0 | BY36: 0 | BZ36: 0 | CA36: 0 | CB36: 0 | CC36: 0 | CD36: 0 | CE36: 0 | CF36: 0 | CG36: 0 | CH36: 0 | CI36: 0 | CJ36: 0 | CK36: 0 | CL36: 0 | CM36: 0 | CN36: 0 | CO36: 0 | CP36: 0 | CQ36: 0 | CR36: 0 | CS36: 0 | CT36: 0 | CU36: 0 | CV36: 0 | CW36: 0 | CX36: 0 | CY36: 0 | CZ36: 0 | DA36: 0 | DB36: 0 | DC36: 0 | DD36: 0 | DE36: 0 | DF36: 0 | DG36: 0 | DH36: 0 | DI36: 0 | DJ36: 0 | DK36: 0 | DL36: 0 | DM36: 0 | DN36: 0 | DO36: 0 | DP36: 0 | DQ36: 0 | DR36: 0 | DS36: 0 | DT36: 0 | DU36: 0 | DV36: 0 | DW36: 0 | DX36: 0 | DY36: 0 | DZ36: 0 | EA36: 0 | EB36: 0 | EC36: 0 | ED36: 0 | EE36: 0 | EF36: 0 | EG36: 0 | EH36: 0 | EI36: 0 | EJ36: 0 | EK36: 0 | EL36: 0 | EM36: 0 | EN36: 0 | EO36: 0 | EP36: 0 | EQ36: 0 | ER36: 0 | ES36: 0 | ET36: 0 | EU36: 0 | EV36: 0 | EW36: 0 | EX36: 0 | EY36: 0 | EZ36: 0 | FA36: 0 | FB36: 0 | FC36: 0 | FD36: 0 | FE36: 0 | FF36: 0 | FG36: 0 | FH36: 0 | FI36: 0 | FJ36: 0 | FK36: 0 | FL36: 0 | FM36: 0 | FN36: 0 | FO36: 0 | FP36: 0 | FQ36: 0 | FR36: 0 | FS36: 0 | FT36: 0 | FU36: 0 | FV36: 0 | FW36: 0 | FX36: 0 | FY36: 0 | FZ36: 0 | GA36: 0 | GB36: 0 | GC36: 0 | GD36: 0 | GE36: 0 | GF36: 0 | GG36: 0 | GH36: 0 | GI36: 0 | GJ36: 0 | GK36: 0 | GL36: 0 | GM36: 0 | GN36: 0 | GO36: 0 | GP36: 0 | GQ36: 0 | GR36: 0 | GS36: 0 | GT36: 0 | GU36: 0 | GV36: 0 | GW36: 0 | GX36: 0 | GY36: 0 | GZ36: 0 | HA36: 0 | HB36: 0 | HC36: 0 | HD36: 0 | HE36: 0 | HF36: 0 | HG36: 0 | HH36: 0 | HI36: 0 | HJ36: 0 | HK36: 0 | HL36: 0 | HM36: 0 | HN36: 0 | HO36: 0 | HP36: 0 | HQ36: 0 | HR36: 0 | HS36: 0 | HT36: 0 | HU36: 0 | HV36: 0 | HW36: 0
A37: 4 | B37: 321 | C37: 159 | D37: 60 | E37: 195 | F37: 64 | G37: 799 | H37: 0 | I37: 0 | J37: 0 | K37: 0 | L37: 338 | M37: 225 | N37: 289 | O37: 509 | P37: 161 | Q37: 1522 | R37: 335 | S37: 225 | T37: 286 | U37: 506 | V37: 161 | W37: 1513 | X37: 0 | Y37: 0 | Z37: 0 | AA37: 0 | AB37: 0 | AC37: 0 | AD37: 0 | AE37: 0 | AF37: 0 | AG37: 0 | AH37: 0 | AI37: 0 | AJ37: 0 | AK37: 0 | AL37: 0 | AM37: 0 | AN37: 0 | AO37: 0 | AP37: 0 | AQ37: 0 | AR37: 0 | AS37: 0 | AT37: 0 | AU37: 0 | AV37: 0 | AW37: 0 | AX37: 0 | AY37: 0 | AZ37: 0 | BA37: 0 | BB37: 0 | BC37: 0 | BD37: 0 | BE37: 0 | BF37: 0 | BG37: 0 | BH37: 0 | BI37: 0 | BJ37: 0 | BK37: 0 | BL37: 0 | BM37: 0 | BN37: 0 | BO37: 0 | BP37: 0 | BQ37: 0 | BR37: 0 | BS37: 0 | BT37: 0 | BU37: 0 | BV37: 0 | BW37: 0 | BX37: 0 | BY37: 0 | BZ37: 0 | CA37: 0 | CB37: 0 | CC37: 0 | CD37: 0 | CE37: 0 | CF37: 0 | CG37: 0 | CH37: 0 | CI37: 0 | CJ37: 0 | CK37: 0 | CL37: 0 | CM37: 0 | CN37: 0 | CO37: 0 | CP37: 0 | CQ37: 0 | CR37: 0 | CS37: 0 | CT37: 0 | CU37: 0 | CV37: 0 | CW37: 0 | CX37: 0 | CY37: 0 | CZ37: 0 | DA37: 0 | DB37: 0 | DC37: 0 | DD37: 0 | DE37: 0 | DF37: 0 | DG37: 0 | DH37: 0 | DI37: 0 | DJ37: 0 | DK37: 0 | DL37: 0 | DM37: 0 | DN37: 0 | DO37: 0 | DP37: 0 | DQ37: 0 | DR37: 0 | DS37: 0 | DT37: 0 | DU37: 0 | DV37: 0 | DW37: 0 | DX37: 0 | DY37: 0 | DZ37: 0 | EA37: 0 | EB37: 0 | EC37: 0 | ED37: 0 | EE37: 0 | EF37: 0 | EG37: 0 | EH37: 0 | EI37: 0 | EJ37: 0 | EK37: 0 | EL37: 0 | EM37: 0 | EN37: 0 | EO37: 0 | EP37: 0 | EQ37: 0 | ER37: 0 | ES37: 0 | ET37: 0 | EU37: 0 | EV37: 0 | EW37: 0 | EX37: 0 | EY37: 0 | EZ37: 0 | FA37: 0 | FB37: 0 | FC37: 0 | FD37: 0 | FE37: 0 | FF37: 0 | FG37: 0 | FH37: 0 | FI37: 0 | FJ37: 0 | FK37: 0 | FL37: 0 | FM37: 0 | FN37: 0 | FO37: 0 | FP37: 0 | FQ37: 0 | FR37: 0 | FS37: 0 | FT37: 0 | FU37: 0 | FV37: 0 | FW37: 0 | FX37: 0 | FY37: 0 | FZ37: 0 | GA37: 0 | GB37: 0 | GC37: 0 | GD37: 0 | GE37: 0 | GF37: 0 | GG37: 0 | GH37: 0 | GI37: 0 | GJ37: 0 | GK37: 0 | GL37: 0 | GM37: 0 | GN37: 0 | GO37: 0 | GP37: 0 | GQ37: 0 | GR37: 0 | GS37: 0 | GT37: 0 | GU37: 0 | GV37: 0 | GW37: 0 | GX37: 0 | GY37: 0 | GZ37: 0 | HA37: 0 | HB37: 0 | HC37: 0 | HD37: 0 | HE37: 0 | HF37: 0 | HG37: 0 | HH37: 0 | HI37: 0 | HJ37: 0 | HK37: 0 | HL37: 0 | HM37: 0 | HN37: 0 | HO37: 0 | HP37: 0 | HQ37: 0 | HR37: 0 | HS37: 0 | HT37: 0 | HU37: 0 | HV37: 0 | HW37: 0
A38: 5 | B38: 28 | C38: 45 | D38: 46 | E38: 92 | F38: 61 | G38: 272 | H38: 0 | I38: 0 | J38: 0 | K38: 0 | L38: 415 | M38: 243 | N38: 276 | O38: 492 | P38: 159 | Q38: 1585 | R38: 413 | S38: 243 | T38: 276 | U38: 492 | V38: 159 | W38: 1583 | X38: 0 | Y38: 0 | Z38: 0 | AA38: 0 | AB38: 0 | AC38: 0 | AD38: 0 | AE38: 0 | AF38: 0 | AG38: 0 | AH38: 0 | AI38: 0 | AJ38: 0 | AK38: 0 | AL38: 0 | AM38: 0 | AN38: 0 | AO38: 0 | AP38: 0 | AQ38: 0 | AR38: 0 | AS38: 0 | AT38: 0 | AU38: 0 | AV38: 0 | AW38: 0 | AX38: 0 | AY38: 0 | AZ38: 0 | BA38: 0 | BB38: 0 | BC38: 0 | BD38: 0 | BE38: 0 | BF38: 0 | BG38: 0 | BH38: 0 | BI38: 0 | BJ38: 0 | BK38: 0 | BL38: 0 | BM38: 0 | BN38: 0 | BO38: 0 | BP38: 0 | BQ38: 0 | BR38: 0 | BS38: 0 | BT38: 0 | BU38: 0 | BV38: 0 | BW38: 0 | BX38: 0 | BY38: 0 | BZ38: 0 | CA38: 0 | CB38: 0 | CC38: 0 | CD38: 0 | CE38: 0 | CF38: 0 | CG38: 0 | CH38: 0 | CI38: 0 | CJ38: 0 | CK38: 0 | CL38: 0 | CM38: 0 | CN38: 0 | CO38: 0 | CP38: 0 | CQ38: 0 | CR38: 0 | CS38: 0 | CT38: 0 | CU38: 0 | CV38: 0 | CW38: 0 | CX38: 0 | CY38: 0 | CZ38: 0 | DA38: 0 | DB38: 0 | DC38: 0 | DD38: 0 | DE38: 0 | DF38: 0 | DG38: 0 | DH38: 0 | DI38: 0 | DJ38: 0 | DK38: 0 | DL38: 0 | DM38: 0 | DN38: 0 | DO38: 0 | DP38: 0 | DQ38: 0 | DR38: 0 | DS38: 0 | DT38: 0 | DU38: 0 | DV38: 0 | DW38: 0 | DX38: 0 | DY38: 0 | DZ38: 1 | EA38: 0 | EB38: 0 | EC38: 0 | ED38: 0 | EE38: 0 | EF38: 1 | EG38: 0 | EH38: 0 | EI38: 0 | EJ38: 0 | EK38: 0 | EL38: 0 | EM38: 0 | EN38: 0 | EO38: 0 | EP38: 0 | EQ38: 0 | ER38: 0 | ES38: 0 | ET38: 0 | EU38: 0 | EV38: 0 | EW38: 0 | EX38: 0 | EY38: 0 | EZ38: 0 | FA38: 0 | FB38: 0 | FC38: 0 | FD38: 0 | FE38: 0 | FF38: 0 | FG38: 0 | FH38: 0 | FI38: 0 | FJ38: 0 | FK38: 0 | FL38: 0 | FM38: 0 | FN38: 0 | FO38: 0 | FP38: 0 | FQ38: 0 | FR38: 0 | FS38: 0 | FT38: 0 | FU38: 0 | FV38: 0 | FW38: 0 | FX38: 0 | FY38: 0 | FZ38: 0 | GA38: 0 | GB38: 0 | GC38: 0 | GD38: 0 | GE38: 0 | GF38: 0 | GG38: 0 | GH38: 0 | GI38: 0 | GJ38: 0 | GK38: 0 | GL38: 0 | GM38: 0 | GN38: 0 | GO38: 0 | GP38: 0 | GQ38: 0 | GR38: 0 | GS38: 0 | GT38: 0 | GU38: 0 | GV38: 0 | GW38: 0 | GX38: 0 | GY38: 0 | GZ38: 0 | HA38: 0 | HB38: 0 | HC38: 0 | HD38: 0 | HE38: 0 | HF38: 0 | HG38: 0 | HH38: 0 | HI38: 0 | HJ38: 0 | HK38: 0 | HL38: 0 | HM38: 0 | HN38: 0 | HO38: 0 | HP38: 0 | HQ38: 0 | HR38: 0 | HS38: 0 | HT38: 0 | HU38: 0 | HV38: 0 | HW38: 0
A39: 6 | B39: 29 | C39: 11 | D39: 29 | E39: 87 | F39: 34 | G39: 190 | H39: 0 | I39: 0 | J39: 0 | K39: 0 | L39: 307 | M39: 170 | N39: 235 | O39: 448 | P39: 173 | Q39: 1333 | R39: 304 | S39: 168 | T39: 232 | U39: 443 | V39: 173 | W39: 1320 | X39: 0 | Y39: 0 | Z39: 0 | AA39: 0 | AB39: 0 | AC39: 0 | AD39: 0 | AE39: 0 | AF39: 0 | AG39: 0 | AH39: 0 | AI39: 0 | AJ39: 0 | AK39: 0 | AL39: 0 | AM39: 0 | AN39: 0 | AO39: 0 | AP39: 0 | AQ39: 0 | AR39: 0 | AS39: 0 | AT39: 0 | AU39: 0 | AV39: 0 | AW39: 0 | AX39: 0 | AY39: 0 | AZ39: 0 | BA39: 0 | BB39: 0 | BC39: 0 | BD39: 0 | BE39: 0 | BF39: 0 | BG39: 0 | BH39: 0 | BI39: 0 | BJ39: 0 | BK39: 0 | BL39: 0 | BM39: 0 | BN39: 0 | BO39: 0 | BP39: 0 | BQ39: 0 | BR39: 0 | BS39: 0 | BT39: 0 | BU39: 0 | BV39: 0 | BW39: 0 | BX39: 0 | BY39: 0 | BZ39: 0 | CA39: 0 | CB39: 0 | CC39: 0 | CD39: 0 | CE39: 0 | CF39: 0 | CG39: 0 | CH39: 0 | CI39: 0 | CJ39: 0 | CK39: 0 | CL39: 0 | CM39: 0 | CN39: 0 | CO39: 0 | CP39: 0 | CQ39: 0 | CR39: 0 | CS39: 0 | CT39: 0 | CU39: 0 | CV39: 0 | CW39: 0 | CX39: 0 | CY39: 0 | CZ39: 0 | DA39: 0 | DB39: 0 | DC39: 0 | DD39: 0 | DE39: 0 | DF39: 0 | DG39: 0 | DH39: 0 | DI39: 0 | DJ39: 0 | DK39: 0 | DL39: 0 | DM39: 0 | DN39: 0 | DO39: 0 | DP39: 0 | DQ39: 0 | DR39: 0 | DS39: 0 | DT39: 0 | DU39: 0 | DV39: 0 | DW39: 0 | DX39: 0 | DY39: 0 | DZ39: 0 | EA39: 1 | EB39: 2 | EC39: 6 | ED39: 0 | EE39: 0 | EF39: 0 | EG39: 0 | EH39: 1 | EI39: 8 | EJ39: 0 | EK39: 0 | EL39: 0 | EM39: 0 | EN39: 0 | EO39: 0 | EP39: 0 | EQ39: 0 | ER39: 0 | ES39: 0 | ET39: 0 | EU39: 0 | EV39: 0 | EW39: 0 | EX39: 0 | EY39: 0 | EZ39: 0 | FA39: 0 | FB39: 0 | FC39: 0 | FD39: 0 | FE39: 0 | FF39: 0 | FG39: 0 | FH39: 0 | FI39: 0 | FJ39: 0 | FK39: 0 | FL39: 0 | FM39: 0 | FN39: 0 | FO39: 0 | FP39: 0 | FQ39: 0 | FR39: 0 | FS39: 0 | FT39: 0 | FU39: 0 | FV39: 0 | FW39: 0 | FX39: 0 | FY39: 0 | FZ39: 0 | GA39: 0 | GB39: 0 | GC39: 0 | GD39: 0 | GE39: 0 | GF39: 0 | GG39: 0 | GH39: 0 | GI39: 0 | GJ39: 0 | GK39: 0 | GL39: 0 | GM39: 0 | GN39: 0 | GO39: 0 | GP39: 0 | GQ39: 0 | GR39: 0 | GS39: 0 | GT39: 0 | GU39: 0 | GV39: 0 | GW39: 0 | GX39: 0 | GY39: 0 | GZ39: 0 | HA39: 0 | HB39: 0 | HC39: 0 | HD39: 0 | HE39: 0 | HF39: 0 | HG39: 0 | HH39: 0 | HI39: 0 | HJ39: 0 | HK39: 0 | HL39: 0 | HM39: 0 | HN39: 0 | HO39: 0 | HP39: 0 | HQ39: 0 | HR39: 0 | HS39: 0 | HT39: 0 | HU39: 0 | HV39: 0 | HW39: 0
A40: 7 | B40: 6 | C40: 6 | D40: 28 | E40: 53 | F40: 13 | G40: 106 | H40: 0 | I40: 0 | J40: 0 | K40: 0 | L40: 264 | M40: 97 | N40: 159 | O40: 434 | P40: 135 | Q40: 1089 | R40: 264 | S40: 97 | T40: 158 | U40: 433 | V40: 135 | W40: 1087 | X40: 0 | Y40: 0 | Z40: 0 | AA40: 0 | AB40: 0 | AC40: 0 | AD40: 0 | AE40: 0 | AF40: 0 | AG40: 0 | AH40: 0 | AI40: 0 | AJ40: 0 | AK40: 0 | AL40: 0 | AM40: 0 | AN40: 0 | AO40: 0 | AP40: 0 | AQ40: 0 | AR40: 0 | AS40: 0 | AT40: 0 | AU40: 0 | AV40: 0 | AW40: 0 | AX40: 0 | AY40: 0 | AZ40: 0 | BA40: 0 | BB40: 0 | BC40: 0 | BD40: 0 | BE40: 0 | BF40: 0 | BG40: 0 | BH40: 0 | BI40: 0 | BJ40: 0 | BK40: 0 | BL40: 0 | BM40: 0 | BN40: 0 | BO40: 0 | BP40: 0 | BQ40: 0 | BR40: 0 | BS40: 0 | BT40: 0 | BU40: 0 | BV40: 0 | BW40: 0 | BX40: 0 | BY40: 0 | BZ40: 0 | CA40: 0 | CB40: 0 | CC40: 0 | CD40: 0 | CE40: 0 | CF40: 0 | CG40: 0 | CH40: 0 | CI40: 0 | CJ40: 0 | CK40: 0 | CL40: 0 | CM40: 0 | CN40: 0 | CO40: 0 | CP40: 0 | CQ40: 0 | CR40: 0 | CS40: 0 | CT40: 0 | CU40: 0 | CV40: 0 | CW40: 0 | CX40: 0 | CY40: 0 | CZ40: 0 | DA40: 0 | DB40: 0 | DC40: 0 | DD40: 0 | DE40: 0 | DF40: 0 | DG40: 0 | DH40: 0 | DI40: 0 | DJ40: 0 | DK40: 0 | DL40: 0 | DM40: 0 | DN40: 0 | DO40: 0 | DP40: 0 | DQ40: 0 | DR40: 0 | DS40: 0 | DT40: 0 | DU40: 0 | DV40: 0 | DW40: 0 | DX40: 0 | DY40: 0 | DZ40: 0 | EA40: 0 | EB40: 0 | EC40: 1 | ED40: 0 | EE40: 0 | EF40: 0 | EG40: 0 | EH40: 0 | EI40: 1 | EJ40: 0 | EK40: 0 | EL40: 0 | EM40: 0 | EN40: 0 | EO40: 0 | EP40: 0 | EQ40: 0 | ER40: 0 | ES40: 0 | ET40: 0 | EU40: 0 | EV40: 0 | EW40: 0 | EX40: 0 | EY40: 0 | EZ40: 0 | FA40: 0 | FB40: 0 | FC40: 0 | FD40: 0 | FE40: 0 | FF40: 0 | FG40: 0 | FH40: 0 | FI40: 0 | FJ40: 0 | FK40: 0 | FL40: 0 | FM40: 0 | FN40: 0 | FO40: 0 | FP40: 0 | FQ40: 0 | FR40: 0 | FS40: 0 | FT40: 0 | FU40: 0 | FV40: 0 | FW40: 0 | FX40: 0 | FY40: 0 | FZ40: 0 | GA40: 0 | GB40: 0 | GC40: 0 | GD40: 0 | GE40: 0 | GF40: 0 | GG40: 0 | GH40: 0 | GI40: 0 | GJ40: 0 | GK40: 0 | GL40: 0 | GM40: 0 | GN40: 0 | GO40: 0 | GP40: 0 | GQ40: 0 | GR40: 0 | GS40: 0 | GT40: 0 | GU40: 0 | GV40: 0 | GW40: 0 | GX40: 0 | GY40: 0 | GZ40: 0 | HA40: 0 | HB40: 0 | HC40: 0 | HD40: 0 | HE40: 0 | HF40: 0 | HG40: 0 | HH40: 0 | HI40: 0 | HJ40: 0 | HK40: 0 | HL40: 0 | HM40: 0 | HN40: 0 | HO40: 0 | HP40: 0 | HQ40: 0 | HR40: 0 | HS40: 0 | HT40: 0 | HU40: 0 | HV40: 0 | HW40: 0
A41: 8 | B41: 8 | C41: 3 | D41: 21 | E41: 25 | F41: 10 | G41: 67 | H41: 0 | I41: 0 | J41: 0 | K41: 0 | L41: 197 | M41: 81 | N41: 195 | O41: 389 | P41: 138 | Q41: 1000 | R41: 197 | S41: 80 | T41: 194 | U41: 389 | V41: 137 | W41: 997 | X41: 0 | Y41: 0 | Z41: 0 | AA41: 0 | AB41: 0 | AC41: 0 | AD41: 0 | AE41: 0 | AF41: 0 | AG41: 0 | AH41: 0 | AI41: 0 | AJ41: 0 | AK41: 0 | AL41: 0 | AM41: 0 | AN41: 0 | AO41: 0 | AP41: 0 | AQ41: 0 | AR41: 0 | AS41: 0 | AT41: 0 | AU41: 0 | AV41: 0 | AW41: 0 | AX41: 0 | AY41: 0 | AZ41: 0 | BA41: 0 | BB41: 0 | BC41: 0 | BD41: 0 | BE41: 0 | BF41: 0 | BG41: 0 | BH41: 0 | BI41: 0 | BJ41: 0 | BK41: 0 | BL41: 0 | BM41: 0 | BN41: 0 | BO41: 0 | BP41: 0 | BQ41: 0 | BR41: 0 | BS41: 0 | BT41: 0 | BU41: 0 | BV41: 0 | BW41: 0 | BX41: 0 | BY41: 0 | BZ41: 0 | CA41: 0 | CB41: 0 | CC41: 0 | CD41: 0 | CE41: 0 | CF41: 0 | CG41: 0 | CH41: 0 | CI41: 0 | CJ41: 0 | CK41: 0 | CL41: 0 | CM41: 0 | CN41: 0 | CO41: 0 | CP41: 0 | CQ41: 0 | CR41: 0 | CS41: 0 | CT41: 0 | CU41: 0 | CV41: 0 | CW41: 0 | CX41: 0 | CY41: 0 | CZ41: 0 | DA41: 0 | DB41: 0 | DC41: 0 | DD41: 0 | DE41: 0 | DF41: 0 | DG41: 0 | DH41: 0 | DI41: 0 | DJ41: 0 | DK41: 0 | DL41: 0 | DM41: 0 | DN41: 0 | DO41: 0 | DP41: 0 | DQ41: 0 | DR41: 0 | DS41: 0 | DT41: 0 | DU41: 0 | DV41: 0 | DW41: 0 | DX41: 0 | DY41: 0 | DZ41: 0 | EA41: 0 | EB41: 2 | EC41: 1 | ED41: 0 | EE41: 0 | EF41: 0 | EG41: 0 | EH41: 0 | EI41: 3 | EJ41: 0 | EK41: 0 | EL41: 0 | EM41: 0 | EN41: 0 | EO41: 0 | EP41: 0 | EQ41: 0 | ER41: 0 | ES41: 0 | ET41: 0 | EU41: 0 | EV41: 0 | EW41: 0 | EX41: 0 | EY41: 0 | EZ41: 0 | FA41: 0 | FB41: 0 | FC41: 0 | FD41: 0 | FE41: 0 | FF41: 0 | FG41: 0 | FH41: 0 | FI41: 0 | FJ41: 0 | FK41: 0 | FL41: 0 | FM41: 0 | FN41: 0 | FO41: 0 | FP41: 0 | FQ41: 0 | FR41: 0 | FS41: 0 | FT41: 0 | FU41: 0 | FV41: 0 | FW41: 0 | FX41: 0 | FY41: 0 | FZ41: 0 | GA41: 0 | GB41: 0 | GC41: 0 | GD41: 0 | GE41: 0 | GF41: 0 | GG41: 0 | GH41: 0 | GI41: 0 | GJ41: 0 | GK41: 0 | GL41: 0 | GM41: 0 | GN41: 0 | GO41: 0 | GP41: 0 | GQ41: 0 | GR41: 0 | GS41: 0 | GT41: 0 | GU41: 0 | GV41: 0 | GW41: 0 | GX41: 0 | GY41: 0 | GZ41: 0 | HA41: 0 | HB41: 0 | HC41: 0 | HD41: 0 | HE41: 0 | HF41: 0 | HG41: 0 | HH41: 0 | HI41: 0 | HJ41: 0 | HK41: 0 | HL41: 0 | HM41: 0 | HN41: 0 | HO41: 0 | HP41: 0 | HQ41: 0 | HR41: 0 | HS41: 0 | HT41: 0 | HU41: 0 | HV41: 0 | HW41: 0
A42: 11 | B42: 4 | C42: 4 | D42: 15 | E42: 21 | F42: 11 | G42: 55 | H42: 0 | I42: 0 | J42: 0 | K42: 0 | L42: 246 | M42: 106 | N42: 198 | O42: 473 | P42: 205 | Q42: 1228 | R42: 245 | S42: 103 | T42: 194 | U42: 452 | V42: 200 | W42: 1194 | X42: 0 | Y42: 0 | Z42: 0 | AA42: 0 | AB42: 0 | AC42: 0 | AD42: 0 | AE42: 0 | AF42: 0 | AG42: 0 | AH42: 0 | AI42: 0 | AJ42: 0 | AK42: 0 | AL42: 0 | AM42: 0 | AN42: 0 | AO42: 0 | AP42: 0 | AQ42: 0 | AR42: 0 | AS42: 4 | AT42: 0 | AU42: 4 | AV42: 0 | AW42: 0 | AX42: 0 | AY42: 0 | AZ42: 0 | BA42: 0 | BB42: 0 | BC42: 0 | BD42: 0 | BE42: 0 | BF42: 0 | BG42: 0 | BH42: 0 | BI42: 0 | BJ42: 0 | BK42: 0 | BL42: 0 | BM42: 0 | BN42: 0 | BO42: 0 | BP42: 0 | BQ42: 0 | BR42: 0 | BS42: 0 | BT42: 0 | BU42: 0 | BV42: 0 | BW42: 0 | BX42: 0 | BY42: 0 | BZ42: 0 | CA42: 0 | CB42: 0 | CC42: 0 | CD42: 0 | CE42: 0 | CF42: 0 | CG42: 0 | CH42: 0 | CI42: 0 | CJ42: 0 | CK42: 0 | CL42: 0 | CM42: 0 | CN42: 0 | CO42: 1 | CP42: 0 | CQ42: 0 | CR42: 0 | CS42: 0 | CT42: 0 | CU42: 1 | CV42: 0 | CW42: 0 | CX42: 0 | CY42: 0 | CZ42: 0 | DA42: 0 | DB42: 0 | DC42: 0 | DD42: 0 | DE42: 0 | DF42: 0 | DG42: 0 | DH42: 0 | DI42: 0 | DJ42: 0 | DK42: 0 | DL42: 0 | DM42: 0 | DN42: 0 | DO42: 0 | DP42: 0 | DQ42: 0 | DR42: 0 | DS42: 0 | DT42: 0 | DU42: 0 | DV42: 0 | DW42: 0 | DX42: 0 | DY42: 0 | DZ42: 0 | EA42: 1 | EB42: 1 | EC42: 7 | ED42: 2 | EE42: 0 | EF42: 0 | EG42: 1 | EH42: 0 | EI42: 8 | EJ42: 0 | EK42: 0 | EL42: 0 | EM42: 0 | EN42: 0 | EO42: 0 | EP42: 0 | EQ42: 0 | ER42: 0 | ES42: 0 | ET42: 0 | EU42: 0 | EV42: 0 | EW42: 0 | EX42: 0 | EY42: 0 | EZ42: 0 | FA42: 0 | FB42: 0 | FC42: 0 | FD42: 0 | FE42: 0 | FF42: 0 | FG42: 0 | FH42: 0 | FI42: 0 | FJ42: 0 | FK42: 0 | FL42: 0 | FM42: 0 | FN42: 0 | FO42: 0 | FP42: 0 | FQ42: 0 | FR42: 0 | FS42: 0 | FT42: 0 | FU42: 0 | FV42: 0 | FW42: 0 | FX42: 0 | FY42: 0 | FZ42: 0 | GA42: 0 | GB42: 0 | GC42: 0 | GD42: 0 | GE42: 0 | GF42: 0 | GG42: 0 | GH42: 0 | GI42: 0 | GJ42: 0 | GK42: 0 | GL42: 0 | GM42: 0 | GN42: 0 | GO42: 0 | GP42: 0 | GQ42: 0 | GR42: 0 | GS42: 0 | GT42: 0 | GU42: 0 | GV42: 0 | GW42: 0 | GX42: 0 | GY42: 0 | GZ42: 0 | HA42: 0 | HB42: 0 | HC42: 0 | HD42: 0 | HE42: 0 | HF42: 0 | HG42: 0 | HH42: 0 | HI42: 0 | HJ42: 0 | HK42: 0 | HL42: 0 | HM42: 0 | HN42: 0 | HO42: 0 | HP42: 0 | HQ42: 0 | HR42: 0 | HS42: 0 | HT42: 0 | HU42: 0 | HV42: 0 | HW42: 0
A43: 9 | B43: 5 | C43: 8 | D43: 12 | E43: 31 | F43: 10 | G43: 66 | H43: 0 | I43: 0 | J43: 0 | K43: 0 | L43: 142 | M43: 76 | N43: 154 | O43: 361 | P43: 168 | Q43: 901 | R43: 142 | S43: 75 | T43: 150 | U43: 358 | V43: 164 | W43: 889 | X43: 0 | Y43: 0 | Z43: 0 | AA43: 0 | AB43: 0 | AC43: 0 | AD43: 0 | AE43: 0 | AF43: 0 | AG43: 0 | AH43: 0 | AI43: 0 | AJ43: 0 | AK43: 0 | AL43: 0 | AM43: 0 | AN43: 0 | AO43: 0 | AP43: 0 | AQ43: 0 | AR43: 0 | AS43: 0 | AT43: 0 | AU43: 0 | AV43: 0 | AW43: 0 | AX43: 0 | AY43: 0 | AZ43: 0 | BA43: 0 | BB43: 0 | BC43: 0 | BD43: 0 | BE43: 0 | BF43: 0 | BG43: 0 | BH43: 0 | BI43: 0 | BJ43: 0 | BK43: 0 | BL43: 0 | BM43: 0 | BN43: 0 | BO43: 0 | BP43: 0 | BQ43: 0 | BR43: 0 | BS43: 0 | BT43: 0 | BU43: 0 | BV43: 0 | BW43: 0 | BX43: 0 | BY43: 0 | BZ43: 0 | CA43: 0 | CB43: 0 | CC43: 0 | CD43: 0 | CE43: 0 | CF43: 0 | CG43: 0 | CH43: 0 | CI43: 0 | CJ43: 0 | CK43: 0 | CL43: 0 | CM43: 0 | CN43: 0 | CO43: 0 | CP43: 0 | CQ43: 0 | CR43: 0 | CS43: 0 | CT43: 0 | CU43: 0 | CV43: 0 | CW43: 0 | CX43: 0 | CY43: 0 | CZ43: 0 | DA43: 0 | DB43: 0 | DC43: 0 | DD43: 0 | DE43: 0 | DF43: 0 | DG43: 0 | DH43: 0 | DI43: 0 | DJ43: 0 | DK43: 0 | DL43: 0 | DM43: 0 | DN43: 0 | DO43: 0 | DP43: 0 | DQ43: 0 | DR43: 0 | DS43: 0 | DT43: 0 | DU43: 0 | DV43: 0 | DW43: 0 | DX43: 0 | DY43: 0 | DZ43: 0 | EA43: 1 | EB43: 1 | EC43: 3 | ED43: 0 | EE43: 0 | EF43: 0 | EG43: 0 | EH43: 1 | EI43: 4 | EJ43: 0 | EK43: 0 | EL43: 0 | EM43: 0 | EN43: 0 | EO43: 0 | EP43: 0 | EQ43: 0 | ER43: 0 | ES43: 0 | ET43: 0 | EU43: 0 | EV43: 0 | EW43: 0 | EX43: 0 | EY43: 0 | EZ43: 0 | FA43: 0 | FB43: 0 | FC43: 0 | FD43: 0 | FE43: 0 | FF43: 0 | FG43: 0 | FH43: 0 | FI43: 0 | FJ43: 0 | FK43: 0 | FL43: 0 | FM43: 0 | FN43: 0 | FO43: 0 | FP43: 0 | FQ43: 0 | FR43: 0 | FS43: 0 | FT43: 0 | FU43: 0 | FV43: 0 | FW43: 0 | FX43: 0 | FY43: 0 | FZ43: 0 | GA43: 0 | GB43: 0 | GC43: 0 | GD43: 0 | GE43: 0 | GF43: 0 | GG43: 0 | GH43: 0 | GI43: 0 | GJ43: 0 | GK43: 0 | GL43: 0 | GM43: 0 | GN43: 0 | GO43: 0 | GP43: 0 | GQ43: 0 | GR43: 0 | GS43: 0 | GT43: 0 | GU43: 0 | GV43: 0 | GW43: 0 | GX43: 0 | GY43: 0 | GZ43: 0 | HA43: 0 | HB43: 0 | HC43: 0 | HD43: 0 | HE43: 0 | HF43: 0 | HG43: 0 | HH43: 0 | HI43: 0 | HJ43: 0 | HK43: 0 | HL43: 0 | HM43: 0 | HN43: 0 | HO43: 0 | HP43: 0 | HQ43: 0 | HR43: 0 | HS43: 0 | HT43: 0 | HU43: 0 | HV43: 0 | HW43: 0
A44: 10 | B44: 5 | C44: 6 | D44: 9 | E44: 42 | F44: 10 | G44: 72 | H44: 0 | I44: 0 | J44: 0 | K44: 0 | L44: 205 | M44: 93 | N44: 164 | O44: 470 | P44: 161 | Q44: 1093 | R44: 202 | S44: 92 | T44: 163 | U44: 466 | V44: 159 | W44: 1082 | X44: 0 | Y44: 0 | Z44: 0 | AA44: 0 | AB44: 0 | AC44: 0 | AD44: 0 | AE44: 0 | AF44: 0 | AG44: 0 | AH44: 0 | AI44: 0 | AJ44: 0 | AK44: 0 | AL44: 0 | AM44: 0 | AN44: 0 | AO44: 0 | AP44: 0 | AQ44: 0 | AR44: 0 | AS44: 0 | AT44: 0 | AU44: 0 | AV44: 0 | AW44: 0 | AX44: 0 | AY44: 0 | AZ44: 0 | BA44: 0 | BB44: 0 | BC44: 0 | BD44: 0 | BE44: 0 | BF44: 0 | BG44: 0 | BH44: 0 | BI44: 0 | BJ44: 0 | BK44: 0 | BL44: 0 | BM44: 0 | BN44: 0 | BO44: 0 | BP44: 0 | BQ44: 0 | BR44: 0 | BS44: 0 | BT44: 0 | BU44: 0 | BV44: 0 | BW44: 0 | BX44: 0 | BY44: 0 | BZ44: 0 | CA44: 0 | CB44: 0 | CC44: 0 | CD44: 0 | CE44: 0 | CF44: 0 | CG44: 0 | CH44: 0 | CI44: 0 | CJ44: 0 | CK44: 0 | CL44: 0 | CM44: 0 | CN44: 0 | CO44: 0 | CP44: 0 | CQ44: 0 | CR44: 0 | CS44: 0 | CT44: 0 | CU44: 0 | CV44: 0 | CW44: 0 | CX44: 0 | CY44: 0 | CZ44: 0 | DA44: 0 | DB44: 0 | DC44: 0 | DD44: 0 | DE44: 0 | DF44: 0 | DG44: 0 | DH44: 0 | DI44: 0 | DJ44: 0 | DK44: 0 | DL44: 0 | DM44: 0 | DN44: 0 | DO44: 0 | DP44: 0 | DQ44: 0 | DR44: 0 | DS44: 0 | DT44: 0 | DU44: 0 | DV44: 0 | DW44: 0 | DX44: 0 | DY44: 0 | DZ44: 0 | EA44: 0 | EB44: 2 | EC44: 4 | ED44: 0 | EE44: 0 | EF44: 0 | EG44: 0 | EH44: 0 | EI44: 6 | EJ44: 0 | EK44: 0 | EL44: 0 | EM44: 0 | EN44: 0 | EO44: 0 | EP44: 0 | EQ44: 0 | ER44: 0 | ES44: 0 | ET44: 0 | EU44: 0 | EV44: 0 | EW44: 0 | EX44: 0 | EY44: 0 | EZ44: 0 | FA44: 0 | FB44: 0 | FC44: 0 | FD44: 0 | FE44: 0 | FF44: 0 | FG44: 0 | FH44: 0 | FI44: 0 | FJ44: 0 | FK44: 0 | FL44: 0 | FM44: 0 | FN44: 0 | FO44: 0 | FP44: 0 | FQ44: 0 | FR44: 0 | FS44: 0 | FT44: 0 | FU44: 0 | FV44: 0 | FW44: 0 | FX44: 0 | FY44: 0 | FZ44: 0 | GA44: 0 | GB44: 0 | GC44: 0 | GD44: 0 | GE44: 0 | GF44: 0 | GG44: 0 | GH44: 0 | GI44: 0 | GJ44: 0 | GK44: 0 | GL44: 0 | GM44: 0 | GN44: 0 | GO44: 0 | GP44: 0 | GQ44: 0 | GR44: 0 | GS44: 0 | GT44: 0 | GU44: 0 | GV44: 0 | GW44: 0 | GX44: 0 | GY44: 0 | GZ44: 0 | HA44: 0 | HB44: 0 | HC44: 0 | HD44: 0 | HE44: 0 | HF44: 0 | HG44: 0 | HH44: 0 | HI44: 0 | HJ44: 0 | HK44: 0 | HL44: 0 | HM44: 0 | HN44: 0 | HO44: 0 | HP44: 0 | HQ44: 0 | HR44: 0 | HS44: 0 | HT44: 0 | HU44: 0 | HV44: 0 | HW44: 0
A45: Total general | B45: 924 | C45: 361 | D45: 520 | E45: 1349 | F45: 565 | G45: 3719 | H45: 0 | I45: 0 | J45: 0 | K45: 0 | L45: 2736 | M45: 1452 | N45: 2403 | O45: 5107 | P45: 1867 | Q45: 13565 | R45: 2718 | S45: 1441 | T45: 2384 | U45: 5066 | V45: 1854 | W45: 13463 | X45: 0 | Y45: 0 | Z45: 0 | AA45: 0 | AB45: 1 | AC45: 1 | AD45: 0 | AE45: 0 | AF45: 0 | AG45: 0 | AH45: 0 | AI45: 0 | AJ45: 0 | AK45: 0 | AL45: 0 | AM45: 0 | AN45: 0 | AO45: 0 | AP45: 0 | AQ45: 0 | AR45: 0 | AS45: 4 | AT45: 0 | AU45: 4 | AV45: 0 | AW45: 0 | AX45: 0 | AY45: 0 | AZ45: 0 | BA45: 0 | BB45: 0 | BC45: 0 | BD45: 0 | BE45: 0 | BF45: 0 | BG45: 0 | BH45: 0 | BI45: 0 | BJ45: 0 | BK45: 0 | BL45: 0 | BM45: 0 | BN45: 0 | BO45: 0 | BP45: 0 | BQ45: 0 | BR45: 0 | BS45: 0 | BT45: 0 | BU45: 0 | BV45: 0 | BW45: 0 | BX45: 0 | BY45: 0 | BZ45: 0 | CA45: 0 | CB45: 0 | CC45: 0 | CD45: 0 | CE45: 0 | CF45: 0 | CG45: 0 | CH45: 0 | CI45: 0 | CJ45: 0 | CK45: 0 | CL45: 0 | CM45: 0 | CN45: 0 | CO45: 1 | CP45: 0 | CQ45: 0 | CR45: 0 | CS45: 0 | CT45: 0 | CU45: 1 | CV45: 0 | CW45: 0 | CX45: 0 | CY45: 0 | CZ45: 0 | DA45: 0 | DB45: 0 | DC45: 0 | DD45: 0 | DE45: 0 | DF45: 0 | DG45: 0 | DH45: 0 | DI45: 0 | DJ45: 0 | DK45: 0 | DL45: 0 | DM45: 0 | DN45: 0 | DO45: 0 | DP45: 0 | DQ45: 0 | DR45: 0 | DS45: 0 | DT45: 0 | DU45: 0 | DV45: 0 | DW45: 0 | DX45: 0 | DY45: 0 | DZ45: 1 | EA45: 3 | EB45: 8 | EC45: 22 | ED45: 2 | EE45: 0 | EF45: 1 | EG45: 1 | EH45: 2 | EI45: 30 | EJ45: 0 | EK45: 0 | EL45: 0 | EM45: 0 | EN45: 0 | EO45: 0 | EP45: 0 | EQ45: 0 | ER45: 0 | ES45: 0 | ET45: 0 | EU45: 0 | EV45: 0 | EW45: 0 | EX45: 0 | EY45: 0 | EZ45: 0 | FA45: 0 | FB45: 0 | FC45: 0 | FD45: 0 | FE45: 0 | FF45: 0 | FG45: 0 | FH45: 0 | FI45: 0 | FJ45: 0 | FK45: 0 | FL45: 0 | FM45: 0 | FN45: 0 | FO45: 0 | FP45: 0 | FQ45: 0 | FR45: 0 | FS45: 0 | FT45: 0 | FU45: 0 | FV45: 0 | FW45: 0 | FX45: 0 | FY45: 0 | FZ45: 0 | GA45: 0 | GB45: 0 | GC45: 0 | GD45: 0 | GE45: 0 | GF45: 0 | GG45: 0 | GH45: 0 | GI45: 0 | GJ45: 0 | GK45: 0 | GL45: 0 | GM45: 0 | GN45: 0 | GO45: 0 | GP45: 0 | GQ45: 0 | GR45: 0 | GS45: 0 | GT45: 0 | GU45: 0 | GV45: 0 | GW45: 0 | GX45: 0 | GY45: 0 | GZ45: 0 | HA45: 0 | HB45: 0 | HC45: 0 | HD45: 0 | HE45: 0 | HF45: 0 | HG45: 0 | HH45: 0 | HI45: 0 | HJ45: 0 | HK45: 0 | HL45: 0 | HM45: 0 | HN45: 0 | HO45: 0 | HP45: 0 | HQ45: 0 | HR45: 0 | HS45: 0 | HT45: 0 | HU45: 0 | HV45: 0 | HW45: 0
A50: Anio | B50: 2024
A51: Red | B51: LA CONVENCION
A52: UE | B52: (Todas)
A53: MicroRed | B53: (Todas)
A54: EESS | B54: (Todas)
A55: Provincia | B55: (Todas)
A56: Distrito | B56: (Todas)
A58: Etiquetas de fila | B58: BAS001 | C58: BAS002 | D58: BAS003 | E58: BAS004 | F58: BAS005 | G58: BAS006 | H58: BAS007 | I58: BAS008 | J58: BAS009 | K58: BAS010 | L58: BAS011 | M58: BAS012 | N58: BAS013 | O58: BAS014 | P58: BAS015 | Q58: BAS016 | R58: BAS017 | S58: BAS018 | T58: BAS019 | U58: BAS020 | V58: BAS021 | W58: BAS022 | X58: BAS023 | Y58: BAS024 | Z58: BAS025 | AA58: BAS026 | AB58: BAS027 | AC58: BAS028 | AD58: BAS029 | AE58: BAS030 | AF58: BAS031 | AG58: BAS032 | AH58: BAS033 | AI58: BAS034 | AJ58: BAS035 | AK58: BAS036 | AL58: BAS037 | AM58: BAS038 | AN58: BAS039 | AO58: BAS040 | AP58: BAS041 | AQ58: BAS042 | AR58: BAS043 | AS58: BAS044 | AT58: BAS045 | AU58: BAS046 | AV58: BAS047 | AW58: BAS048 | AX58: BAS049 | AY58: BAS050 | AZ58: BAS051 | BA58: BAS052 | BB58: BAS053 | BC58: BAS054 | BD58: BAS055 | BE58: BAS056 | BF58: BAS057 | BG58: BAS058 | BH58: BAS059 | BI58: BAS060 | BJ58: BAS061 | BK58: BAS062 | BL58: BAS063 | BM58: BAS064 | BN58: BAS065 | BO58: BAS066 | BP58: BAS067 | BQ58: BAS068 | BR58: BAS069 | BS58: BAS070 | BT58: BAS071 | BU58: BAS072 | BV58: BAS073 | BW58: BAS074 | BX58: BAS075 | BY58: BAS076 | BZ58: BAS077 | CA58: BAS078 | CB58: BAS079 | CC58: BAS080 | CD58: BAS081 | CE58: BAS082 | CF58: BAS083 | CG58: BAS084 | CH58: BAS085 | CI58: BAS086 | CJ58: BAS087 | CK58: BAS088 | CL58: BAS089 | CM58: BAS090 | CN58: BAS091 | CO58: BAS092 | CP58: BAS093 | CQ58: BAS094 | CR58: BAS095 | CS58: BAS096 | CT58: BAS097 | CU58: BAS098 | CV58: BAS099 | CW58: BAS100 | CX58: BAS101 | CY58: BAS102 | CZ58: BAS103 | DA58: BAS104 | DB58: BAS105 | DC58: BAS106 | DD58: BAS107 | DE58: BAS108 | DF58: BAS109 | DG58: BAS110 | DH58: BAS111 | DI58: BAS112 | DJ58: BAS113 | DK58: BAS114 | DL58: BAS115 | DM58: BAS116 | DN58: BAS117 | DO58: BAS118 | DP58: BAS119 | DQ58: BAS120 | DR58: BAS121 | DS58: BAS122 | DT58: BAS123 | DU58: BAS124 | DV58: BAS125 | DW58: BAS126 | DX58: BAS127 | DY58: BAS128 | DZ58: BAS129 | EA58: BAS130 | EB58: BAS131 | EC58: BAS132 | ED58: BAS133 | EE58: BAS134 | EF58: BAS135 | EG58: BAS136 | EH58: BAS137 | EI58: BAS138 | EJ58: BAS139 | EK58: BAS140 | EL58: BAS141 | EM58: BAS142 | EN58: BAS143 | EO58: BAS144 | EP58: BAS145 | EQ58: BAS146 | ER58: BAS147 | ES58: BAS148 | ET58: BAS149 | EU58: BAS150 | EV58: BAS151 | EW58: BAS152 | EX58: BAS153 | EY58: BAS154 | EZ58: BAS155 | FA58: BAS156 | FB58: BAS157 | FC58: BAS158 | FD58: BAS159 | FE58: BAS160 | FF58: BAS161 | FG58: BAS162 | FH58: BAS163 | FI58: BAS164 | FJ58: BAS165 | FK58: BAS166 | FL58: BAS167 | FM58: BAS168 | FN58: BAS169 | FO58: BAS170 | FP58: BAS171 | FQ58: BAS172 | FR58: BAS173 | FS58: BAS174 | FT58: BAS175 | FU58: BAS176 | FV58: BAS177 | FW58: BAS178 | FX58: BAS179 | FY58: BAS180 | FZ58: BAS181 | GA58: BAS182 | GB58: BAS183 | GC58: BAS184 | GD58: BAS185 | GE58: BAS186 | GF58: BAS187 | GG58: BAS188 | GH58: BAS189 | GI58: BAS190 | GJ58: BAS191 | GK58: BAS192 | GL58: BAS193 | GM58: BAS194 | GN58: BAS195 | GO58: BAS196 | GP58: BAS197 | GQ58: BAS198 | GR58: BAS199 | GS58: BAS200 | GT58: BAS201 | GU58: BAS202 | GV58: BAS203 | GW58: BAS204 | GX58: BAS205 | GY58: BAS206 | GZ58: BAS207 | HA58: BAS208 | HB58: BAS209 | HC58: BAS210 | HD58: BAS211 | HE58: BAS212 | HF58: BAS213 | HG58: BAS214 | HH58: BAS215 | HI58: BAS216 | HJ58: BAS217 | HK58: BAS218 | HL58: BAS219 | HM58: BAS220 | HN58: BAS221 | HO58: BAS222 | HP58: BAS223 | HQ58: BAS224 | HR58: BAS225 | HS58: BAS226 | HT58: BAS227 | HU58: BAS228 | HV58: BAS229 | HW58: BAS230
A59: 1 | B59: 284 | C59: 45 | D59: 158 | E59: 417 | F59: 186 | G59: 1090 | H59: 0 | I59: 0 | J59: 0 | K59: 0 | L59: 4 | M59: 9 | N59: 20 | O59: 50 | P59: 8 | Q59: 91 | R59: 4 | S59: 8 | T59: 14 | U59: 27 | V59: 5 | W59: 58 | X59: 0 | Y59: 0 | Z59: 0 | AA59: 0 | AB59: 0 | AC59: 0 | AD59: 0 | AE59: 0 | AF59: 3 | AG59: 14 | AH59: 3 | AI59: 20 | AJ59: 0 | AK59: 0 | AL59: 0 | AM59: 0 | AN59: 0 | AO59: 0 | AP59: 1 | AQ59: 0 | AR59: 1 | AS59: 2 | AT59: 1 | AU59: 0 | AV59: 1 | AW59: 0 | AX59: 0 | AY59: 3 | AZ59: 0 | BA59: 0 | BB59: 0 | BC59: 0 | BD59: 0 | BE59: 0 | BF59: 0 | BG59: 0 | BH59: 0 | BI59: 0 | BJ59: 0 | BK59: 0 | BL59: 0 | BM59: 0 | BN59: 0 | BO59: 0 | BP59: 0 | BQ59: 0 | BR59: 0 | BS59: 0 | BT59: 0 | BU59: 0 | BV59: 1 | BW59: 0 | BX59: 0 | BY59: 0 | BZ59: 0 | CA59: 0 | CB59: 1 | CC59: 0 | CD59: 0 | CE59: 0 | CF59: 0 | CG59: 0 | CH59: 0 | CI59: 0 | CJ59: 0 | CK59: 0 | CL59: 0 | CM59: 0 | CN59: 0 | CO59: 0 | CP59: 0 | CQ59: 0 | CR59: 0 | CS59: 0 | CT59: 0 | CU59: 0 | CV59: 0 | CW59: 0 | CX59: 0 | CY59: 0 | CZ59: 0 | DA59: 0 | DB59: 0 | DC59: 0 | DD59: 0 | DE59: 0 | DF59: 0 | DG59: 0 | DH59: 0 | DI59: 0 | DJ59: 0 | DK59: 0 | DL59: 0 | DM59: 0 | DN59: 0 | DO59: 0 | DP59: 0 | DQ59: 0 | DR59: 0 | DS59: 0 | DT59: 0 | DU59: 0 | DV59: 0 | DW59: 0 | DX59: 0 | DY59: 0 | DZ59: 0 | EA59: 0 | EB59: 0 | EC59: 0 | ED59: 0 | EE59: 0 | EF59: 0 | EG59: 0 | EH59: 0 | EI59: 0 | EJ59: 0 | EK59: 0 | EL59: 0 | EM59: 0 | EN59: 0 | EO59: 0 | EP59: 0 | EQ59: 0 | ER59: 0 | ES59: 0 | ET59: 0 | EU59: 0 | EV59: 0 | EW59: 0 | EX59: 0 | EY59: 0 | EZ59: 0 | FA59: 0 | FB59: 0 | FC59: 0 | FD59: 0 | FE59: 0 | FF59: 0 | FG59: 0 | FH59: 0 | FI59: 0 | FJ59: 0 | FK59: 0 | FL59: 0 | FM59: 0 | FN59: 0 | FO59: 0 | FP59: 0 | FQ59: 0 | FR59: 0 | FS59: 0 | FT59: 0 | FU59: 0 | FV59: 0 | FW59: 0 | FX59: 0 | FY59: 0 | FZ59: 0 | GA59: 0 | GB59: 0 | GC59: 0 | GD59: 0 | GE59: 0 | GF59: 0 | GG59: 0 | GH59: 0 | GI59: 0 | GJ59: 0 | GK59: 0 | GL59: 0 | GM59: 0 | GN59: 0 | GO59: 0 | GP59: 0 | GQ59: 0 | GR59: 0 | GS59: 0 | GT59: 0 | GU59: 0 | GV59: 0 | GW59: 0 | GX59: 0 | GY59: 0 | GZ59: 0 | HA59: 0 | HB59: 0 | HC59: 0 | HD59: 0 | HE59: 0 | HF59: 0 | HG59: 0 | HH59: 0 | HI59: 0 | HJ59: 0 | HK59: 0 | HL59: 0 | HM59: 0 | HN59: 0 | HO59: 0 | HP59: 0 | HQ59: 0 | HR59: 0 | HS59: 0 | HT59: 0 | HU59: 0 | HV59: 0 | HW59: 0
A60: 2 | B60: 147 | C60: 34 | D60: 75 | E60: 238 | F60: 109 | G60: 603 | H60: 0 | I60: 0 | J60: 0 | K60: 0 | L60: 5 | M60: 8 | N60: 11 | O60: 37 | P60: 12 | Q60: 73 | R60: 3 | S60: 5 | T60: 7 | U60: 15 | V60: 6 | W60: 36 | X60: 0 | Y60: 0 | Z60: 0 | AA60: 0 | AB60: 0 | AC60: 0 | AD60: 1 | AE60: 2 | AF60: 1 | AG60: 8 | AH60: 1 | AI60: 13 | AJ60: 0 | AK60: 0 | AL60: 0 | AM60: 0 | AN60: 0 | AO60: 0 | AP60: 0 | AQ60: 0 | AR60: 0 | AS60: 3 | AT60: 1 | AU60: 0 | AV60: 0 | AW60: 0 | AX60: 0 | AY60: 3 | AZ60: 0 | BA60: 0 | BB60: 0 | BC60: 0 | BD60: 0 | BE60: 0 | BF60: 0 | BG60: 0 | BH60: 0 | BI60: 0 | BJ60: 0 | BK60: 0 | BL60: 0 | BM60: 0 | BN60: 0 | BO60: 0 | BP60: 0 | BQ60: 0 | BR60: 0 | BS60: 0 | BT60: 0 | BU60: 1 | BV60: 2 | BW60: 1 | BX60: 0 | BY60: 0 | BZ60: 0 | CA60: 0 | CB60: 3 | CC60: 0 | CD60: 0 | CE60: 0 | CF60: 0 | CG60: 0 | CH60: 0 | CI60: 0 | CJ60: 0 | CK60: 0 | CL60: 0 | CM60: 0 | CN60: 0 | CO60: 0 | CP60: 0 | CQ60: 0 | CR60: 0 | CS60: 0 | CT60: 0 | CU60: 0 | CV60: 0 | CW60: 0 | CX60: 0 | CY60: 0 | CZ60: 0 | DA60: 0 | DB60: 0 | DC60: 0 | DD60: 0 | DE60: 0 | DF60: 0 | DG60: 0 | DH60: 0 | DI60: 0 | DJ60: 1 | DK60: 0 | DL60: 0 | DM60: 0 | DN60: 0 | DO60: 0 | DP60: 1 | DQ60: 0 | DR60: 0 | DS60: 0 | DT60: 0 | DU60: 0 | DV60: 0 | DW60: 0 | DX60: 0 | DY60: 0 | DZ60: 0 | EA60: 0 | EB60: 0 | EC60: 0 | ED60: 0 | EE60: 0 | EF60: 0 | EG60: 0 | EH60: 0 | EI60: 0 | EJ60: 0 | EK60: 0 | EL60: 0 | EM60: 0 | EN60: 0 | EO60: 0 | EP60: 0 | EQ60: 0 | ER60: 0 | ES60: 0 | ET60: 0 | EU60: 0 | EV60: 0 | EW60: 0 | EX60: 0 | EY60: 0 | EZ60: 0 | FA60: 0 | FB60: 0 | FC60: 0 | FD60: 0 | FE60: 0 | FF60: 0 | FG60: 0 | FH60: 0 | FI60: 0 | FJ60: 0 | FK60: 0 | FL60: 0 | FM60: 0 | FN60: 0 | FO60: 0 | FP60: 0 | FQ60: 0 | FR60: 0 | FS60: 0 | FT60: 0 | FU60: 0 | FV60: 0 | FW60: 0 | FX60: 0 | FY60: 0 | FZ60: 0 | GA60: 0 | GB60: 0 | GC60: 0 | GD60: 0 | GE60: 0 | GF60: 0 | GG60: 0 | GH60: 0 | GI60: 0 | GJ60: 0 | GK60: 0 | GL60: 0 | GM60: 0 | GN60: 0 | GO60: 0 | GP60: 0 | GQ60: 0 | GR60: 0 | GS60: 0 | GT60: 0 | GU60: 0 | GV60: 0 | GW60: 0 | GX60: 0 | GY60: 0 | GZ60: 0 | HA60: 0 | HB60: 0 | HC60: 0 | HD60: 0 | HE60: 0 | HF60: 0 | HG60: 0 | HH60: 0 | HI60: 0 | HJ60: 0 | HK60: 0 | HL60: 0 | HM60: 0 | HN60: 0 | HO60: 0 | HP60: 0 | HQ60: 0 | HR60: 0 | HS60: 0 | HT60: 0 | HU60: 0 | HV60: 0 | HW60: 0
A61: 3 | B61: 87 | C61: 40 | D61: 67 | E61: 148 | F61: 57 | G61: 399 | H61: 0 | I61: 0 | J61: 0 | K61: 0 | L61: 4 | M61: 4 | N61: 16 | O61: 28 | P61: 16 | Q61: 68 | R61: 1 | S61: 4 | T61: 7 | U61: 13 | V61: 5 | W61: 30 | X61: 0 | Y61: 0 | Z61: 0 | AA61: 0 | AB61: 0 | AC61: 0 | AD61: 1 | AE61: 0 | AF61: 1 | AG61: 8 | AH61: 5 | AI61: 15 | AJ61: 0 | AK61: 0 | AL61: 0 | AM61: 0 | AN61: 0 | AO61: 0 | AP61: 0 | AQ61: 0 | AR61: 0 | AS61: 0 | AT61: 2 | AU61: 0 | AV61: 0 | AW61: 0 | AX61: 0 | AY61: 0 | AZ61: 0 | BA61: 0 | BB61: 0 | BC61: 0 | BD61: 0 | BE61: 0 | BF61: 0 | BG61: 0 | BH61: 0 | BI61: 0 | BJ61: 0 | BK61: 0 | BL61: 0 | BM61: 0 | BN61: 0 | BO61: 0 | BP61: 0 | BQ61: 0 | BR61: 0 | BS61: 1 | BT61: 1 | BU61: 0 | BV61: 1 | BW61: 0 | BX61: 0 | BY61: 1 | BZ61: 1 | CA61: 0 | CB61: 1 | CC61: 0 | CD61: 0 | CE61: 0 | CF61: 1 | CG61: 0 | CH61: 0 | CI61: 0 | CJ61: 0 | CK61: 0 | CL61: 1 | CM61: 0 | CN61: 0 | CO61: 0 | CP61: 0 | CQ61: 0 | CR61: 0 | CS61: 0 | CT61: 0 | CU61: 0 | CV61: 0 | CW61: 0 | CX61: 0 | CY61: 0 | CZ61: 0 | DA61: 0 | DB61: 0 | DC61: 0 | DD61: 0 | DE61: 0 | DF61: 0 | DG61: 0 | DH61: 0 | DI61: 0 | DJ61: 1 | DK61: 0 | DL61: 0 | DM61: 0 | DN61: 0 | DO61: 0 | DP61: 1 | DQ61: 0 | DR61: 0 | DS61: 0 | DT61: 0 | DU61: 0 | DV61: 0 | DW61: 0 | DX61: 0 | DY61: 0 | DZ61: 0 | EA61: 0 | EB61: 0 | EC61: 0 | ED61: 0 | EE61: 0 | EF61: 0 | EG61: 0 | EH61: 0 | EI61: 0 | EJ61: 0 | EK61: 0 | EL61: 0 | EM61: 0 | EN61: 0 | EO61: 0 | EP61: 0 | EQ61: 0 | ER61: 0 | ES61: 0 | ET61: 0 | EU61: 0 | EV61: 0 | EW61: 0 | EX61: 0 | EY61: 0 | EZ61: 0 | FA61: 0 | FB61: 0 | FC61: 0 | FD61: 0 | FE61: 0 | FF61: 0 | FG61: 0 | FH61: 0 | FI61: 0 | FJ61: 0 | FK61: 0 | FL61: 0 | FM61: 0 | FN61: 0 | FO61: 0 | FP61: 0 | FQ61: 0 | FR61: 0 | FS61: 0 | FT61: 0 | FU61: 0 | FV61: 0 | FW61: 0 | FX61: 0 | FY61: 0 | FZ61: 0 | GA61: 0 | GB61: 0 | GC61: 0 | GD61: 0 | GE61: 0 | GF61: 0 | GG61: 0 | GH61: 0 | GI61: 0 | GJ61: 0 | GK61: 0 | GL61: 0 | GM61: 0 | GN61: 0 | GO61: 0 | GP61: 0 | GQ61: 0 | GR61: 0 | GS61: 0 | GT61: 0 | GU61: 0 | GV61: 0 | GW61: 0 | GX61: 0 | GY61: 0 | GZ61: 0 | HA61: 0 | HB61: 0 | HC61: 0 | HD61: 0 | HE61: 0 | HF61: 0 | HG61: 0 | HH61: 0 | HI61: 0 | HJ61: 0 | HK61: 0 | HL61: 0 | HM61: 0 | HN61: 0 | HO61: 0 | HP61: 0 | HQ61: 0 | HR61: 0 | HS61: 0 | HT61: 0 | HU61: 0 | HV61: 0 | HW61: 0
A62: 4 | B62: 321 | C62: 159 | D62: 60 | E62: 195 | F62: 64 | G62: 799 | H62: 0 | I62: 0 | J62: 0 | K62: 0 | L62: 17 | M62: 3 | N62: 16 | O62: 45 | P62: 26 | Q62: 107 | R62: 8 | S62: 2 | T62: 5 | U62: 19 | V62: 7 | W62: 41 | X62: 0 | Y62: 0 | Z62: 0 | AA62: 0 | AB62: 0 | AC62: 0 | AD62: 3 | AE62: 0 | AF62: 6 | AG62: 9 | AH62: 7 | AI62: 25 | AJ62: 0 | AK62: 0 | AL62: 0 | AM62: 0 | AN62: 0 | AO62: 0 | AP62: 1 | AQ62: 0 | AR62: 0 | AS62: 3 | AT62: 0 | AU62: 0 | AV62: 1 | AW62: 0 | AX62: 0 | AY62: 3 | AZ62: 0 | BA62: 0 | BB62: 0 | BC62: 0 | BD62: 0 | BE62: 0 | BF62: 0 | BG62: 0 | BH62: 0 | BI62: 0 | BJ62: 0 | BK62: 0 | BL62: 0 | BM62: 0 | BN62: 0 | BO62: 0 | BP62: 0 | BQ62: 0 | BR62: 0 | BS62: 1 | BT62: 0 | BU62: 0 | BV62: 1 | BW62: 1 | BX62: 0 | BY62: 1 | BZ62: 0 | CA62: 0 | CB62: 1 | CC62: 0 | CD62: 0 | CE62: 0 | CF62: 0 | CG62: 0 | CH62: 0 | CI62: 0 | CJ62: 0 | CK62: 0 | CL62: 0 | CM62: 0 | CN62: 0 | CO62: 0 | CP62: 0 | CQ62: 0 | CR62: 0 | CS62: 0 | CT62: 0 | CU62: 0 | CV62: 0 | CW62: 0 | CX62: 0 | CY62: 0 | CZ62: 0 | DA62: 0 | DB62: 0 | DC62: 0 | DD62: 0 | DE62: 0 | DF62: 0 | DG62: 0 | DH62: 0 | DI62: 1 | DJ62: 0 | DK62: 0 | DL62: 0 | DM62: 0 | DN62: 0 | DO62: 0 | DP62: 1 | DQ62: 0 | DR62: 0 | DS62: 0 | DT62: 0 | DU62: 0 | DV62: 0 | DW62: 0 | DX62: 0 | DY62: 0 | DZ62: 0 | EA62: 0 | EB62: 0 | EC62: 0 | ED62: 0 | EE62: 0 | EF62: 0 | EG62: 0 | EH62: 0 | EI62: 0 | EJ62: 0 | EK62: 0 | EL62: 0 | EM62: 0 | EN62: 0 | EO62: 0 | EP62: 0 | EQ62: 0 | ER62: 0 | ES62: 0 | ET62: 0 | EU62: 0 | EV62: 0 | EW62: 0 | EX62: 0 | EY62: 0 | EZ62: 0 | FA62: 0 | FB62: 0 | FC62: 0 | FD62: 0 | FE62: 0 | FF62: 0 | FG62: 0 | FH62: 0 | FI62: 0 | FJ62: 0 | FK62: 0 | FL62: 0 | FM62: 0 | FN62: 0 | FO62: 0 | FP62: 0 | FQ62: 0 | FR62: 0 | FS62: 0 | FT62: 0 | FU62: 0 | FV62: 0 | FW62: 0 | FX62: 0 | FY62: 0 | FZ62: 0 | GA62: 0 | GB62: 0 | GC62: 0 | GD62: 0 | GE62: 0 | GF62: 0 | GG62: 0 | GH62: 0 | GI62: 0 | GJ62: 0 | GK62: 0 | GL62: 0 | GM62: 0 | GN62: 0 | GO62: 0 | GP62: 0 | GQ62: 0 | GR62: 0 | GS62: 0 | GT62: 0 | GU62: 0 | GV62: 0 | GW62: 2 | GX62: 0 | GY62: 0 | GZ62: 0 | HA62: 0 | HB62: 0 | HC62: 0 | HD62: 0 | HE62: 0 | HF62: 0 | HG62: 0 | HH62: 0 | HI62: 0 | HJ62: 0 | HK62: 0 | HL62: 0 | HM62: 0 | HN62: 0 | HO62: 0 | HP62: 0 | HQ62: 0 | HR62: 0 | HS62: 0 | HT62: 0 | HU62: 0 | HV62: 0 | HW62: 0
A63: 5 | B63: 28 | C63: 45 | D63: 46 | E63: 92 | F63: 61 | G63: 272 | H63: 0 | I63: 0 | J63: 0 | K63: 0 | L63: 8 | M63: 3 | N63: 15 | O63: 50 | P63: 11 | Q63: 87 | R63: 5 | S63: 2 | T63: 5 | U63: 20 | V63: 4 | W63: 36 | X63: 0 | Y63: 0 | Z63: 0 | AA63: 0 | AB63: 0 | AC63: 0 | AD63: 3 | AE63: 0 | AF63: 5 | AG63: 9 | AH63: 2 | AI63: 19 | AJ63: 0 | AK63: 0 | AL63: 0 | AM63: 0 | AN63: 0 | AO63: 0 | AP63: 0 | AQ63: 1 | AR63: 2 | AS63: 3 | AT63: 1 | AU63: 0 | AV63: 0 | AW63: 1 | AX63: 0 | AY63: 5 | AZ63: 0 | BA63: 0 | BB63: 0 | BC63: 0 | BD63: 0 | BE63: 0 | BF63: 0 | BG63: 0 | BH63: 0 | BI63: 0 | BJ63: 0 | BK63: 0 | BL63: 0 | BM63: 0 | BN63: 0 | BO63: 0 | BP63: 0 | BQ63: 0 | BR63: 0 | BS63: 2 | BT63: 1 | BU63: 0 | BV63: 1 | BW63: 0 | BX63: 0 | BY63: 1 | BZ63: 2 | CA63: 0 | CB63: 1 | CC63: 0 | CD63: 0 | CE63: 0 | CF63: 0 | CG63: 0 | CH63: 0 | CI63: 0 | CJ63: 0 | CK63: 0 | CL63: 0 | CM63: 0 | CN63: 0 | CO63: 0 | CP63: 0 | CQ63: 0 | CR63: 0 | CS63: 0 | CT63: 0 | CU63: 0 | CV63: 0 | CW63: 0 | CX63: 0 | CY63: 0 | CZ63: 0 | DA63: 0 | DB63: 0 | DC63: 0 | DD63: 0 | DE63: 0 | DF63: 0 | DG63: 0 | DH63: 0 | DI63: 0 | DJ63: 1 | DK63: 0 | DL63: 0 | DM63: 0 | DN63: 0 | DO63: 0 | DP63: 1 | DQ63: 0 | DR63: 0 | DS63: 0 | DT63: 0 | DU63: 0 | DV63: 0 | DW63: 0 | DX63: 0 | DY63: 0 | DZ63: 0 | EA63: 0 | EB63: 0 | EC63: 0 | ED63: 0 | EE63: 0 | EF63: 0 | EG63: 0 | EH63: 0 | EI63: 0 | EJ63: 0 | EK63: 0 | EL63: 0 | EM63: 0 | EN63: 0 | EO63: 0 | EP63: 0 | EQ63: 0 | ER63: 0 | ES63: 0 | ET63: 0 | EU63: 0 | EV63: 0 | EW63: 0 | EX63: 0 | EY63: 0 | EZ63: 0 | FA63: 0 | FB63: 0 | FC63: 0 | FD63: 0 | FE63: 0 | FF63: 0 | FG63: 0 | FH63: 0 | FI63: 0 | FJ63: 0 | FK63: 0 | FL63: 0 | FM63: 0 | FN63: 0 | FO63: 0 | FP63: 0 | FQ63: 0 | FR63: 0 | FS63: 0 | FT63: 0 | FU63: 0 | FV63: 0 | FW63: 0 | FX63: 0 | FY63: 0 | FZ63: 0 | GA63: 0 | GB63: 0 | GC63: 0 | GD63: 0 | GE63: 0 | GF63: 0 | GG63: 0 | GH63: 0 | GI63: 1 | GJ63: 1 | GK63: 1 | GL63: 0 | GM63: 0 | GN63: 0 | GO63: 0 | GP63: 1 | GQ63: 1 | GR63: 1 | GS63: 3 | GT63: 0 | GU63: 0 | GV63: 1 | GW63: 2 | GX63: 0 | GY63: 2 | GZ63: 1 | HA63: 0 | HB63: 1 | HC63: 0 | HD63: 0 | HE63: 0 | HF63: 0 | HG63: 0 | HH63: 0 | HI63: 0 | HJ63: 0 | HK63: 0 | HL63: 0 | HM63: 0 | HN63: 0 | HO63: 0 | HP63: 0 | HQ63: 0 | HR63: 0 | HS63: 0 | HT63: 0 | HU63: 0 | HV63: 0 | HW63: 0
A64: 6 | B64: 29 | C64: 11 | D64: 29 | E64: 87 | F64: 34 | G64: 190 | H64: 0 | I64: 0 | J64: 0 | K64: 0 | L64: 13 | M64: 0 | N64: 14 | O64: 24 | P64: 24 | Q64: 75 | R64: 11 | S64: 0 | T64: 10 | U64: 10 | V64: 7 | W64: 38 | X64: 0 | Y64: 0 | Z64: 0 | AA64: 0 | AB64: 0 | AC64: 0 | AD64: 0 | AE64: 0 | AF64: 1 | AG64: 7 | AH64: 6 | AI64: 14 | AJ64: 0 | AK64: 0 | AL64: 0 | AM64: 1 | AN64: 0 | AO64: 1 | AP64: 1 | AQ64: 0 | AR64: 2 | AS64: 1 | AT64: 1 | AU64: 0 | AV64: 1 | AW64: 0 | AX64: 2 | AY64: 1 | AZ64: 0 | BA64: 0 | BB64: 0 | BC64: 0 | BD64: 0 | BE64: 0 | BF64: 0 | BG64: 0 | BH64: 0 | BI64: 0 | BJ64: 0 | BK64: 0 | BL64: 1 | BM64: 0 | BN64: 0 | BO64: 0 | BP64: 0 | BQ64: 0 | BR64: 1 | BS64: 1 | BT64: 0 | BU64: 0 | BV64: 0 | BW64: 1 | BX64: 0 | BY64: 1 | BZ64: 0 | CA64: 0 | CB64: 0 | CC64: 0 | CD64: 0 | CE64: 0 | CF64: 0 | CG64: 0 | CH64: 0 | CI64: 0 | CJ64: 0 | CK64: 0 | CL64: 0 | CM64: 0 | CN64: 0 | CO64: 0 | CP64: 0 | CQ64: 0 | CR64: 0 | CS64: 0 | CT64: 0 | CU64: 0 | CV64: 0 | CW64: 0 | CX64: 0 | CY64: 0 | CZ64: 0 | DA64: 0 | DB64: 0 | DC64: 0 | DD64: 0 | DE64: 0 | DF64: 0 | DG64: 0 | DH64: 0 | DI64: 0 | DJ64: 0 | DK64: 0 | DL64: 0 | DM64: 0 | DN64: 0 | DO64: 0 | DP64: 0 | DQ64: 0 | DR64: 0 | DS64: 0 | DT64: 0 | DU64: 0 | DV64: 0 | DW64: 0 | DX64: 0 | DY64: 0 | DZ64: 0 | EA64: 0 | EB64: 0 | EC64: 0 | ED64: 0 | EE64: 0 | EF64: 0 | EG64: 0 | EH64: 0 | EI64: 0 | EJ64: 0 | EK64: 0 | EL64: 0 | EM64: 0 | EN64: 0 | EO64: 0 | EP64: 0 | EQ64: 0 | ER64: 0 | ES64: 0 | ET64: 0 | EU64: 0 | EV64: 0 | EW64: 0 | EX64: 0 | EY64: 0 | EZ64: 0 | FA64: 0 | FB64: 0 | FC64: 0 | FD64: 0 | FE64: 0 | FF64: 0 | FG64: 0 | FH64: 0 | FI64: 0 | FJ64: 0 | FK64: 0 | FL64: 0 | FM64: 0 | FN64: 0 | FO64: 0 | FP64: 0 | FQ64: 0 | FR64: 0 | FS64: 0 | FT64: 0 | FU64: 0 | FV64: 0 | FW64: 0 | FX64: 0 | FY64: 0 | FZ64: 0 | GA64: 0 | GB64: 0 | GC64: 0 | GD64: 0 | GE64: 0 | GF64: 0 | GG64: 0 | GH64: 0 | GI64: 0 | GJ64: 0 | GK64: 0 | GL64: 0 | GM64: 0 | GN64: 0 | GO64: 0 | GP64: 0 | GQ64: 0 | GR64: 0 | GS64: 15 | GT64: 1 | GU64: 3 | GV64: 5 | GW64: 2 | GX64: 0 | GY64: 5 | GZ64: 10 | HA64: 3 | HB64: 8 | HC64: 1 | HD64: 0 | HE64: 2 | HF64: 6 | HG64: 1 | HH64: 0 | HI64: 0 | HJ64: 1 | HK64: 0 | HL64: 8 | HM64: 0 | HN64: 0 | HO64: 0 | HP64: 0 | HQ64: 0 | HR64: 0 | HS64: 0 | HT64: 0 | HU64: 0 | HV64: 0 | HW64: 0
A65: 7 | B65: 6 | C65: 6 | D65: 28 | E65: 53 | F65: 13 | G65: 106 | H65: 0 | I65: 0 | J65: 0 | K65: 0 | L65: 19 | M65: 6 | N65: 8 | O65: 49 | P65: 21 | Q65: 103 | R65: 11 | S65: 5 | T65: 5 | U65: 21 | V65: 3 | W65: 45 | X65: 0 | Y65: 0 | Z65: 0 | AA65: 0 | AB65: 0 | AC65: 0 | AD65: 2 | AE65: 0 | AF65: 1 | AG65: 8 | AH65: 8 | AI65: 19 | AJ65: 0 | AK65: 0 | AL65: 0 | AM65: 0 | AN65: 0 | AO65: 0 | AP65: 1 | AQ65: 0 | AR65: 0 | AS65: 2 | AT65: 0 | AU65: 0 | AV65: 1 | AW65: 0 | AX65: 0 | AY65: 2 | AZ65: 0 | BA65: 0 | BB65: 0 | BC65: 0 | BD65: 0 | BE65: 0 | BF65: 0 | BG65: 0 | BH65: 0 | BI65: 0 | BJ65: 0 | BK65: 0 | BL65: 0 | BM65: 0 | BN65: 0 | BO65: 0 | BP65: 0 | BQ65: 0 | BR65: 0 | BS65: 0 | BT65: 0 | BU65: 0 | BV65: 0 | BW65: 0 | BX65: 0 | BY65: 0 | BZ65: 0 | CA65: 0 | CB65: 0 | CC65: 0 | CD65: 0 | CE65: 0 | CF65: 0 | CG65: 0 | CH65: 0 | CI65: 0 | CJ65: 0 | CK65: 0 | CL65: 0 | CM65: 0 | CN65: 0 | CO65: 0 | CP65: 0 | CQ65: 0 | CR65: 0 | CS65: 0 | CT65: 0 | CU65: 0 | CV65: 0 | CW65: 0 | CX65: 0 | CY65: 0 | CZ65: 0 | DA65: 0 | DB65: 0 | DC65: 0 | DD65: 0 | DE65: 0 | DF65: 0 | DG65: 0 | DH65: 0 | DI65: 0 | DJ65: 0 | DK65: 0 | DL65: 0 | DM65: 0 | DN65: 0 | DO65: 0 | DP65: 0 | DQ65: 0 | DR65: 0 | DS65: 0 | DT65: 0 | DU65: 0 | DV65: 0 | DW65: 0 | DX65: 0 | DY65: 0 | DZ65: 0 | EA65: 0 | EB65: 0 | EC65: 0 | ED65: 0 | EE65: 0 | EF65: 0 | EG65: 0 | EH65: 0 | EI65: 0 | EJ65: 0 | EK65: 0 | EL65: 0 | EM65: 0 | EN65: 0 | EO65: 0 | EP65: 0 | EQ65: 0 | ER65: 0 | ES65: 0 | ET65: 0 | EU65: 0 | EV65: 0 | EW65: 0 | EX65: 0 | EY65: 0 | EZ65: 0 | FA65: 0 | FB65: 0 | FC65: 0 | FD65: 0 | FE65: 0 | FF65: 0 | FG65: 0 | FH65: 0 | FI65: 0 | FJ65: 0 | FK65: 0 | FL65: 0 | FM65: 0 | FN65: 0 | FO65: 0 | FP65: 0 | FQ65: 0 | FR65: 0 | FS65: 0 | FT65: 0 | FU65: 0 | FV65: 0 | FW65: 0 | FX65: 0 | FY65: 0 | FZ65: 0 | GA65: 0 | GB65: 0 | GC65: 0 | GD65: 0 | GE65: 0 | GF65: 0 | GG65: 0 | GH65: 0 | GI65: 0 | GJ65: 0 | GK65: 0 | GL65: 0 | GM65: 0 | GN65: 0 | GO65: 0 | GP65: 0 | GQ65: 0 | GR65: 0 | GS65: 1 | GT65: 0 | GU65: 1 | GV65: 0 | GW65: 1 | GX65: 0 | GY65: 1 | GZ65: 0 | HA65: 0 | HB65: 1 | HC65: 0 | HD65: 0 | HE65: 0 | HF65: 0 | HG65: 0 | HH65: 0 | HI65: 0 | HJ65: 0 | HK65: 0 | HL65: 0 | HM65: 0 | HN65: 0 | HO65: 0 | HP65: 0 | HQ65: 0 | HR65: 0 | HS65: 0 | HT65: 0 | HU65: 0 | HV65: 0 | HW65: 0
A66: 8 | B66: 8 | C66: 3 | D66: 21 | E66: 25 | F66: 10 | G66: 67 | H66: 0 | I66: 0 | J66: 0 | K66: 0 | L66: 9 | M66: 2 | N66: 15 | O66: 48 | P66: 29 | Q66: 103 | R66: 4 | S66: 2 | T66: 6 | U66: 18 | V66: 7 | W66: 37 | X66: 0 | Y66: 0 | Z66: 0 | AA66: 0 | AB66: 0 | AC66: 0 | AD66: 1 | AE66: 0 | AF66: 2 | AG66: 8 | AH66: 5 | AI66: 16 | AJ66: 0 | AK66: 0 | AL66: 0 | AM66: 0 | AN66: 0 | AO66: 0 | AP66: 0 | AQ66: 0 | AR66: 2 | AS66: 1 | AT66: 2 | AU66: 0 | AV66: 0 | AW66: 0 | AX66: 1 | AY66: 2 | AZ66: 0 | BA66: 0 | BB66: 0 | BC66: 0 | BD66: 0 | BE66: 0 | BF66: 0 | BG66: 0 | BH66: 0 | BI66: 0 | BJ66: 0 | BK66: 0 | BL66: 0 | BM66: 0 | BN66: 0 | BO66: 0 | BP66: 0 | BQ66: 0 | BR66: 0 | BS66: 0 | BT66: 0 | BU66: 0 | BV66: 1 | BW66: 1 | BX66: 0 | BY66: 0 | BZ66: 0 | CA66: 0 | CB66: 1 | CC66: 0 | CD66: 0 | CE66: 0 | CF66: 0 | CG66: 0 | CH66: 0 | CI66: 0 | CJ66: 0 | CK66: 0 | CL66: 0 | CM66: 0 | CN66: 0 | CO66: 0 | CP66: 0 | CQ66: 0 | CR66: 0 | CS66: 0 | CT66: 0 | CU66: 0 | CV66: 0 | CW66: 0 | CX66: 0 | CY66: 0 | CZ66: 0 | DA66: 0 | DB66: 0 | DC66: 0 | DD66: 0 | DE66: 0 | DF66: 0 | DG66: 0 | DH66: 0 | DI66: 0 | DJ66: 0 | DK66: 0 | DL66: 0 | DM66: 0 | DN66: 0 | DO66: 0 | DP66: 0 | DQ66: 0 | DR66: 0 | DS66: 0 | DT66: 0 | DU66: 0 | DV66: 0 | DW66: 0 | DX66: 0 | DY66: 0 | DZ66: 0 | EA66: 0 | EB66: 0 | EC66: 0 | ED66: 0 | EE66: 0 | EF66: 0 | EG66: 0 | EH66: 0 | EI66: 0 | EJ66: 0 | EK66: 0 | EL66: 0 | EM66: 0 | EN66: 0 | EO66: 0 | EP66: 0 | EQ66: 0 | ER66: 0 | ES66: 0 | ET66: 0 | EU66: 0 | EV66: 0 | EW66: 0 | EX66: 0 | EY66: 0 | EZ66: 0 | FA66: 0 | FB66: 0 | FC66: 0 | FD66: 0 | FE66: 0 | FF66: 0 | FG66: 0 | FH66: 0 | FI66: 0 | FJ66: 0 | FK66: 0 | FL66: 0 | FM66: 0 | FN66: 0 | FO66: 0 | FP66: 0 | FQ66: 0 | FR66: 0 | FS66: 0 | FT66: 0 | FU66: 0 | FV66: 0 | FW66: 0 | FX66: 0 | FY66: 0 | FZ66: 0 | GA66: 0 | GB66: 0 | GC66: 0 | GD66: 0 | GE66: 0 | GF66: 0 | GG66: 0 | GH66: 0 | GI66: 0 | GJ66: 0 | GK66: 0 | GL66: 0 | GM66: 0 | GN66: 0 | GO66: 0 | GP66: 0 | GQ66: 0 | GR66: 0 | GS66: 5 | GT66: 0 | GU66: 4 | GV66: 13 | GW66: 2 | GX66: 0 | GY66: 4 | GZ66: 1 | HA66: 1 | HB66: 16 | HC66: 0 | HD66: 0 | HE66: 0 | HF66: 0 | HG66: 0 | HH66: 0 | HI66: 0 | HJ66: 0 | HK66: 0 | HL66: 0 | HM66: 0 | HN66: 0 | HO66: 0 | HP66: 0 | HQ66: 0 | HR66: 0 | HS66: 0 | HT66: 0 | HU66: 0 | HV66: 0 | HW66: 0
A67: 11 | B67: 4 | C67: 4 | D67: 15 | E67: 21 | F67: 11 | G67: 55 | H67: 0 | I67: 0 | J67: 0 | K67: 0 | L67: 4 | M67: 6 | N67: 6 | O67: 20 | P67: 9 | Q67: 45 | R67: 4 | S67: 3 | T67: 4 | U67: 10 | V67: 6 | W67: 27 | X67: 0 | Y67: 0 | Z67: 0 | AA67: 0 | AB67: 0 | AC67: 0 | AD67: 0 | AE67: 1 | AF67: 0 | AG67: 1 | AH67: 1 | AI67: 3 | AJ67: 0 | AK67: 0 | AL67: 0 | AM67: 0 | AN67: 0 | AO67: 0 | AP67: 1 | AQ67: 1 | AR67: 2 | AS67: 1 | AT67: 0 | AU67: 0 | AV67: 1 | AW67: 1 | AX67: 1 | AY67: 2 | AZ67: 0 | BA67: 0 | BB67: 0 | BC67: 0 | BD67: 0 | BE67: 0 | BF67: 0 | BG67: 0 | BH67: 0 | BI67: 0 | BJ67: 0 | BK67: 0 | BL67: 0 | BM67: 0 | BN67: 0 | BO67: 0 | BP67: 0 | BQ67: 0 | BR67: 0 | BS67: 0 | BT67: 0 | BU67: 0 | BV67: 1 | BW67: 0 | BX67: 0 | BY67: 0 | BZ67: 0 | CA67: 0 | CB67: 1 | CC67: 0 | CD67: 0 | CE67: 0 | CF67: 0 | CG67: 0 | CH67: 0 | CI67: 0 | CJ67: 0 | CK67: 0 | CL67: 0 | CM67: 0 | CN67: 0 | CO67: 0 | CP67: 0 | CQ67: 0 | CR67: 0 | CS67: 0 | CT67: 0 | CU67: 0 | CV67: 0 | CW67: 0 | CX67: 0 | CY67: 0 | CZ67: 0 | DA67: 0 | DB67: 0 | DC67: 0 | DD67: 0 | DE67: 0 | DF67: 0 | DG67: 0 | DH67: 0 | DI67: 0 | DJ67: 0 | DK67: 0 | DL67: 0 | DM67: 0 | DN67: 0 | DO67: 0 | DP67: 0 | DQ67: 0 | DR67: 0 | DS67: 0 | DT67: 0 | DU67: 0 | DV67: 0 | DW67: 0 | DX67: 0 | DY67: 0 | DZ67: 0 | EA67: 0 | EB67: 0 | EC67: 0 | ED67: 0 | EE67: 0 | EF67: 0 | EG67: 0 | EH67: 0 | EI67: 0 | EJ67: 0 | EK67: 0 | EL67: 0 | EM67: 0 | EN67: 0 | EO67: 0 | EP67: 0 | EQ67: 0 | ER67: 0 | ES67: 0 | ET67: 0 | EU67: 0 | EV67: 0 | EW67: 0 | EX67: 0 | EY67: 0 | EZ67: 0 | FA67: 0 | FB67: 0 | FC67: 0 | FD67: 0 | FE67: 1 | FF67: 0 | FG67: 0 | FH67: 0 | FI67: 0 | FJ67: 0 | FK67: 1 | FL67: 0 | FM67: 0 | FN67: 0 | FO67: 0 | FP67: 0 | FQ67: 0 | FR67: 0 | FS67: 0 | FT67: 0 | FU67: 0 | FV67: 0 | FW67: 0 | FX67: 0 | FY67: 0 | FZ67: 0 | GA67: 0 | GB67: 0 | GC67: 0 | GD67: 0 | GE67: 0 | GF67: 0 | GG67: 0 | GH67: 0 | GI67: 0 | GJ67: 0 | GK67: 0 | GL67: 0 | GM67: 0 | GN67: 0 | GO67: 0 | GP67: 0 | GQ67: 0 | GR67: 0 | GS67: 1 | GT67: 0 | GU67: 0 | GV67: 1 | GW67: 0 | GX67: 0 | GY67: 1 | GZ67: 0 | HA67: 0 | HB67: 1 | HC67: 0 | HD67: 0 | HE67: 0 | HF67: 0 | HG67: 0 | HH67: 0 | HI67: 0 | HJ67: 0 | HK67: 0 | HL67: 0 | HM67: 0 | HN67: 0 | HO67: 0 | HP67: 0 | HQ67: 0 | HR67: 0 | HS67: 0 | HT67: 0 | HU67: 0 | HV67: 0 | HW67: 0
A68: 9 | B68: 5 | C68: 8 | D68: 12 | E68: 31 | F68: 10 | G68: 66 | H68: 0 | I68: 0 | J68: 0 | K68: 0 | L68: 14 | M68: 9 | N68: 13 | O68: 36 | P68: 13 | Q68: 85 | R68: 9 | S68: 3 | T68: 6 | U68: 15 | V68: 7 | W68: 40 | X68: 0 | Y68: 0 | Z68: 0 | AA68: 0 | AB68: 0 | AC68: 0 | AD68: 1 | AE68: 2 | AF68: 3 | AG68: 8 | AH68: 3 | AI68: 17 | AJ68: 0 | AK68: 0 | AL68: 0 | AM68: 0 | AN68: 0 | AO68: 0 | AP68: 4 | AQ68: 0 | AR68: 0 | AS68: 0 | AT68: 2 | AU68: 0 | AV68: 2 | AW68: 2 | AX68: 0 | AY68: 0 | AZ68: 0 | BA68: 0 | BB68: 0 | BC68: 0 | BD68: 0 | BE68: 0 | BF68: 0 | BG68: 0 | BH68: 0 | BI68: 0 | BJ68: 0 | BK68: 0 | BL68: 0 | BM68: 0 | BN68: 0 | BO68: 0 | BP68: 0 | BQ68: 0 | BR68: 0 | BS68: 0 | BT68: 0 | BU68: 0 | BV68: 0 | BW68: 0 | BX68: 0 | BY68: 0 | BZ68: 0 | CA68: 0 | CB68: 0 | CC68: 0 | CD68: 0 | CE68: 0 | CF68: 0 | CG68: 0 | CH68: 0 | CI68: 0 | CJ68: 0 | CK68: 0 | CL68: 0 | CM68: 0 | CN68: 0 | CO68: 0 | CP68: 0 | CQ68: 0 | CR68: 0 | CS68: 0 | CT68: 0 | CU68: 0 | CV68: 0 | CW68: 0 | CX68: 0 | CY68: 0 | CZ68: 0 | DA68: 0 | DB68: 0 | DC68: 0 | DD68: 0 | DE68: 0 | DF68: 0 | DG68: 0 | DH68: 0 | DI68: 0 | DJ68: 0 | DK68: 0 | DL68: 0 | DM68: 0 | DN68: 0 | DO68: 0 | DP68: 0 | DQ68: 0 | DR68: 0 | DS68: 0 | DT68: 0 | DU68: 0 | DV68: 0 | DW68: 0 | DX68: 0 | DY68: 0 | DZ68: 0 | EA68: 0 | EB68: 0 | EC68: 0 | ED68: 0 | EE68: 0 | EF68: 0 | EG68: 0 | EH68: 0 | EI68: 0 | EJ68: 0 | EK68: 0 | EL68: 0 | EM68: 0 | EN68: 0 | EO68: 0 | EP68: 0 | EQ68: 0 | ER68: 0 | ES68: 0 | ET68: 0 | EU68: 0 | EV68: 0 | EW68: 0 | EX68: 0 | EY68: 0 | EZ68: 0 | FA68: 0 | FB68: 0 | FC68: 0 | FD68: 0 | FE68: 0 | FF68: 0 | FG68: 0 | FH68: 0 | FI68: 0 | FJ68: 0 | FK68: 0 | FL68: 0 | FM68: 0 | FN68: 0 | FO68: 0 | FP68: 0 | FQ68: 0 | FR68: 0 | FS68: 0 | FT68: 0 | FU68: 0 | FV68: 0 | FW68: 0 | FX68: 0 | FY68: 0 | FZ68: 0 | GA68: 0 | GB68: 0 | GC68: 0 | GD68: 0 | GE68: 0 | GF68: 0 | GG68: 0 | GH68: 0 | GI68: 0 | GJ68: 0 | GK68: 0 | GL68: 0 | GM68: 0 | GN68: 0 | GO68: 0 | GP68: 0 | GQ68: 0 | GR68: 0 | GS68: 1 | GT68: 1 | GU68: 5 | GV68: 5 | GW68: 2 | GX68: 0 | GY68: 0 | GZ68: 1 | HA68: 3 | HB68: 8 | HC68: 0 | HD68: 0 | HE68: 0 | HF68: 1 | HG68: 0 | HH68: 0 | HI68: 0 | HJ68: 0 | HK68: 0 | HL68: 1 | HM68: 0 | HN68: 0 | HO68: 0 | HP68: 0 | HQ68: 0 | HR68: 0 | HS68: 0 | HT68: 0 | HU68: 0 | HV68: 0 | HW68: 0
A69: 10 | B69: 5 | C69: 6 | D69: 9 | E69: 42 | F69: 10 | G69: 72 | H69: 0 | I69: 0 | J69: 0 | K69: 0 | L69: 14 | M69: 7 | N69: 10 | O69: 39 | P69: 11 | Q69: 81 | R69: 9 | S69: 4 | T69: 3 | U69: 13 | V69: 3 | W69: 32 | X69: 0 | Y69: 0 | Z69: 0 | AA69: 0 | AB69: 0 | AC69: 0 | AD69: 3 | AE69: 1 | AF69: 2 | AG69: 8 | AH69: 0 | AI69: 14 | AJ69: 0 | AK69: 0 | AL69: 0 | AM69: 0 | AN69: 0 | AO69: 0 | AP69: 0 | AQ69: 1 | AR69: 0 | AS69: 3 | AT69: 0 | AU69: 0 | AV69: 0 | AW69: 0 | AX69: 1 | AY69: 3 | AZ69: 0 | BA69: 0 | BB69: 0 | BC69: 0 | BD69: 0 | BE69: 0 | BF69: 0 | BG69: 0 | BH69: 0 | BI69: 0 | BJ69: 0 | BK69: 0 | BL69: 0 | BM69: 0 | BN69: 0 | BO69: 0 | BP69: 0 | BQ69: 0 | BR69: 0 | BS69: 0 | BT69: 0 | BU69: 0 | BV69: 0 | BW69: 0 | BX69: 0 | BY69: 0 | BZ69: 0 | CA69: 0 | CB69: 0 | CC69: 0 | CD69: 0 | CE69: 0 | CF69: 0 | CG69: 0 | CH69: 0 | CI69: 0 | CJ69: 0 | CK69: 0 | CL69: 0 | CM69: 0 | CN69: 0 | CO69: 0 | CP69: 0 | CQ69: 0 | CR69: 0 | CS69: 0 | CT69: 0 | CU69: 0 | CV69: 0 | CW69: 0 | CX69: 0 | CY69: 0 | CZ69: 0 | DA69: 0 | DB69: 0 | DC69: 0 | DD69: 0 | DE69: 0 | DF69: 0 | DG69: 0 | DH69: 0 | DI69: 0 | DJ69: 0 | DK69: 0 | DL69: 0 | DM69: 0 | DN69: 0 | DO69: 0 | DP69: 0 | DQ69: 0 | DR69: 0 | DS69: 0 | DT69: 0 | DU69: 0 | DV69: 0 | DW69: 0 | DX69: 0 | DY69: 0 | DZ69: 0 | EA69: 0 | EB69: 0 | EC69: 0 | ED69: 0 | EE69: 0 | EF69: 0 | EG69: 0 | EH69: 0 | EI69: 0 | EJ69: 0 | EK69: 0 | EL69: 0 | EM69: 0 | EN69: 0 | EO69: 0 | EP69: 0 | EQ69: 0 | ER69: 0 | ES69: 0 | ET69: 0 | EU69: 0 | EV69: 0 | EW69: 0 | EX69: 0 | EY69: 0 | EZ69: 0 | FA69: 0 | FB69: 0 | FC69: 0 | FD69: 0 | FE69: 0 | FF69: 0 | FG69: 0 | FH69: 0 | FI69: 0 | FJ69: 0 | FK69: 0 | FL69: 0 | FM69: 0 | FN69: 0 | FO69: 0 | FP69: 0 | FQ69: 0 | FR69: 0 | FS69: 0 | FT69: 0 | FU69: 0 | FV69: 0 | FW69: 0 | FX69: 0 | FY69: 0 | FZ69: 0 | GA69: 0 | GB69: 0 | GC69: 0 | GD69: 0 | GE69: 0 | GF69: 0 | GG69: 0 | GH69: 0 | GI69: 0 | GJ69: 0 | GK69: 0 | GL69: 0 | GM69: 0 | GN69: 0 | GO69: 0 | GP69: 0 | GQ69: 0 | GR69: 0 | GS69: 2 | GT69: 1 | GU69: 0 | GV69: 4 | GW69: 2 | GX69: 0 | GY69: 1 | GZ69: 1 | HA69: 1 | HB69: 4 | HC69: 0 | HD69: 0 | HE69: 0 | HF69: 0 | HG69: 0 | HH69: 0 | HI69: 0 | HJ69: 0 | HK69: 0 | HL69: 0 | HM69: 0 | HN69: 0 | HO69: 0 | HP69: 0 | HQ69: 0 | HR69: 0 | HS69: 0 | HT69: 0 | HU69: 0 | HV69: 0 | HW69: 0
A70: Total general | B70: 924 | C70: 361 | D70: 520 | E70: 1349 | F70: 565 | G70: 3719 | H70: 0 | I70: 0 | J70: 0 | K70: 0 | L70: 111 | M70: 57 | N70: 144 | O70: 426 | P70: 180 | Q70: 918 | R70: 69 | S70: 38 | T70: 72 | U70: 181 | V70: 60 | W70: 420 | X70: 0 | Y70: 0 | Z70: 0 | AA70: 0 | AB70: 0 | AC70: 0 | AD70: 15 | AE70: 6 | AF70: 25 | AG70: 88 | AH70: 41 | AI70: 175 | AJ70: 0 | AK70: 0 | AL70: 0 | AM70: 1 | AN70: 0 | AO70: 1 | AP70: 9 | AQ70: 3 | AR70: 9 | AS70: 19 | AT70: 10 | AU70: 0 | AV70: 7 | AW70: 4 | AX70: 5 | AY70: 24 | AZ70: 0 | BA70: 0 | BB70: 0 | BC70: 0 | BD70: 0 | BE70: 0 | BF70: 0 | BG70: 0 | BH70: 0 | BI70: 0 | BJ70: 0 | BK70: 0 | BL70: 1 | BM70: 0 | BN70: 0 | BO70: 0 | BP70: 0 | BQ70: 0 | BR70: 1 | BS70: 5 | BT70: 2 | BU70: 1 | BV70: 8 | BW70: 4 | BX70: 0 | BY70: 4 | BZ70: 3 | CA70: 0 | CB70: 9 | CC70: 0 | CD70: 0 | CE70: 0 | CF70: 1 | CG70: 0 | CH70: 0 | CI70: 0 | CJ70: 0 | CK70: 0 | CL70: 1 | CM70: 0 | CN70: 0 | CO70: 0 | CP70: 0 | CQ70: 0 | CR70: 0 | CS70: 0 | CT70: 0 | CU70: 0 | CV70: 0 | CW70: 0 | CX70: 0 | CY70: 0 | CZ70: 0 | DA70: 0 | DB70: 0 | DC70: 0 | DD70: 0 | DE70: 0 | DF70: 0 | DG70: 0 | DH70: 0 | DI70: 1 | DJ70: 3 | DK70: 0 | DL70: 0 | DM70: 0 | DN70: 0 | DO70: 0 | DP70: 4 | DQ70: 0 | DR70: 0 | DS70: 0 | DT70: 0 | DU70: 0 | DV70: 0 | DW70: 0 | DX70: 0 | DY70: 0 | DZ70: 0 | EA70: 0 | EB70: 0 | EC70: 0 | ED70: 0 | EE70: 0 | EF70: 0 | EG70: 0 | EH70: 0 | EI70: 0 | EJ70: 0 | EK70: 0 | EL70: 0 | EM70: 0 | EN70: 0 | EO70: 0 | EP70: 0 | EQ70: 0 | ER70: 0 | ES70: 0 | ET70: 0 | EU70: 0 | EV70: 0 | EW70: 0 | EX70: 0 | EY70: 0 | EZ70: 0 | FA70: 0 | FB70: 0 | FC70: 0 | FD70: 0 | FE70: 1 | FF70: 0 | FG70: 0 | FH70: 0 | FI70: 0 | FJ70: 0 | FK70: 1 | FL70: 0 | FM70: 0 | FN70: 0 | FO70: 0 | FP70: 0 | FQ70: 0 | FR70: 0 | FS70: 0 | FT70: 0 | FU70: 0 | FV70: 0 | FW70: 0 | FX70: 0 | FY70: 0 | FZ70: 0 | GA70: 0 | GB70: 0 | GC70: 0 | GD70: 0 | GE70: 0 | GF70: 0 | GG70: 0 | GH70: 0 | GI70: 1 | GJ70: 1 | GK70: 1 | GL70: 0 | GM70: 0 | GN70: 0 | GO70: 0 | GP70: 1 | GQ70: 1 | GR70: 1 | GS70: 28 | GT70: 3 | GU70: 13 | GV70: 29 | GW70: 13 | GX70: 0 | GY70: 14 | GZ70: 14 | HA70: 8 | HB70: 39 | HC70: 1 | HD70: 0 | HE70: 2 | HF70: 7 | HG70: 1 | HH70: 0 | HI70: 0 | HJ70: 1 | HK70: 0 | HL70: 9 | HM70: 0 | HN70: 0 | HO70: 0 | HP70: 0 | HQ70: 0 | HR70: 0 | HS70: 0 | HT70: 0 | HU70: 0 | HV70: 0 | HW70: 0
A114: Anio | B114: 2024
A115: UE | B115: (Todas)
A116: Red | B116: LA CONVENCION
A117: MicroRed | B117: (Todas)
A118: EESS | B118: (Todas)
A119: Provincia | B119: (Todas)
A120: Distrito | B120: (Todas)
A122: Etiquetas de fila | B122: BAS001 | C122: BAS002 | D122: BAS003 | E122: BAS004 | F122: BAS005 | G122: BAS006 | H122: BAS007 | I122: BAS008 | J122: BAS009 | K122: BAS010 | L122: BAS011 | M122: BAS012 | N122: BAS013 | O122: BAS014 | P122: BAS015 | Q122: BAS016 | R122: BAS017 | S122: BAS018 | T122: BAS019 | U122: BAS020 | V122: BAS021 | W122: BAS022 | X122: BAS023 | Y122: BAS024 | Z122: BAS025 | AA122: BAS026 | AB122: BAS027 | AC122: BAS028 | AD122: BAS029 | AE122: BAS030 | AF122: BAS031 | AG122: BAS032 | AH122: BAS033 | AI122: BAS034 | AJ122: BAS035 | AK122: BAS036 | AL122: BAS037 | AM122: BAS038 | AN122: BAS039 | AO122: BAS040 | AP122: BAS041 | AQ122: BAS042 | AR122: BAS043 | AS122: BAS044 | AT122: BAS045 | AU122: BAS046 | AV122: BAS047 | AW122: BAS048 | AX122: BAS049 | AY122: BAS050 | AZ122: BAS051 | BA122: BAS052 | BB122: BAS053 | BC122: BAS054 | BD122: BAS055 | BE122: BAS056 | BF122: BAS057 | BG122: BAS058 | BH122: BAS059 | BI122: BAS060 | BJ122: BAS061 | BK122: BAS062 | BL122: BAS063 | BM122: BAS064 | BN122: BAS065 | BO122: BAS066 | BP122: BAS067 | BQ122: BAS068 | BR122: BAS069 | BS122: BAS070 | BT122: BAS071 | BU122: BAS072 | BV122: BAS073 | BW122: BAS074 | BX122: BAS075 | BY122: BAS076 | BZ122: BAS077 | CA122: BAS078 | CB122: BAS079 | CC122: BAS080 | CD122: BAS081 | CE122: BAS082 | CF122: BAS083 | CG122: BAS084 | CH122: BAS085 | CI122: BAS086 | CJ122: BAS087 | CK122: BAS088 | CL122: BAS089 | CM122: BAS090 | CN122: BAS091 | CO122: BAS092 | CP122: BAS093 | CQ122: BAS094 | CR122: BAS095 | CS122: BAS096 | CT122: BAS097 | CU122: BAS098 | CV122: BAS099 | CW122: BAS100 | CX122: BAS101 | CY122: BAS102 | CZ122: BAS103 | DA122: BAS104 | DB122: BAS105 | DC122: BAS106 | DD122: BAS107 | DE122: BAS108 | DF122: BAS109 | DG122: BAS110 | DH122: BAS111 | DI122: BAS112 | DJ122: BAS113 | DK122: BAS114 | DL122: BAS115 | DM122: BAS116 | DN122: BAS117 | DO122: BAS118 | DP122: BAS119 | DQ122: BAS120 | DR122: BAS121 | DS122: BAS122 | DT122: BAS123 | DU122: BAS124 | DV122: BAS125 | DW122: BAS126 | DX122: BAS127 | DY122: BAS128 | DZ122: BAS129 | EA122: BAS130 | EB122: BAS131 | EC122: BAS132 | ED122: BAS133 | EE122: BAS134 | EF122: BAS135 | EG122: BAS136 | EH122: BAS137 | EI122: BAS138 | EJ122: BAS139 | EK122: BAS140 | EL122: BAS141 | EM122: BAS142 | EN122: BAS143 | EO122: BAS144 | EP122: BAS145 | EQ122: BAS146 | ER122: BAS147 | ES122: BAS148 | ET122: BAS149 | EU122: BAS150 | EV122: BAS151 | EW122: BAS152 | EX122: BAS153 | EY122: BAS154 | EZ122: BAS155 | FA122: BAS156 | FB122: BAS157 | FC122: BAS158 | FD122: BAS159 | FE122: BAS160 | FF122: BAS161 | FG122: BAS162 | FH122: BAS163 | FI122: BAS164 | FJ122: BAS165 | FK122: BAS166 | FL122: BAS167 | FM122: BAS168 | FN122: BAS169 | FO122: BAS170 | FP122: BAS171 | FQ122: BAS172 | FR122: BAS173 | FS122: BAS174 | FT122: BAS175 | FU122: BAS176 | FV122: BAS177 | FW122: BAS178 | FX122: BAS179 | FY122: BAS180 | FZ122: BAS181 | GA122: BAS182 | GB122: BAS183 | GC122: BAS184 | GD122: BAS185 | GE122: BAS186 | GF122: BAS187 | GG122: BAS188 | GH122: BAS189 | GI122: BAS190 | GJ122: BAS191 | GK122: BAS192 | GL122: BAS193 | GM122: BAS194 | GN122: BAS195 | GO122: BAS196 | GP122: BAS197 | GQ122: BAS198 | GR122: BAS199 | GS122: BAS200 | GT122: BAS201 | GU122: BAS202 | GV122: BAS203 | GW122: BAS204 | GX122: BAS205 | GY122: BAS206 | GZ122: BAS207 | HA122: BAS208 | HB122: BAS209 | HC122: BAS210 | HD122: BAS211 | HE122: BAS212 | HF122: BAS213 | HG122: BAS214 | HH122: BAS215 | HI122: BAS216 | HJ122: BAS217 | HK122: BAS218 | HL122: BAS219 | HM122: BAS220 | HN122: BAS221 | HO122: BAS222 | HP122: BAS223 | HQ122: BAS224 | HR122: BAS225 | HS122: BAS226 | HT122: BAS227 | HU122: BAS228 | HV122: BAS229 | HW122: BAS230
A123: 1 | B123: 284 | C123: 45 | D123: 158 | E123: 417 | F123: 186 | G123: 1090 | H123: 0 | I123: 0 | J123: 0 | K123: 0 | L123: 9 | M123: 13 | N123: 22 | O123: 45 | P123: 9 | Q123: 98 | R123: 9 | S123: 13 | T123: 22 | U123: 45 | V123: 9 | W123: 98 | X123: 0 | Y123: 0 | Z123: 0 | AA123: 0 | AB123: 0 | AC123: 0 | AD123: 0 | AE123: 0 | AF123: 0 | AG123: 0 | AH123: 0 | AI123: 0 | AJ123: 0 | AK123: 0 | AL123: 0 | AM123: 0 | AN123: 0 | AO123: 0 | AP123: 0 | AQ123: 0 | AR123: 0 | AS123: 0 | AT123: 0 | AU123: 0 | AV123: 0 | AW123: 0 | AX123: 0 | AY123: 0 | AZ123: 0 | BA123: 0 | BB123: 0 | BC123: 0 | BD123: 0 | BE123: 0 | BF123: 0 | BG123: 0 | BH123: 0 | BI123: 0 | BJ123: 0 | BK123: 0 | BL123: 0 | BM123: 0 | BN123: 0 | BO123: 0 | BP123: 0 | BQ123: 0 | BR123: 0 | BS123: 0 | BT123: 0 | BU123: 0 | BV123: 0 | BW123: 0 | BX123: 0 | BY123: 0 | BZ123: 0 | CA123: 0 | CB123: 0 | CC123: 0 | CD123: 0 | CE123: 0 | CF123: 0 | CG123: 0 | CH123: 0 | CI123: 0 | CJ123: 0 | CK123: 0 | CL123: 0 | CM123: 0 | CN123: 0 | CO123: 0 | CP123: 0 | CQ123: 0 | CR123: 0 | CS123: 0 | CT123: 0 | CU123: 0 | CV123: 0 | CW123: 0 | CX123: 0 | CY123: 0 | CZ123: 0 | DA123: 0 | DB123: 0 | DC123: 0 | DD123: 0 | DE123: 0 | DF123: 0 | DG123: 0 | DH123: 0 | DI123: 0 | DJ123: 0 | DK123: 0 | DL123: 0 | DM123: 0 | DN123: 0 | DO123: 0 | DP123: 0 | DQ123: 0 | DR123: 0 | DS123: 0 | DT123: 0 | DU123: 0 | DV123: 0 | DW123: 0 | DX123: 0 | DY123: 0 | DZ123: 0 | EA123: 0 | EB123: 0 | EC123: 0 | ED123: 0 | EE123: 0 | EF123: 0 | EG123: 0 | EH123: 0 | EI123: 0 | EJ123: 0 | EK123: 0 | EL123: 0 | EM123: 0 | EN123: 0 | EO123: 0 | EP123: 0 | EQ123: 0 | ER123: 0 | ES123: 0 | ET123: 0 | EU123: 0 | EV123: 0 | EW123: 0 | EX123: 0 | EY123: 0 | EZ123: 0 | FA123: 0 | FB123: 0 | FC123: 0 | FD123: 0 | FE123: 0 | FF123: 0 | FG123: 0 | FH123: 0 | FI123: 0 | FJ123: 0 | FK123: 0 | FL123: 0 | FM123: 0 | FN123: 0 | FO123: 0 | FP123: 0 | FQ123: 0 | FR123: 0 | FS123: 0 | FT123: 0 | FU123: 0 | FV123: 0 | FW123: 0 | FX123: 0 | FY123: 0 | FZ123: 0 | GA123: 0 | GB123: 0 | GC123: 0 | GD123: 0 | GE123: 0 | GF123: 0 | GG123: 0 | GH123: 0 | GI123: 0 | GJ123: 0 | GK123: 0 | GL123: 0 | GM123: 0 | GN123: 0 | GO123: 0 | GP123: 0 | GQ123: 0 | GR123: 0 | GS123: 0 | GT123: 0 | GU123: 0 | GV123: 0 | GW123: 0 | GX123: 0 | GY123: 0 | GZ123: 0 | HA123: 0 | HB123: 0 | HC123: 0 | HD123: 0 | HE123: 0 | HF123: 0 | HG123: 0 | HH123: 0 | HI123: 0 | HJ123: 0 | HK123: 0 | HL123: 0 | HM123: 0 | HN123: 0 | HO123: 0 | HP123: 0 | HQ123: 0 | HR123: 0 | HS123: 0 | HT123: 0 | HU123: 0 | HV123: 0 | HW123: 0
A124: 2 | B124: 147 | C124: 34 | D124: 75 | E124: 238 | F124: 109 | G124: 603 | H124: 0 | I124: 0 | J124: 0 | K124: 0 | L124: 21 | M124: 13 | N124: 45 | O124: 43 | P124: 5 | Q124: 127 | R124: 21 | S124: 13 | T124: 45 | U124: 43 | V124: 5 | W124: 127 | X124: 0 | Y124: 0 | Z124: 0 | AA124: 0 | AB124: 0 | AC124: 0 | AD124: 0 | AE124: 0 | AF124: 0 | AG124: 0 | AH124: 0 | AI124: 0 | AJ124: 0 | AK124: 0 | AL124: 0 | AM124: 0 | AN124: 0 | AO124: 0 | AP124: 0 | AQ124: 0 | AR124: 0 | AS124: 0 | AT124: 0 | AU124: 0 | AV124: 0 | AW124: 0 | AX124: 0 | AY124: 0 | AZ124: 0 | BA124: 0 | BB124: 0 | BC124: 0 | BD124: 0 | BE124: 0 | BF124: 0 | BG124: 0 | BH124: 0 | BI124: 0 | BJ124: 0 | BK124: 0 | BL124: 0 | BM124: 0 | BN124: 0 | BO124: 0 | BP124: 0 | BQ124: 0 | BR124: 0 | BS124: 0 | BT124: 0 | BU124: 0 | BV124: 0 | BW124: 0 | BX124: 0 | BY124: 0 | BZ124: 0 | CA124: 0 | CB124: 0 | CC124: 0 | CD124: 0 | CE124: 0 | CF124: 0 | CG124: 0 | CH124: 0 | CI124: 0 | CJ124: 0 | CK124: 0 | CL124: 0 | CM124: 0 | CN124: 0 | CO124: 0 | CP124: 0 | CQ124: 0 | CR124: 0 | CS124: 0 | CT124: 0 | CU124: 0 | CV124: 0 | CW124: 0 | CX124: 0 | CY124: 0 | CZ124: 0 | DA124: 0 | DB124: 0 | DC124: 0 | DD124: 0 | DE124: 0 | DF124: 0 | DG124: 0 | DH124: 0 | DI124: 0 | DJ124: 0 | DK124: 0 | DL124: 0 | DM124: 0 | DN124: 0 | DO124: 0 | DP124: 0 | DQ124: 0 | DR124: 0 | DS124: 0 | DT124: 0 | DU124: 0 | DV124: 0 | DW124: 0 | DX124: 0 | DY124: 0 | DZ124: 0 | EA124: 0 | EB124: 0 | EC124: 0 | ED124: 0 | EE124: 0 | EF124: 0 | EG124: 0 | EH124: 0 | EI124: 0 | EJ124: 0 | EK124: 0 | EL124: 0 | EM124: 0 | EN124: 0 | EO124: 0 | EP124: 0 | EQ124: 0 | ER124: 0 | ES124: 0 | ET124: 0 | EU124: 0 | EV124: 0 | EW124: 0 | EX124: 0 | EY124: 0 | EZ124: 0 | FA124: 0 | FB124: 0 | FC124: 0 | FD124: 0 | FE124: 0 | FF124: 0 | FG124: 0 | FH124: 0 | FI124: 0 | FJ124: 0 | FK124: 0 | FL124: 0 | FM124: 0 | FN124: 0 | FO124: 0 | FP124: 0 | FQ124: 0 | FR124: 0 | FS124: 0 | FT124: 0 | FU124: 0 | FV124: 0 | FW124: 0 | FX124: 0 | FY124: 0 | FZ124: 0 | GA124: 0 | GB124: 0 | GC124: 0 | GD124: 0 | GE124: 0 | GF124: 0 | GG124: 0 | GH124: 0 | GI124: 0 | GJ124: 0 | GK124: 0 | GL124: 0 | GM124: 0 | GN124: 0 | GO124: 0 | GP124: 0 | GQ124: 0 | GR124: 0 | GS124: 0 | GT124: 0 | GU124: 0 | GV124: 0 | GW124: 0 | GX124: 0 | GY124: 0 | GZ124: 0 | HA124: 0 | HB124: 0 | HC124: 0 | HD124: 0 | HE124: 0 | HF124: 0 | HG124: 0 | HH124: 0 | HI124: 0 | HJ124: 0 | HK124: 0 | HL124: 0 | HM124: 0 | HN124: 0 | HO124: 0 | HP124: 0 | HQ124: 0 | HR124: 0 | HS124: 0 | HT124: 0 | HU124: 0 | HV124: 0 | HW124: 0
A125: 3 | B125: 87 | C125: 40 | D125: 67 | E125: 148 | F125: 57 | G125: 399 | H125: 0 | I125: 0 | J125: 0 | K125: 0 | L125: 19 | M125: 9 | N125: 22 | O125: 27 | P125: 1 | Q125: 78 | R125: 19 | S125: 9 | T125: 22 | U125: 27 | V125: 1 | W125: 78 | X125: 0 | Y125: 0 | Z125: 0 | AA125: 0 | AB125: 0 | AC125: 0 | AD125: 0 | AE125: 0 | AF125: 0 | AG125: 0 | AH125: 0 | AI125: 0 | AJ125: 0 | AK125: 0 | AL125: 0 | AM125: 0 | AN125: 0 | AO125: 0 | AP125: 0 | AQ125: 0 | AR125: 0 | AS125: 0 | AT125: 0 | AU125: 0 | AV125: 0 | AW125: 0 | AX125: 0 | AY125: 0 | AZ125: 0 | BA125: 0 | BB125: 0 | BC125: 0 | BD125: 0 | BE125: 0 | BF125: 0 | BG125: 0 | BH125: 0 | BI125: 0 | BJ125: 1 | BK125: 1 | BL125: 0 | BM125: 0 | BN125: 0 | BO125: 0 | BP125: 0 | BQ125: 2 | BR125: 0 | BS125: 0 | BT125: 0 | BU125: 0 | BV125: 0 | BW125: 0 | BX125: 0 | BY125: 0 | BZ125: 0 | CA125: 0 | CB125: 0 | CC125: 0 | CD125: 0 | CE125: 0 | CF125: 0 | CG125: 0 | CH125: 0 | CI125: 0 | CJ125: 0 | CK125: 0 | CL125: 0 | CM125: 0 | CN125: 0 | CO125: 0 | CP125: 0 | CQ125: 0 | CR125: 0 | CS125: 0 | CT125: 0 | CU125: 0 | CV125: 0 | CW125: 0 | CX125: 0 | CY125: 0 | CZ125: 0 | DA125: 0 | DB125: 0 | DC125: 0 | DD125: 0 | DE125: 0 | DF125: 0 | DG125: 0 | DH125: 0 | DI125: 0 | DJ125: 0 | DK125: 0 | DL125: 0 | DM125: 0 | DN125: 0 | DO125: 0 | DP125: 0 | DQ125: 0 | DR125: 0 | DS125: 0 | DT125: 0 | DU125: 0 | DV125: 0 | DW125: 0 | DX125: 0 | DY125: 0 | DZ125: 0 | EA125: 0 | EB125: 0 | EC125: 0 | ED125: 0 | EE125: 0 | EF125: 0 | EG125: 0 | EH125: 0 | EI125: 0 | EJ125: 0 | EK125: 0 | EL125: 0 | EM125: 0 | EN125: 0 | EO125: 0 | EP125: 0 | EQ125: 0 | ER125: 0 | ES125: 0 | ET125: 0 | EU125: 0 | EV125: 0 | EW125: 0 | EX125: 0 | EY125: 0 | EZ125: 0 | FA125: 0 | FB125: 0 | FC125: 0 | FD125: 0 | FE125: 0 | FF125: 0 | FG125: 0 | FH125: 0 | FI125: 0 | FJ125: 0 | FK125: 0 | FL125: 0 | FM125: 0 | FN125: 0 | FO125: 0 | FP125: 0 | FQ125: 0 | FR125: 0 | FS125: 0 | FT125: 0 | FU125: 0 | FV125: 0 | FW125: 0 | FX125: 0 | FY125: 0 | FZ125: 0 | GA125: 0 | GB125: 0 | GC125: 0 | GD125: 0 | GE125: 0 | GF125: 0 | GG125: 0 | GH125: 0 | GI125: 0 | GJ125: 0 | GK125: 0 | GL125: 0 | GM125: 0 | GN125: 0 | GO125: 0 | GP125: 0 | GQ125: 0 | GR125: 0 | GS125: 0 | GT125: 0 | GU125: 0 | GV125: 0 | GW125: 0 | GX125: 0 | GY125: 0 | GZ125: 0 | HA125: 0 | HB125: 0 | HC125: 0 | HD125: 0 | HE125: 0 | HF125: 0 | HG125: 0 | HH125: 0 | HI125: 0 | HJ125: 0 | HK125: 0 | HL125: 0 | HM125: 0 | HN125: 0 | HO125: 0 | HP125: 0 | HQ125: 0 | HR125: 0 | HS125: 0 | HT125: 0 | HU125: 0 | HV125: 0 | HW125: 0
A126: 4 | B126: 321 | C126: 159 | D126: 60 | E126: 195 | F126: 64 | G126: 799 | H126: 0 | I126: 0 | J126: 0 | K126: 0 | L126: 14 | M126: 9 | N126: 26 | O126: 35 | P126: 4 | Q126: 88 | R126: 14 | S126: 9 | T126: 26 | U126: 35 | V126: 4 | W126: 88 | X126: 0 | Y126: 0 | Z126: 0 | AA126: 0 | AB126: 0 | AC126: 0 | AD126: 0 | AE126: 0 | AF126: 0 | AG126: 0 | AH126: 0 | AI126: 0 | AJ126: 0 | AK126: 0 | AL126: 0 | AM126: 0 | AN126: 0 | AO126: 0 | AP126: 0 | AQ126: 0 | AR126: 0 | AS126: 0 | AT126: 0 | AU126: 0 | AV126: 0 | AW126: 0 | AX126: 0 | AY126: 0 | AZ126: 0 | BA126: 0 | BB126: 0 | BC126: 0 | BD126: 0 | BE126: 0 | BF126: 0 | BG126: 0 | BH126: 0 | BI126: 0 | BJ126: 1 | BK126: 0 | BL126: 0 | BM126: 0 | BN126: 0 | BO126: 0 | BP126: 0 | BQ126: 1 | BR126: 0 | BS126: 0 | BT126: 0 | BU126: 0 | BV126: 0 | BW126: 0 | BX126: 0 | BY126: 0 | BZ126: 0 | CA126: 0 | CB126: 0 | CC126: 0 | CD126: 0 | CE126: 0 | CF126: 0 | CG126: 0 | CH126: 0 | CI126: 0 | CJ126: 0 | CK126: 0 | CL126: 0 | CM126: 0 | CN126: 0 | CO126: 0 | CP126: 0 | CQ126: 0 | CR126: 0 | CS126: 0 | CT126: 0 | CU126: 0 | CV126: 0 | CW126: 0 | CX126: 0 | CY126: 0 | CZ126: 0 | DA126: 0 | DB126: 0 | DC126: 0 | DD126: 0 | DE126: 0 | DF126: 0 | DG126: 0 | DH126: 0 | DI126: 0 | DJ126: 0 | DK126: 0 | DL126: 0 | DM126: 0 | DN126: 0 | DO126: 0 | DP126: 0 | DQ126: 0 | DR126: 0 | DS126: 0 | DT126: 0 | DU126: 0 | DV126: 0 | DW126: 0 | DX126: 0 | DY126: 0 | DZ126: 0 | EA126: 0 | EB126: 0 | EC126: 0 | ED126: 0 | EE126: 0 | EF126: 0 | EG126: 0 | EH126: 0 | EI126: 0 | EJ126: 0 | EK126: 0 | EL126: 0 | EM126: 0 | EN126: 0 | EO126: 0 | EP126: 0 | EQ126: 0 | ER126: 0 | ES126: 0 | ET126: 0 | EU126: 0 | EV126: 0 | EW126: 0 | EX126: 0 | EY126: 0 | EZ126: 0 | FA126: 0 | FB126: 0 | FC126: 0 | FD126: 0 | FE126: 0 | FF126: 0 | FG126: 0 | FH126: 0 | FI126: 0 | FJ126: 0 | FK126: 0 | FL126: 0 | FM126: 0 | FN126: 0 | FO126: 0 | FP126: 0 | FQ126: 0 | FR126: 0 | FS126: 0 | FT126: 0 | FU126: 0 | FV126: 0 | FW126: 0 | FX126: 0 | FY126: 0 | FZ126: 0 | GA126: 0 | GB126: 0 | GC126: 0 | GD126: 0 | GE126: 0 | GF126: 0 | GG126: 0 | GH126: 0 | GI126: 0 | GJ126: 0 | GK126: 0 | GL126: 0 | GM126: 0 | GN126: 0 | GO126: 0 | GP126: 0 | GQ126: 0 | GR126: 0 | GS126: 0 | GT126: 0 | GU126: 0 | GV126: 0 | GW126: 0 | GX126: 0 | GY126: 0 | GZ126: 0 | HA126: 0 | HB126: 0 | HC126: 0 | HD126: 0 | HE126: 0 | HF126: 0 | HG126: 0 | HH126: 0 | HI126: 0 | HJ126: 0 | HK126: 0 | HL126: 0 | HM126: 0 | HN126: 0 | HO126: 0 | HP126: 0 | HQ126: 0 | HR126: 0 | HS126: 0 | HT126: 0 | HU126: 0 | HV126: 0 | HW126: 0
A127: 5 | B127: 28 | C127: 45 | D127: 46 | E127: 92 | F127: 61 | G127: 272 | H127: 0 | I127: 0 | J127: 0 | K127: 0 | L127: 21 | M127: 8 | N127: 19 | O127: 30 | P127: 4 | Q127: 82 | R127: 18 | S127: 7 | T127: 19 | U127: 29 | V127: 4 | W127: 77 | X127: 0 | Y127: 0 | Z127: 0 | AA127: 0 | AB127: 0 | AC127: 0 | AD127: 0 | AE127: 0 | AF127: 0 | AG127: 0 | AH127: 0 | AI127: 0 | AJ127: 0 | AK127: 0 | AL127: 0 | AM127: 0 | AN127: 0 | AO127: 0 | AP127: 0 | AQ127: 0 | AR127: 0 | AS127: 0 | AT127: 0 | AU127: 0 | AV127: 0 | AW127: 0 | AX127: 0 | AY127: 0 | AZ127: 0 | BA127: 0 | BB127: 0 | BC127: 0 | BD127: 0 | BE127: 0 | BF127: 0 | BG127: 0 | BH127: 0 | BI127: 0 | BJ127: 0 | BK127: 0 | BL127: 0 | BM127: 0 | BN127: 0 | BO127: 0 | BP127: 0 | BQ127: 0 | BR127: 0 | BS127: 0 | BT127: 0 | BU127: 0 | BV127: 0 | BW127: 0 | BX127: 0 | BY127: 0 | BZ127: 0 | CA127: 0 | CB127: 0 | CC127: 0 | CD127: 0 | CE127: 0 | CF127: 0 | CG127: 0 | CH127: 0 | CI127: 0 | CJ127: 0 | CK127: 0 | CL127: 0 | CM127: 0 | CN127: 0 | CO127: 0 | CP127: 0 | CQ127: 0 | CR127: 0 | CS127: 0 | CT127: 0 | CU127: 0 | CV127: 0 | CW127: 0 | CX127: 0 | CY127: 0 | CZ127: 0 | DA127: 0 | DB127: 0 | DC127: 0 | DD127: 0 | DE127: 0 | DF127: 0 | DG127: 0 | DH127: 0 | DI127: 0 | DJ127: 0 | DK127: 0 | DL127: 0 | DM127: 0 | DN127: 0 | DO127: 0 | DP127: 0 | DQ127: 0 | DR127: 0 | DS127: 0 | DT127: 0 | DU127: 0 | DV127: 0 | DW127: 0 | DX127: 0 | DY127: 0 | DZ127: 0 | EA127: 0 | EB127: 0 | EC127: 0 | ED127: 0 | EE127: 0 | EF127: 0 | EG127: 0 | EH127: 0 | EI127: 0 | EJ127: 0 | EK127: 0 | EL127: 0 | EM127: 0 | EN127: 0 | EO127: 0 | EP127: 0 | EQ127: 0 | ER127: 0 | ES127: 0 | ET127: 0 | EU127: 0 | EV127: 0 | EW127: 0 | EX127: 0 | EY127: 0 | EZ127: 0 | FA127: 0 | FB127: 0 | FC127: 0 | FD127: 0 | FE127: 0 | FF127: 0 | FG127: 0 | FH127: 0 | FI127: 0 | FJ127: 0 | FK127: 0 | FL127: 0 | FM127: 0 | FN127: 0 | FO127: 0 | FP127: 0 | FQ127: 0 | FR127: 0 | FS127: 0 | FT127: 0 | FU127: 0 | FV127: 0 | FW127: 0 | FX127: 0 | FY127: 0 | FZ127: 0 | GA127: 0 | GB127: 0 | GC127: 0 | GD127: 0 | GE127: 0 | GF127: 0 | GG127: 0 | GH127: 0 | GI127: 0 | GJ127: 0 | GK127: 0 | GL127: 0 | GM127: 0 | GN127: 0 | GO127: 0 | GP127: 0 | GQ127: 0 | GR127: 0 | GS127: 0 | GT127: 0 | GU127: 0 | GV127: 0 | GW127: 0 | GX127: 0 | GY127: 0 | GZ127: 0 | HA127: 0 | HB127: 0 | HC127: 0 | HD127: 0 | HE127: 0 | HF127: 0 | HG127: 0 | HH127: 0 | HI127: 0 | HJ127: 0 | HK127: 0 | HL127: 0 | HM127: 0 | HN127: 0 | HO127: 0 | HP127: 0 | HQ127: 0 | HR127: 0 | HS127: 0 | HT127: 0 | HU127: 0 | HV127: 0 | HW127: 0
A128: 6 | B128: 29 | C128: 11 | D128: 29 | E128: 87 | F128: 34 | G128: 190 | H128: 0 | I128: 0 | J128: 0 | K128: 0 | L128: 13 | M128: 9 | N128: 14 | O128: 27 | P128: 4 | Q128: 67 | R128: 13 | S128: 9 | T128: 13 | U128: 27 | V128: 4 | W128: 66 | X128: 0 | Y128: 0 | Z128: 0 | AA128: 0 | AB128: 0 | AC128: 0 | AD128: 0 | AE128: 0 | AF128: 0 | AG128: 0 | AH128: 0 | AI128: 0 | AJ128: 0 | AK128: 0 | AL128: 0 | AM128: 0 | AN128: 0 | AO128: 0 | AP128: 0 | AQ128: 0 | AR128: 0 | AS128: 0 | AT128: 0 | AU128: 0 | AV128: 0 | AW128: 0 | AX128: 0 | AY128: 0 | AZ128: 0 | BA128: 0 | BB128: 0 | BC128: 0 | BD128: 0 | BE128: 0 | BF128: 0 | BG128: 0 | BH128: 0 | BI128: 0 | BJ128: 0 | BK128: 0 | BL128: 0 | BM128: 0 | BN128: 0 | BO128: 0 | BP128: 0 | BQ128: 0 | BR128: 0 | BS128: 0 | BT128: 0 | BU128: 0 | BV128: 0 | BW128: 0 | BX128: 0 | BY128: 0 | BZ128: 0 | CA128: 0 | CB128: 0 | CC128: 0 | CD128: 0 | CE128: 0 | CF128: 0 | CG128: 0 | CH128: 0 | CI128: 0 | CJ128: 0 | CK128: 0 | CL128: 0 | CM128: 0 | CN128: 0 | CO128: 0 | CP128: 0 | CQ128: 0 | CR128: 0 | CS128: 0 | CT128: 0 | CU128: 0 | CV128: 0 | CW128: 0 | CX128: 0 | CY128: 0 | CZ128: 0 | DA128: 0 | DB128: 0 | DC128: 0 | DD128: 0 | DE128: 0 | DF128: 0 | DG128: 0 | DH128: 0 | DI128: 0 | DJ128: 0 | DK128: 0 | DL128: 0 | DM128: 0 | DN128: 0 | DO128: 0 | DP128: 0 | DQ128: 0 | DR128: 0 | DS128: 0 | DT128: 0 | DU128: 0 | DV128: 0 | DW128: 0 | DX128: 0 | DY128: 0 | DZ128: 0 | EA128: 0 | EB128: 0 | EC128: 0 | ED128: 0 | EE128: 0 | EF128: 0 | EG128: 0 | EH128: 0 | EI128: 0 | EJ128: 0 | EK128: 0 | EL128: 0 | EM128: 0 | EN128: 0 | EO128: 0 | EP128: 0 | EQ128: 0 | ER128: 0 | ES128: 0 | ET128: 0 | EU128: 0 | EV128: 0 | EW128: 0 | EX128: 0 | EY128: 0 | EZ128: 0 | FA128: 0 | FB128: 0 | FC128: 0 | FD128: 0 | FE128: 0 | FF128: 0 | FG128: 0 | FH128: 0 | FI128: 0 | FJ128: 0 | FK128: 0 | FL128: 0 | FM128: 0 | FN128: 0 | FO128: 0 | FP128: 0 | FQ128: 0 | FR128: 0 | FS128: 0 | FT128: 0 | FU128: 0 | FV128: 0 | FW128: 0 | FX128: 0 | FY128: 0 | FZ128: 0 | GA128: 0 | GB128: 0 | GC128: 0 | GD128: 0 | GE128: 0 | GF128: 0 | GG128: 0 | GH128: 0 | GI128: 0 | GJ128: 0 | GK128: 0 | GL128: 0 | GM128: 0 | GN128: 0 | GO128: 0 | GP128: 0 | GQ128: 0 | GR128: 0 | GS128: 0 | GT128: 0 | GU128: 0 | GV128: 0 | GW128: 0 | GX128: 0 | GY128: 0 | GZ128: 0 | HA128: 0 | HB128: 0 | HC128: 0 | HD128: 0 | HE128: 0 | HF128: 0 | HG128: 0 | HH128: 0 | HI128: 0 | HJ128: 0 | HK128: 0 | HL128: 0 | HM128: 0 | HN128: 0 | HO128: 0 | HP128: 0 | HQ128: 0 | HR128: 0 | HS128: 0 | HT128: 0 | HU128: 0 | HV128: 0 | HW128: 0
A129: 7 | B129: 6 | C129: 6 | D129: 28 | E129: 53 | F129: 13 | G129: 106 | H129: 0 | I129: 0 | J129: 0 | K129: 0 | L129: 48 | M129: 7 | N129: 20 | O129: 32 | P129: 1 | Q129: 108 | R129: 48 | S129: 7 | T129: 20 | U129: 32 | V129: 1 | W129: 108 | X129: 0 | Y129: 0 | Z129: 0 | AA129: 0 | AB129: 0 | AC129: 0 | AD129: 0 | AE129: 0 | AF129: 0 | AG129: 0 | AH129: 0 | AI129: 0 | AJ129: 0 | AK129: 0 | AL129: 0 | AM129: 0 | AN129: 0 | AO129: 0 | AP129: 0 | AQ129: 0 | AR129: 0 | AS129: 0 | AT129: 0 | AU129: 0 | AV129: 0 | AW129: 0 | AX129: 0 | AY129: 0 | AZ129: 0 | BA129: 0 | BB129: 0 | BC129: 0 | BD129: 0 | BE129: 0 | BF129: 0 | BG129: 0 | BH129: 0 | BI129: 0 | BJ129: 0 | BK129: 0 | BL129: 0 | BM129: 0 | BN129: 0 | BO129: 0 | BP129: 0 | BQ129: 0 | BR129: 0 | BS129: 0 | BT129: 0 | BU129: 0 | BV129: 0 | BW129: 0 | BX129: 0 | BY129: 0 | BZ129: 0 | CA129: 0 | CB129: 0 | CC129: 0 | CD129: 0 | CE129: 0 | CF129: 0 | CG129: 0 | CH129: 0 | CI129: 0 | CJ129: 0 | CK129: 0 | CL129: 0 | CM129: 0 | CN129: 0 | CO129: 0 | CP129: 0 | CQ129: 0 | CR129: 0 | CS129: 0 | CT129: 0 | CU129: 0 | CV129: 0 | CW129: 0 | CX129: 0 | CY129: 0 | CZ129: 0 | DA129: 0 | DB129: 0 | DC129: 0 | DD129: 0 | DE129: 0 | DF129: 0 | DG129: 0 | DH129: 0 | DI129: 0 | DJ129: 0 | DK129: 0 | DL129: 0 | DM129: 0 | DN129: 0 | DO129: 0 | DP129: 0 | DQ129: 0 | DR129: 0 | DS129: 0 | DT129: 0 | DU129: 0 | DV129: 0 | DW129: 0 | DX129: 0 | DY129: 0 | DZ129: 0 | EA129: 0 | EB129: 0 | EC129: 0 | ED129: 0 | EE129: 0 | EF129: 0 | EG129: 0 | EH129: 0 | EI129: 0 | EJ129: 0 | EK129: 0 | EL129: 0 | EM129: 0 | EN129: 0 | EO129: 0 | EP129: 0 | EQ129: 0 | ER129: 0 | ES129: 0 | ET129: 0 | EU129: 0 | EV129: 0 | EW129: 0 | EX129: 0 | EY129: 0 | EZ129: 0 | FA129: 0 | FB129: 0 | FC129: 0 | FD129: 0 | FE129: 0 | FF129: 0 | FG129: 0 | FH129: 0 | FI129: 0 | FJ129: 0 | FK129: 0 | FL129: 0 | FM129: 0 | FN129: 0 | FO129: 0 | FP129: 0 | FQ129: 0 | FR129: 0 | FS129: 0 | FT129: 0 | FU129: 0 | FV129: 0 | FW129: 0 | FX129: 0 | FY129: 0 | FZ129: 0 | GA129: 0 | GB129: 0 | GC129: 0 | GD129: 0 | GE129: 0 | GF129: 0 | GG129: 0 | GH129: 0 | GI129: 0 | GJ129: 0 | GK129: 0 | GL129: 0 | GM129: 0 | GN129: 0 | GO129: 0 | GP129: 0 | GQ129: 0 | GR129: 0 | GS129: 0 | GT129: 0 | GU129: 0 | GV129: 0 | GW129: 0 | GX129: 0 | GY129: 0 | GZ129: 0 | HA129: 0 | HB129: 0 | HC129: 0 | HD129: 0 | HE129: 0 | HF129: 0 | HG129: 0 | HH129: 0 | HI129: 0 | HJ129: 0 | HK129: 0 | HL129: 0 | HM129: 0 | HN129: 0 | HO129: 0 | HP129: 0 | HQ129: 0 | HR129: 0 | HS129: 0 | HT129: 0 | HU129: 0 | HV129: 0 | HW129: 0
A130: 8 | B130: 8 | C130: 3 | D130: 21 | E130: 25 | F130: 10 | G130: 67 | H130: 0 | I130: 0 | J130: 0 | K130: 0 | L130: 11 | M130: 14 | N130: 24 | O130: 31 | P130: 12 | Q130: 92 | R130: 9 | S130: 13 | T130: 24 | U130: 31 | V130: 12 | W130: 89 | X130: 0 | Y130: 0 | Z130: 0 | AA130: 0 | AB130: 0 | AC130: 0 | AD130: 0 | AE130: 0 | AF130: 0 | AG130: 0 | AH130: 0 | AI130: 0 | AJ130: 0 | AK130: 0 | AL130: 0 | AM130: 0 | AN130: 0 | AO130: 0 | AP130: 0 | AQ130: 0 | AR130: 0 | AS130: 0 | AT130: 0 | AU130: 0 | AV130: 0 | AW130: 0 | AX130: 0 | AY130: 0 | AZ130: 0 | BA130: 0 | BB130: 0 | BC130: 0 | BD130: 0 | BE130: 0 | BF130: 0 | BG130: 0 | BH130: 0 | BI130: 0 | BJ130: 0 | BK130: 0 | BL130: 1 | BM130: 0 | BN130: 0 | BO130: 0 | BP130: 0 | BQ130: 0 | BR130: 0 | BS130: 0 | BT130: 0 | BU130: 0 | BV130: 0 | BW130: 0 | BX130: 0 | BY130: 0 | BZ130: 0 | CA130: 0 | CB130: 0 | CC130: 0 | CD130: 0 | CE130: 0 | CF130: 0 | CG130: 0 | CH130: 0 | CI130: 0 | CJ130: 0 | CK130: 0 | CL130: 0 | CM130: 0 | CN130: 0 | CO130: 0 | CP130: 0 | CQ130: 0 | CR130: 0 | CS130: 0 | CT130: 0 | CU130: 0 | CV130: 0 | CW130: 0 | CX130: 0 | CY130: 0 | CZ130: 0 | DA130: 0 | DB130: 0 | DC130: 0 | DD130: 0 | DE130: 0 | DF130: 0 | DG130: 0 | DH130: 0 | DI130: 0 | DJ130: 0 | DK130: 0 | DL130: 0 | DM130: 0 | DN130: 0 | DO130: 0 | DP130: 0 | DQ130: 0 | DR130: 0 | DS130: 0 | DT130: 0 | DU130: 0 | DV130: 0 | DW130: 0 | DX130: 0 | DY130: 0 | DZ130: 0 | EA130: 0 | EB130: 0 | EC130: 0 | ED130: 0 | EE130: 0 | EF130: 0 | EG130: 0 | EH130: 0 | EI130: 0 | EJ130: 0 | EK130: 0 | EL130: 0 | EM130: 0 | EN130: 0 | EO130: 0 | EP130: 0 | EQ130: 0 | ER130: 0 | ES130: 0 | ET130: 0 | EU130: 0 | EV130: 0 | EW130: 0 | EX130: 0 | EY130: 0 | EZ130: 0 | FA130: 0 | FB130: 0 | FC130: 0 | FD130: 0 | FE130: 0 | FF130: 0 | FG130: 0 | FH130: 0 | FI130: 0 | FJ130: 0 | FK130: 0 | FL130: 0 | FM130: 0 | FN130: 0 | FO130: 0 | FP130: 0 | FQ130: 0 | FR130: 0 | FS130: 0 | FT130: 0 | FU130: 0 | FV130: 0 | FW130: 0 | FX130: 0 | FY130: 0 | FZ130: 0 | GA130: 0 | GB130: 0 | GC130: 0 | GD130: 0 | GE130: 0 | GF130: 0 | GG130: 0 | GH130: 0 | GI130: 0 | GJ130: 0 | GK130: 0 | GL130: 0 | GM130: 0 | GN130: 0 | GO130: 0 | GP130: 0 | GQ130: 0 | GR130: 0 | GS130: 0 | GT130: 0 | GU130: 0 | GV130: 0 | GW130: 0 | GX130: 0 | GY130: 0 | GZ130: 0 | HA130: 0 | HB130: 0 | HC130: 0 | HD130: 0 | HE130: 0 | HF130: 0 | HG130: 0 | HH130: 0 | HI130: 0 | HJ130: 0 | HK130: 0 | HL130: 0 | HM130: 0 | HN130: 0 | HO130: 0 | HP130: 0 | HQ130: 0 | HR130: 0 | HS130: 0 | HT130: 0 | HU130: 0 | HV130: 0 | HW130: 0
A131: 10 | B131: 5 | C131: 6 | D131: 9 | E131: 42 | F131: 10 | G131: 72 | H131: 0 | I131: 0 | J131: 0 | K131: 0 | L131: 29 | M131: 6 | N131: 17 | O131: 30 | P131: 7 | Q131: 89 | R131: 27 | S131: 6 | T131: 17 | U131: 30 | V131: 7 | W131: 87 | X131: 0 | Y131: 0 | Z131: 0 | AA131: 0 | AB131: 0 | AC131: 0 | AD131: 0 | AE131: 0 | AF131: 0 | AG131: 0 | AH131: 0 | AI131: 0 | AJ131: 0 | AK131: 0 | AL131: 0 | AM131: 0 | AN131: 0 | AO131: 0 | AP131: 0 | AQ131: 0 | AR131: 0 | AS131: 0 | AT131: 0 | AU131: 0 | AV131: 0 | AW131: 0 | AX131: 0 | AY131: 0 | AZ131: 0 | BA131: 0 | BB131: 0 | BC131: 0 | BD131: 0 | BE131: 0 | BF131: 0 | BG131: 0 | BH131: 0 | BI131: 0 | BJ131: 0 | BK131: 1 | BL131: 0 | BM131: 0 | BN131: 0 | BO131: 0 | BP131: 0 | BQ131: 1 | BR131: 0 | BS131: 0 | BT131: 0 | BU131: 0 | BV131: 0 | BW131: 0 | BX131: 0 | BY131: 0 | BZ131: 0 | CA131: 0 | CB131: 0 | CC131: 0 | CD131: 0 | CE131: 0 | CF131: 0 | CG131: 0 | CH131: 0 | CI131: 0 | CJ131: 0 | CK131: 0 | CL131: 0 | CM131: 0 | CN131: 0 | CO131: 0 | CP131: 0 | CQ131: 0 | CR131: 0 | CS131: 0 | CT131: 0 | CU131: 0 | CV131: 0 | CW131: 0 | CX131: 0 | CY131: 0 | CZ131: 0 | DA131: 0 | DB131: 0 | DC131: 0 | DD131: 0 | DE131: 0 | DF131: 0 | DG131: 0 | DH131: 0 | DI131: 0 | DJ131: 0 | DK131: 0 | DL131: 0 | DM131: 0 | DN131: 0 | DO131: 0 | DP131: 0 | DQ131: 0 | DR131: 0 | DS131: 0 | DT131: 0 | DU131: 0 | DV131: 0 | DW131: 0 | DX131: 0 | DY131: 0 | DZ131: 0 | EA131: 0 | EB131: 0 | EC131: 0 | ED131: 0 | EE131: 0 | EF131: 0 | EG131: 0 | EH131: 0 | EI131: 0 | EJ131: 0 | EK131: 0 | EL131: 0 | EM131: 0 | EN131: 0 | EO131: 0 | EP131: 0 | EQ131: 0 | ER131: 0 | ES131: 0 | ET131: 0 | EU131: 0 | EV131: 0 | EW131: 0 | EX131: 0 | EY131: 0 | EZ131: 0 | FA131: 0 | FB131: 0 | FC131: 0 | FD131: 0 | FE131: 0 | FF131: 0 | FG131: 0 | FH131: 0 | FI131: 0 | FJ131: 0 | FK131: 0 | FL131: 0 | FM131: 0 | FN131: 0 | FO131: 0 | FP131: 0 | FQ131: 0 | FR131: 0 | FS131: 0 | FT131: 0 | FU131: 0 | FV131: 0 | FW131: 0 | FX131: 0 | FY131: 0 | FZ131: 0 | GA131: 0 | GB131: 0 | GC131: 0 | GD131: 0 | GE131: 0 | GF131: 0 | GG131: 0 | GH131: 0 | GI131: 0 | GJ131: 0 | GK131: 0 | GL131: 0 | GM131: 0 | GN131: 0 | GO131: 0 | GP131: 0 | GQ131: 0 | GR131: 0 | GS131: 0 | GT131: 0 | GU131: 0 | GV131: 0 | GW131: 0 | GX131: 0 | GY131: 0 | GZ131: 0 | HA131: 0 | HB131: 0 | HC131: 0 | HD131: 0 | HE131: 0 | HF131: 0 | HG131: 0 | HH131: 0 | HI131: 0 | HJ131: 0 | HK131: 0 | HL131: 0 | HM131: 0 | HN131: 0 | HO131: 0 | HP131: 0 | HQ131: 0 | HR131: 0 | HS131: 0 | HT131: 0 | HU131: 0 | HV131: 0 | HW131: 0
A132: 11 | B132: 4 | C132: 4 | D132: 15 | E132: 21 | F132: 11 | G132: 55 | H132: 0 | I132: 0 | J132: 0 | K132: 0 | L132: 13 | M132: 6 | N132: 11 | O132: 40 | P132: 11 | Q132: 81 | R132: 11 | S132: 5 | T132: 11 | U132: 40 | V132: 11 | W132: 78 | X132: 0 | Y132: 0 | Z132: 0 | AA132: 0 | AB132: 0 | AC132: 0 | AD132: 0 | AE132: 0 | AF132: 0 | AG132: 0 | AH132: 0 | AI132: 0 | AJ132: 0 | AK132: 0 | AL132: 0 | AM132: 0 | AN132: 0 | AO132: 0 | AP132: 0 | AQ132: 0 | AR132: 0 | AS132: 0 | AT132: 0 | AU132: 0 | AV132: 0 | AW132: 0 | AX132: 0 | AY132: 0 | AZ132: 0 | BA132: 0 | BB132: 0 | BC132: 0 | BD132: 0 | BE132: 0 | BF132: 0 | BG132: 0 | BH132: 2 | BI132: 0 | BJ132: 0 | BK132: 0 | BL132: 0 | BM132: 0 | BN132: 2 | BO132: 0 | BP132: 0 | BQ132: 0 | BR132: 0 | BS132: 0 | BT132: 0 | BU132: 0 | BV132: 0 | BW132: 0 | BX132: 0 | BY132: 0 | BZ132: 0 | CA132: 0 | CB132: 0 | CC132: 0 | CD132: 0 | CE132: 0 | CF132: 0 | CG132: 0 | CH132: 0 | CI132: 0 | CJ132: 0 | CK132: 0 | CL132: 0 | CM132: 0 | CN132: 0 | CO132: 0 | CP132: 0 | CQ132: 0 | CR132: 0 | CS132: 0 | CT132: 0 | CU132: 0 | CV132: 0 | CW132: 0 | CX132: 0 | CY132: 0 | CZ132: 0 | DA132: 0 | DB132: 0 | DC132: 0 | DD132: 0 | DE132: 0 | DF132: 0 | DG132: 0 | DH132: 0 | DI132: 0 | DJ132: 0 | DK132: 0 | DL132: 0 | DM132: 0 | DN132: 0 | DO132: 0 | DP132: 0 | DQ132: 0 | DR132: 0 | DS132: 0 | DT132: 0 | DU132: 0 | DV132: 0 | DW132: 0 | DX132: 0 | DY132: 0 | DZ132: 0 | EA132: 0 | EB132: 0 | EC132: 0 | ED132: 0 | EE132: 0 | EF132: 0 | EG132: 0 | EH132: 0 | EI132: 0 | EJ132: 0 | EK132: 0 | EL132: 0 | EM132: 0 | EN132: 0 | EO132: 0 | EP132: 0 | EQ132: 0 | ER132: 0 | ES132: 0 | ET132: 0 | EU132: 0 | EV132: 0 | EW132: 0 | EX132: 0 | EY132: 0 | EZ132: 0 | FA132: 0 | FB132: 0 | FC132: 0 | FD132: 0 | FE132: 0 | FF132: 0 | FG132: 0 | FH132: 0 | FI132: 0 | FJ132: 0 | FK132: 0 | FL132: 0 | FM132: 0 | FN132: 0 | FO132: 0 | FP132: 0 | FQ132: 0 | FR132: 0 | FS132: 0 | FT132: 0 | FU132: 0 | FV132: 0 | FW132: 0 | FX132: 0 | FY132: 0 | FZ132: 0 | GA132: 0 | GB132: 0 | GC132: 0 | GD132: 0 | GE132: 0 | GF132: 0 | GG132: 0 | GH132: 0 | GI132: 0 | GJ132: 0 | GK132: 0 | GL132: 0 | GM132: 0 | GN132: 0 | GO132: 0 | GP132: 0 | GQ132: 0 | GR132: 0 | GS132: 0 | GT132: 0 | GU132: 0 | GV132: 0 | GW132: 0 | GX132: 0 | GY132: 0 | GZ132: 0 | HA132: 0 | HB132: 0 | HC132: 0 | HD132: 0 | HE132: 0 | HF132: 0 | HG132: 0 | HH132: 0 | HI132: 0 | HJ132: 0 | HK132: 0 | HL132: 0 | HM132: 0 | HN132: 0 | HO132: 0 | HP132: 0 | HQ132: 0 | HR132: 0 | HS132: 0 | HT132: 0 | HU132: 0 | HV132: 0 | HW132: 0
A133: 9 | B133: 5 | C133: 8 | D133: 12 | E133: 31 | F133: 10 | G133: 66 | H133: 0 | I133: 0 | J133: 0 | K133: 0 | L133: 12 | M133: 7 | N133: 21 | O133: 43 | P133: 5 | Q133: 88 | R133: 7 | S133: 7 | T133: 21 | U133: 40 | V133: 5 | W133: 80 | X133: 0 | Y133: 0 | Z133: 0 | AA133: 0 | AB133: 0 | AC133: 0 | AD133: 0 | AE133: 0 | AF133: 0 | AG133: 0 | AH133: 0 | AI133: 0 | AJ133: 0 | AK133: 0 | AL133: 0 | AM133: 0 | AN133: 0 | AO133: 0 | AP133: 0 | AQ133: 0 | AR133: 0 | AS133: 0 | AT133: 0 | AU133: 0 | AV133: 0 | AW133: 0 | AX133: 0 | AY133: 0 | AZ133: 0 | BA133: 0 | BB133: 0 | BC133: 0 | BD133: 0 | BE133: 0 | BF133: 0 | BG133: 0 | BH133: 0 | BI133: 0 | BJ133: 0 | BK133: 0 | BL133: 0 | BM133: 0 | BN133: 0 | BO133: 0 | BP133: 0 | BQ133: 0 | BR133: 0 | BS133: 0 | BT133: 0 | BU133: 0 | BV133: 0 | BW133: 0 | BX133: 0 | BY133: 0 | BZ133: 0 | CA133: 0 | CB133: 0 | CC133: 0 | CD133: 0 | CE133: 0 | CF133: 0 | CG133: 0 | CH133: 0 | CI133: 0 | CJ133: 0 | CK133: 0 | CL133: 0 | CM133: 0 | CN133: 0 | CO133: 0 | CP133: 0 | CQ133: 0 | CR133: 0 | CS133: 0 | CT133: 0 | CU133: 0 | CV133: 0 | CW133: 0 | CX133: 0 | CY133: 0 | CZ133: 0 | DA133: 0 | DB133: 0 | DC133: 0 | DD133: 0 | DE133: 0 | DF133: 0 | DG133: 0 | DH133: 0 | DI133: 0 | DJ133: 0 | DK133: 0 | DL133: 0 | DM133: 0 | DN133: 0 | DO133: 0 | DP133: 0 | DQ133: 0 | DR133: 0 | DS133: 0 | DT133: 0 | DU133: 0 | DV133: 0 | DW133: 0 | DX133: 0 | DY133: 0 | DZ133: 0 | EA133: 0 | EB133: 0 | EC133: 0 | ED133: 0 | EE133: 0 | EF133: 0 | EG133: 0 | EH133: 0 | EI133: 0 | EJ133: 0 | EK133: 0 | EL133: 0 | EM133: 0 | EN133: 0 | EO133: 0 | EP133: 0 | EQ133: 0 | ER133: 0 | ES133: 0 | ET133: 0 | EU133: 0 | EV133: 0 | EW133: 0 | EX133: 0 | EY133: 0 | EZ133: 0 | FA133: 0 | FB133: 0 | FC133: 0 | FD133: 0 | FE133: 0 | FF133: 0 | FG133: 0 | FH133: 0 | FI133: 0 | FJ133: 0 | FK133: 0 | FL133: 0 | FM133: 0 | FN133: 0 | FO133: 0 | FP133: 0 | FQ133: 0 | FR133: 0 | FS133: 0 | FT133: 0 | FU133: 0 | FV133: 0 | FW133: 0 | FX133: 0 | FY133: 0 | FZ133: 0 | GA133: 0 | GB133: 0 | GC133: 0 | GD133: 0 | GE133: 0 | GF133: 0 | GG133: 0 | GH133: 0 | GI133: 0 | GJ133: 0 | GK133: 0 | GL133: 0 | GM133: 0 | GN133: 0 | GO133: 0 | GP133: 0 | GQ133: 0 | GR133: 0 | GS133: 0 | GT133: 0 | GU133: 0 | GV133: 0 | GW133: 0 | GX133: 0 | GY133: 0 | GZ133: 0 | HA133: 0 | HB133: 0 | HC133: 0 | HD133: 0 | HE133: 0 | HF133: 0 | HG133: 0 | HH133: 0 | HI133: 0 | HJ133: 0 | HK133: 0 | HL133: 0 | HM133: 0 | HN133: 0 | HO133: 0 | HP133: 0 | HQ133: 0 | HR133: 0 | HS133: 0 | HT133: 0 | HU133: 0 | HV133: 0 | HW133: 0
A134: Total general | B134: 924 | C134: 361 | D134: 520 | E134: 1349 | F134: 565 | G134: 3719 | H134: 0 | I134: 0 | J134: 0 | K134: 0 | L134: 210 | M134: 101 | N134: 241 | O134: 383 | P134: 63 | Q134: 998 | R134: 196 | S134: 98 | T134: 240 | U134: 379 | V134: 63 | W134: 976 | X134: 0 | Y134: 0 | Z134: 0 | AA134: 0 | AB134: 0 | AC134: 0 | AD134: 0 | AE134: 0 | AF134: 0 | AG134: 0 | AH134: 0 | AI134: 0 | AJ134: 0 | AK134: 0 | AL134: 0 | AM134: 0 | AN134: 0 | AO134: 0 | AP134: 0 | AQ134: 0 | AR134: 0 | AS134: 0 | AT134: 0 | AU134: 0 | AV134: 0 | AW134: 0 | AX134: 0 | AY134: 0 | AZ134: 0 | BA134: 0 | BB134: 0 | BC134: 0 | BD134: 0 | BE134: 0 | BF134: 0 | BG134: 0 | BH134: 2 | BI134: 0 | BJ134: 2 | BK134: 2 | BL134: 1 | BM134: 0 | BN134: 2 | BO134: 0 | BP134: 0 | BQ134: 4 | BR134: 0 | BS134: 0 | BT134: 0 | BU134: 0 | BV134: 0 | BW134: 0 | BX134: 0 | BY134: 0 | BZ134: 0 | CA134: 0 | CB134: 0 | CC134: 0 | CD134: 0 | CE134: 0 | CF134: 0 | CG134: 0 | CH134: 0 | CI134: 0 | CJ134: 0 | CK134: 0 | CL134: 0 | CM134: 0 | CN134: 0 | CO134: 0 | CP134: 0 | CQ134: 0 | CR134: 0 | CS134: 0 | CT134: 0 | CU134: 0 | CV134: 0 | CW134: 0 | CX134: 0 | CY134: 0 | CZ134: 0 | DA134: 0 | DB134: 0 | DC134: 0 | DD134: 0 | DE134: 0 | DF134: 0 | DG134: 0 | DH134: 0 | DI134: 0 | DJ134: 0 | DK134: 0 | DL134: 0 | DM134: 0 | DN134: 0 | DO134: 0 | DP134: 0 | DQ134: 0 | DR134: 0 | DS134: 0 | DT134: 0 | DU134: 0 | DV134: 0 | DW134: 0 | DX134: 0 | DY134: 0 | DZ134: 0 | EA134: 0 | EB134: 0 | EC134: 0 | ED134: 0 | EE134: 0 | EF134: 0 | EG134: 0 | EH134: 0 | EI134: 0 | EJ134: 0 | EK134: 0 | EL134: 0 | EM134: 0 | EN134: 0 | EO134: 0 | EP134: 0 | EQ134: 0 | ER134: 0 | ES134: 0 | ET134: 0 | EU134: 0 | EV134: 0 | EW134: 0 | EX134: 0 | EY134: 0 | EZ134: 0 | FA134: 0 | FB134: 0 | FC134: 0 | FD134: 0 | FE134: 0 | FF134: 0 | FG134: 0 | FH134: 0 | FI134: 0 | FJ134: 0 | FK134: 0 | FL134: 0 | FM134: 0 | FN134: 0 | FO134: 0 | FP134: 0 | FQ134: 0 | FR134: 0 | FS134: 0 | FT134: 0 | FU134: 0 | FV134: 0 | FW134: 0 | FX134: 0 | FY134: 0 | FZ134: 0 | GA134: 0 | GB134: 0 | GC134: 0 | GD134: 0 | GE134: 0 | GF134: 0 | GG134: 0 | GH134: 0 | GI134: 0 | GJ134: 0 | GK134: 0 | GL134: 0 | GM134: 0 | GN134: 0 | GO134: 0 | GP134: 0 | GQ134: 0 | GR134: 0 | GS134: 0 | GT134: 0 | GU134: 0 | GV134: 0 | GW134: 0 | GX134: 0 | GY134: 0 | GZ134: 0 | HA134: 0 | HB134: 0 | HC134: 0 | HD134: 0 | HE134: 0 | HF134: 0 | HG134: 0 | HH134: 0 | HI134: 0 | HJ134: 0 | HK134: 0 | HL134: 0 | HM134: 0 | HN134: 0 | HO134: 0 | HP134: 0 | HQ134: 0 | HR134: 0 | HS134: 0 | HT134: 0 | HU134: 0 | HV134: 0 | HW134: 0
A159: Anio | B159: 2024
A160: UE | B160: (Todas)
A161: Red | B161: LA CONVENCION
A162: MicroRed | B162: (Todas)
A163: EESS | B163: (Todas)
A164: Provincia | B164: (Todas)
A165: Distrito | B165: (Todas)
A167: Etiquetas de fila | B167: BAS001 | C167: BAS002 | D167: BAS003 | E167: BAS004 | F167: BAS005 | G167: BAS006 | H167: BAS007 | I167: BAS008 | J167: BAS009 | K167: BAS010 | L167: BAS011 | M167: BAS012 | N167: BAS013 | O167: BAS014 | P167: BAS015 | Q167: BAS016 | R167: BAS017 | S167: BAS018 | T167: BAS019 | U167: BAS020 | V167: BAS021 | W167: BAS022 | X167: BAS023 | Y167: BAS024 | Z167: BAS025 | AA167: BAS026 | AB167: BAS027 | AC167: BAS028 | AD167: BAS029 | AE167: BAS030 | AF167: BAS031 | AG167: BAS032 | AH167: BAS033 | AI167: BAS034 | AJ167: BAS035 | AK167: BAS036 | AL167: BAS037 | AM167: BAS038 | AN167: BAS039 | AO167: BAS040 | AP167: BAS041 | AQ167: BAS042 | AR167: BAS043 | AS167: BAS044 | AT167: BAS045 | AU167: BAS046 | AV167: BAS047 | AW167: BAS048 | AX167: BAS049 | AY167: BAS050 | AZ167: BAS051 | BA167: BAS052 | BB167: BAS053 | BC167: BAS054 | BD167: BAS055 | BE167: BAS056 | BF167: BAS057 | BG167: BAS058 | BH167: BAS059 | BI167: BAS060 | BJ167: BAS061 | BK167: BAS062 | BL167: BAS063 | BM167: BAS064 | BN167: BAS065 | BO167: BAS066 | BP167: BAS067 | BQ167: BAS068 | BR167: BAS069 | BS167: BAS070 | BT167: BAS071 | BU167: BAS072 | BV167: BAS073 | BW167: BAS074 | BX167: BAS075 | BY167: BAS076 | BZ167: BAS077 | CA167: BAS078 | CB167: BAS079 | CC167: BAS080 | CD167: BAS081 | CE167: BAS082 | CF167: BAS083 | CG167: BAS084 | CH167: BAS085 | CI167: BAS086 | CJ167: BAS087 | CK167: BAS088 | CL167: BAS089 | CM167: BAS090 | CN167: BAS091 | CO167: BAS092 | CP167: BAS093 | CQ167: BAS094 | CR167: BAS095 | CS167: BAS096 | CT167: BAS097 | CU167: BAS098 | CV167: BAS099 | CW167: BAS100 | CX167: BAS101 | CY167: BAS102 | CZ167: BAS103 | DA167: BAS104 | DB167: BAS105 | DC167: BAS106 | DD167: BAS107 | DE167: BAS108 | DF167: BAS109 | DG167: BAS110 | DH167: BAS111 | DI167: BAS112 | DJ167: BAS113 | DK167: BAS114 | DL167: BAS115 | DM167: BAS116 | DN167: BAS117 | DO167: BAS118 | DP167: BAS119 | DQ167: BAS120 | DR167: BAS121 | DS167: BAS122 | DT167: BAS123 | DU167: BAS124 | DV167: BAS125 | DW167: BAS126 | DX167: BAS127 | DY167: BAS128 | DZ167: BAS129 | EA167: BAS130 | EB167: BAS131 | EC167: BAS132 | ED167: BAS133 | EE167: BAS134 | EF167: BAS135 | EG167: BAS136 | EH167: BAS137 | EI167: BAS138 | EJ167: BAS139 | EK167: BAS140 | EL167: BAS141 | EM167: BAS142 | EN167: BAS143 | EO167: BAS144 | EP167: BAS145 | EQ167: BAS146 | ER167: BAS147 | ES167: BAS148 | ET167: BAS149 | EU167: BAS150 | EV167: BAS151 | EW167: BAS152 | EX167: BAS153 | EY167: BAS154 | EZ167: BAS155 | FA167: BAS156 | FB167: BAS157 | FC167: BAS158 | FD167: BAS159 | FE167: BAS160 | FF167: BAS161 | FG167: BAS162 | FH167: BAS163 | FI167: BAS164 | FJ167: BAS165 | FK167: BAS166 | FL167: BAS167 | FM167: BAS168 | FN167: BAS169 | FO167: BAS170 | FP167: BAS171 | FQ167: BAS172 | FR167: BAS173 | FS167: BAS174 | FT167: BAS175 | FU167: BAS176 | FV167: BAS177 | FW167: BAS178 | FX167: BAS179 | FY167: BAS180 | FZ167: BAS181 | GA167: BAS182 | GB167: BAS183 | GC167: BAS184 | GD167: BAS185 | GE167: BAS186 | GF167: BAS187 | GG167: BAS188 | GH167: BAS189 | GI167: BAS190 | GJ167: BAS191 | GK167: BAS192 | GL167: BAS193 | GM167: BAS194 | GN167: BAS195 | GO167: BAS196 | GP167: BAS197 | GQ167: BAS198 | GR167: BAS199 | GS167: BAS200 | GT167: BAS201 | GU167: BAS202 | GV167: BAS203 | GW167: BAS204 | GX167: BAS205 | GY167: BAS206 | GZ167: BAS207 | HA167: BAS208 | HB167: BAS209 | HC167: BAS210 | HD167: BAS211 | HE167: BAS212 | HF167: BAS213 | HG167: BAS214 | HH167: BAS215 | HI167: BAS216 | HJ167: BAS217 | HK167: BAS218 | HL167: BAS219 | HM167: BAS220 | HN167: BAS221 | HO167: BAS222 | HP167: BAS223 | HQ167: BAS224 | HR167: BAS225 | HS167: BAS226 | HT167: BAS227 | HU167: BAS228 | HV167: BAS229 | HW167: BAS230
A168: 1 | B168: 5826 | C168: 1299 | D168: 3967 | E168: 8847 | F168: 3914 | G168: 23853 | H168: 0 | I168: 0 | J168: 0 | K168: 0 | L168: 0 | M168: 0 | N168: 0 | O168: 0 | P168: 0 | Q168: 0 | R168: 0 | S168: 0 | T168: 0 | U168: 0 | V168: 0 | W168: 0 | X168: 0 | Y168: 0 | Z168: 0 | AA168: 0 | AB168: 0 | AC168: 0 | AD168: 0 | AE168: 0 | AF168: 0 | AG168: 0 | AH168: 0 | AI168: 0 | AJ168: 0 | AK168: 0 | AL168: 0 | AM168: 0 | AN168: 0 | AO168: 0 | AP168: 0 | AQ168: 0 | AR168: 0 | AS168: 0 | AT168: 0 | AU168: 0 | AV168: 0 | AW168: 0 | AX168: 0 | AY168: 0 | AZ168: 0 | BA168: 0 | BB168: 0 | BC168: 0 | BD168: 0 | BE168: 0 | BF168: 0 | BG168: 0 | BH168: 0 | BI168: 0 | BJ168: 0 | BK168: 0 | BL168: 0 | BM168: 0 | BN168: 0 | BO168: 0 | BP168: 0 | BQ168: 0 | BR168: 0 | BS168: 0 | BT168: 0 | BU168: 0 | BV168: 0 | BW168: 0 | BX168: 0 | BY168: 0 | BZ168: 0 | CA168: 0 | CB168: 0 | CC168: 0 | CD168: 0 | CE168: 0 | CF168: 0 | CG168: 0 | CH168: 0 | CI168: 0 | CJ168: 0 | CK168: 0 | CL168: 0 | CM168: 0 | CN168: 0 | CO168: 0 | CP168: 0 | CQ168: 0 | CR168: 0 | CS168: 0 | CT168: 0 | CU168: 0 | CV168: 0 | CW168: 0 | CX168: 45 | CY168: 41 | CZ168: 90 | DA168: 249 | DB168: 67 | DC168: 2 | DD168: 26 | DE168: 33 | DF168: 43 | DG168: 321 | DH168: 5 | DI168: 12 | DJ168: 35 | DK168: 110 | DL168: 30 | DM168: 0 | DN168: 2 | DO168: 6 | DP168: 13 | DQ168: 139 | DR168: 0 | DS168: 0 | DT168: 0 | DU168: 1 | DV168: 0 | DW168: 0 | DX168: 0 | DY168: 0 | DZ168: 0 | EA168: 1 | EB168: 0 | EC168: 0 | ED168: 0 | EE168: 0 | EF168: 0 | EG168: 0 | EH168: 0 | EI168: 0 | EJ168: 0 | EK168: 0 | EL168: 0 | EM168: 0 | EN168: 0 | EO168: 0 | EP168: 0 | EQ168: 0 | ER168: 0 | ES168: 0 | ET168: 0 | EU168: 0 | EV168: 24 | EW168: 8 | EX168: 40 | EY168: 123 | EZ168: 28 | FA168: 2 | FB168: 8 | FC168: 2 | FD168: 12 | FE168: 159 | FF168: 1 | FG168: 0 | FH168: 0 | FI168: 2 | FJ168: 0 | FK168: 0 | FL168: 0 | FM168: 0 | FN168: 0 | FO168: 2 | FP168: 0 | FQ168: 0 | FR168: 0 | FS168: 0 | FT168: 0 | FU168: 0 | FV168: 0 | FW168: 0 | FX168: 0 | FY168: 0 | FZ168: 0 | GA168: 0 | GB168: 1 | GC168: 0 | GD168: 0 | GE168: 0 | GF168: 0 | GG168: 0 | GH168: 0 | GI168: 1 | GJ168: 0 | GK168: 0 | GL168: 0 | GM168: 0 | GN168: 0 | GO168: 0 | GP168: 0 | GQ168: 0 | GR168: 0 | GS168: 0 | GT168: 0 | GU168: 0 | GV168: 0 | GW168: 0 | GX168: 0 | GY168: 0 | GZ168: 0 | HA168: 0 | HB168: 0 | HC168: 0 | HD168: 0 | HE168: 0 | HF168: 0 | HG168: 0 | HH168: 0 | HI168: 0 | HJ168: 0 | HK168: 0 | HL168: 0 | HM168: 0 | HN168: 0 | HO168: 0 | HP168: 0 | HQ168: 0 | HR168: 0 | HS168: 0 | HT168: 0 | HU168: 0 | HV168: 0 | HW168: 0
A169: 2 | B169: 2904 | C169: 1000 | D169: 2875 | E169: 5677 | F169: 2094 | G169: 14550 | H169: 0 | I169: 0 | J169: 0 | K169: 0 | L169: 0 | M169: 0 | N169: 0 | O169: 0 | P169: 0 | Q169: 0 | R169: 0 | S169: 0 | T169: 0 | U169: 0 | V169: 0 | W169: 0 | X169: 0 | Y169: 0 | Z169: 0 | AA169: 0 | AB169: 0 | AC169: 0 | AD169: 0 | AE169: 0 | AF169: 0 | AG169: 0 | AH169: 0 | AI169: 0 | AJ169: 0 | AK169: 0 | AL169: 0 | AM169: 0 | AN169: 0 | AO169: 0 | AP169: 0 | AQ169: 0 | AR169: 0 | AS169: 0 | AT169: 0 | AU169: 0 | AV169: 0 | AW169: 0 | AX169: 0 | AY169: 0 | AZ169: 0 | BA169: 0 | BB169: 0 | BC169: 0 | BD169: 0 | BE169: 0 | BF169: 0 | BG169: 0 | BH169: 0 | BI169: 0 | BJ169: 0 | BK169: 0 | BL169: 0 | BM169: 0 | BN169: 0 | BO169: 0 | BP169: 0 | BQ169: 0 | BR169: 0 | BS169: 0 | BT169: 0 | BU169: 0 | BV169: 0 | BW169: 0 | BX169: 0 | BY169: 0 | BZ169: 0 | CA169: 0 | CB169: 0 | CC169: 0 | CD169: 0 | CE169: 0 | CF169: 0 | CG169: 0 | CH169: 0 | CI169: 0 | CJ169: 0 | CK169: 0 | CL169: 0 | CM169: 0 | CN169: 0 | CO169: 0 | CP169: 0 | CQ169: 0 | CR169: 0 | CS169: 0 | CT169: 0 | CU169: 0 | CV169: 0 | CW169: 0 | CX169: 122 | CY169: 113 | CZ169: 321 | DA169: 444 | DB169: 152 | DC169: 5 | DD169: 82 | DE169: 82 | DF169: 134 | DG169: 697 | DH169: 32 | DI169: 44 | DJ169: 120 | DK169: 190 | DL169: 41 | DM169: 0 | DN169: 22 | DO169: 27 | DP169: 42 | DQ169: 292 | DR169: 0 | DS169: 0 | DT169: 0 | DU169: 0 | DV169: 0 | DW169: 0 | DX169: 0 | DY169: 0 | DZ169: 0 | EA169: 0 | EB169: 0 | EC169: 0 | ED169: 0 | EE169: 0 | EF169: 0 | EG169: 0 | EH169: 0 | EI169: 0 | EJ169: 0 | EK169: 0 | EL169: 0 | EM169: 0 | EN169: 0 | EO169: 0 | EP169: 0 | EQ169: 0 | ER169: 0 | ES169: 0 | ET169: 0 | EU169: 0 | EV169: 51 | EW169: 18 | EX169: 83 | EY169: 141 | EZ169: 29 | FA169: 0 | FB169: 21 | FC169: 5 | FD169: 32 | FE169: 210 | FF169: 0 | FG169: 1 | FH169: 0 | FI169: 1 | FJ169: 0 | FK169: 0 | FL169: 0 | FM169: 0 | FN169: 1 | FO169: 1 | FP169: 0 | FQ169: 0 | FR169: 0 | FS169: 0 | FT169: 0 | FU169: 0 | FV169: 0 | FW169: 0 | FX169: 0 | FY169: 0 | FZ169: 1 | GA169: 0 | GB169: 16 | GC169: 17 | GD169: 1 | GE169: 0 | GF169: 0 | GG169: 0 | GH169: 0 | GI169: 33 | GJ169: 0 | GK169: 0 | GL169: 0 | GM169: 0 | GN169: 0 | GO169: 0 | GP169: 0 | GQ169: 0 | GR169: 0 | GS169: 0 | GT169: 0 | GU169: 0 | GV169: 0 | GW169: 0 | GX169: 0 | GY169: 0 | GZ169: 0 | HA169: 0 | HB169: 0 | HC169: 0 | HD169: 0 | HE169: 0 | HF169: 0 | HG169: 0 | HH169: 0 | HI169: 0 | HJ169: 0 | HK169: 0 | HL169: 0 | HM169: 0 | HN169: 0 | HO169: 0 | HP169: 0 | HQ169: 0 | HR169: 0 | HS169: 0 | HT169: 0 | HU169: 0 | HV169: 0 | HW169: 0
A170: 3 | B170: 2446 | C170: 1020 | D170: 2499 | E170: 4877 | F170: 1536 | G170: 12378 | H170: 0 | I170: 0 | J170: 0 | K170: 0 | L170: 0 | M170: 0 | N170: 0 | O170: 0 | P170: 0 | Q170: 0 | R170: 0 | S170: 0 | T170: 0 | U170: 0 | V170: 0 | W170: 0 | X170: 0 | Y170: 0 | Z170: 0 | AA170: 0 | AB170: 0 | AC170: 0 | AD170: 0 | AE170: 0 | AF170: 0 | AG170: 0 | AH170: 0 | AI170: 0 | AJ170: 0 | AK170: 0 | AL170: 0 | AM170: 0 | AN170: 0 | AO170: 0 | AP170: 0 | AQ170: 0 | AR170: 0 | AS170: 0 | AT170: 0 | AU170: 0 | AV170: 0 | AW170: 0 | AX170: 0 | AY170: 0 | AZ170: 0 | BA170: 0 | BB170: 0 | BC170: 0 | BD170: 0 | BE170: 0 | BF170: 0 | BG170: 0 | BH170: 0 | BI170: 0 | BJ170: 0 | BK170: 0 | BL170: 0 | BM170: 0 | BN170: 0 | BO170: 0 | BP170: 0 | BQ170: 0 | BR170: 0 | BS170: 0 | BT170: 0 | BU170: 0 | BV170: 0 | BW170: 0 | BX170: 0 | BY170: 0 | BZ170: 0 | CA170: 0 | CB170: 0 | CC170: 0 | CD170: 0 | CE170: 0 | CF170: 0 | CG170: 0 | CH170: 0 | CI170: 0 | CJ170: 0 | CK170: 0 | CL170: 0 | CM170: 0 | CN170: 0 | CO170: 0 | CP170: 0 | CQ170: 0 | CR170: 0 | CS170: 0 | CT170: 0 | CU170: 0 | CV170: 0 | CW170: 0 | CX170: 95 | CY170: 103 | CZ170: 238 | DA170: 370 | DB170: 120 | DC170: 3 | DD170: 63 | DE170: 89 | DF170: 81 | DG170: 570 | DH170: 13 | DI170: 13 | DJ170: 58 | DK170: 85 | DL170: 15 | DM170: 0 | DN170: 7 | DO170: 11 | DP170: 12 | DQ170: 137 | DR170: 0 | DS170: 0 | DT170: 0 | DU170: 0 | DV170: 0 | DW170: 0 | DX170: 0 | DY170: 0 | DZ170: 0 | EA170: 0 | EB170: 0 | EC170: 0 | ED170: 0 | EE170: 0 | EF170: 0 | EG170: 0 | EH170: 0 | EI170: 0 | EJ170: 0 | EK170: 0 | EL170: 0 | EM170: 0 | EN170: 0 | EO170: 0 | EP170: 0 | EQ170: 0 | ER170: 0 | ES170: 0 | ET170: 0 | EU170: 0 | EV170: 17 | EW170: 4 | EX170: 50 | EY170: 60 | EZ170: 15 | FA170: 0 | FB170: 4 | FC170: 2 | FD170: 13 | FE170: 101 | FF170: 0 | FG170: 0 | FH170: 0 | FI170: 0 | FJ170: 0 | FK170: 0 | FL170: 0 | FM170: 0 | FN170: 0 | FO170: 0 | FP170: 0 | FQ170: 0 | FR170: 0 | FS170: 0 | FT170: 0 | FU170: 0 | FV170: 0 | FW170: 0 | FX170: 0 | FY170: 0 | FZ170: 1 | GA170: 0 | GB170: 9 | GC170: 8 | GD170: 0 | GE170: 0 | GF170: 0 | GG170: 0 | GH170: 0 | GI170: 17 | GJ170: 0 | GK170: 0 | GL170: 0 | GM170: 0 | GN170: 0 | GO170: 0 | GP170: 0 | GQ170: 0 | GR170: 0 | GS170: 0 | GT170: 0 | GU170: 0 | GV170: 0 | GW170: 0 | GX170: 0 | GY170: 0 | GZ170: 0 | HA170: 0 | HB170: 0 | HC170: 0 | HD170: 0 | HE170: 0 | HF170: 0 | HG170: 0 | HH170: 0 | HI170: 0 | HJ170: 0 | HK170: 0 | HL170: 0 | HM170: 0 | HN170: 0 | HO170: 0 | HP170: 0 | HQ170: 0 | HR170: 0 | HS170: 0 | HT170: 0 | HU170: 0 | HV170: 0 | HW170: 0
A171: 4 | B171: 4631 | C171: 2692 | D171: 2391 | E171: 4765 | F171: 2085 | G171: 16564 | H171: 0 | I171: 0 | J171: 0 | K171: 0 | L171: 0 | M171: 0 | N171: 0 | O171: 0 | P171: 0 | Q171: 0 | R171: 0 | S171: 0 | T171: 0 | U171: 0 | V171: 0 | W171: 0 | X171: 0 | Y171: 0 | Z171: 0 | AA171: 0 | AB171: 0 | AC171: 0 | AD171: 0 | AE171: 0 | AF171: 0 | AG171: 0 | AH171: 0 | AI171: 0 | AJ171: 0 | AK171: 0 | AL171: 0 | AM171: 0 | AN171: 0 | AO171: 0 | AP171: 0 | AQ171: 0 | AR171: 0 | AS171: 0 | AT171: 0 | AU171: 0 | AV171: 0 | AW171: 0 | AX171: 0 | AY171: 0 | AZ171: 0 | BA171: 0 | BB171: 0 | BC171: 0 | BD171: 0 | BE171: 0 | BF171: 0 | BG171: 0 | BH171: 0 | BI171: 0 | BJ171: 0 | BK171: 0 | BL171: 0 | BM171: 0 | BN171: 0 | BO171: 0 | BP171: 0 | BQ171: 0 | BR171: 0 | BS171: 0 | BT171: 0 | BU171: 0 | BV171: 0 | BW171: 0 | BX171: 0 | BY171: 0 | BZ171: 0 | CA171: 0 | CB171: 0 | CC171: 0 | CD171: 0 | CE171: 0 | CF171: 0 | CG171: 0 | CH171: 0 | CI171: 0 | CJ171: 0 | CK171: 0 | CL171: 0 | CM171: 0 | CN171: 0 | CO171: 0 | CP171: 0 | CQ171: 0 | CR171: 0 | CS171: 0 | CT171: 0 | CU171: 0 | CV171: 0 | CW171: 0 | CX171: 155 | CY171: 119 | CZ171: 208 | DA171: 393 | DB171: 91 | DC171: 7 | DD171: 109 | DE171: 96 | DF171: 110 | DG171: 553 | DH171: 21 | DI171: 9 | DJ171: 40 | DK171: 69 | DL171: 14 | DM171: 0 | DN171: 13 | DO171: 7 | DP171: 11 | DQ171: 104 | DR171: 0 | DS171: 0 | DT171: 0 | DU171: 0 | DV171: 0 | DW171: 0 | DX171: 0 | DY171: 0 | DZ171: 0 | EA171: 0 | EB171: 0 | EC171: 0 | ED171: 0 | EE171: 0 | EF171: 0 | EG171: 0 | EH171: 0 | EI171: 0 | EJ171: 0 | EK171: 0 | EL171: 0 | EM171: 0 | EN171: 0 | EO171: 0 | EP171: 0 | EQ171: 0 | ER171: 0 | ES171: 0 | ET171: 0 | EU171: 0 | EV171: 28 | EW171: 7 | EX171: 37 | EY171: 37 | EZ171: 4 | FA171: 0 | FB171: 9 | FC171: 1 | FD171: 9 | FE171: 72 | FF171: 0 | FG171: 0 | FH171: 0 | FI171: 0 | FJ171: 0 | FK171: 0 | FL171: 0 | FM171: 0 | FN171: 0 | FO171: 0 | FP171: 0 | FQ171: 0 | FR171: 0 | FS171: 0 | FT171: 0 | FU171: 0 | FV171: 0 | FW171: 0 | FX171: 0 | FY171: 0 | FZ171: 1 | GA171: 0 | GB171: 4 | GC171: 4 | GD171: 0 | GE171: 0 | GF171: 0 | GG171: 0 | GH171: 0 | GI171: 8 | GJ171: 0 | GK171: 0 | GL171: 0 | GM171: 0 | GN171: 0 | GO171: 0 | GP171: 0 | GQ171: 0 | GR171: 0 | GS171: 0 | GT171: 0 | GU171: 0 | GV171: 0 | GW171: 0 | GX171: 0 | GY171: 0 | GZ171: 0 | HA171: 0 | HB171: 0 | HC171: 0 | HD171: 0 | HE171: 0 | HF171: 0 | HG171: 0 | HH171: 0 | HI171: 0 | HJ171: 0 | HK171: 0 | HL171: 0 | HM171: 0 | HN171: 0 | HO171: 0 | HP171: 0 | HQ171: 0 | HR171: 0 | HS171: 0 | HT171: 0 | HU171: 0 | HV171: 0 | HW171: 0
A172: 5 | B172: 3320 | C172: 1888 | D172: 2376 | E172: 4354 | F172: 1359 | G172: 13297 | H172: 0 | I172: 0 | J172: 0 | K172: 0 | L172: 0 | M172: 0 | N172: 0 | O172: 0 | P172: 0 | Q172: 0 | R172: 0 | S172: 0 | T172: 0 | U172: 0 | V172: 0 | W172: 0 | X172: 0 | Y172: 0 | Z172: 0 | AA172: 0 | AB172: 0 | AC172: 0 | AD172: 0 | AE172: 0 | AF172: 0 | AG172: 0 | AH172: 0 | AI172: 0 | AJ172: 0 | AK172: 0 | AL172: 0 | AM172: 0 | AN172: 0 | AO172: 0 | AP172: 0 | AQ172: 0 | AR172: 0 | AS172: 0 | AT172: 0 | AU172: 0 | AV172: 0 | AW172: 0 | AX172: 0 | AY172: 0 | AZ172: 0 | BA172: 0 | BB172: 0 | BC172: 0 | BD172: 0 | BE172: 0 | BF172: 0 | BG172: 0 | BH172: 0 | BI172: 0 | BJ172: 0 | BK172: 0 | BL172: 0 | BM172: 0 | BN172: 0 | BO172: 0 | BP172: 0 | BQ172: 0 | BR172: 0 | BS172: 0 | BT172: 0 | BU172: 0 | BV172: 0 | BW172: 0 | BX172: 0 | BY172: 0 | BZ172: 0 | CA172: 0 | CB172: 0 | CC172: 0 | CD172: 0 | CE172: 0 | CF172: 0 | CG172: 0 | CH172: 0 | CI172: 0 | CJ172: 0 | CK172: 0 | CL172: 0 | CM172: 0 | CN172: 0 | CO172: 0 | CP172: 0 | CQ172: 0 | CR172: 0 | CS172: 0 | CT172: 0 | CU172: 0 | CV172: 0 | CW172: 0 | CX172: 170 | CY172: 159 | CZ172: 292 | DA172: 346 | DB172: 84 | DC172: 1 | DD172: 103 | DE172: 157 | DF172: 126 | DG172: 580 | DH172: 34 | DI172: 25 | DJ172: 62 | DK172: 82 | DL172: 13 | DM172: 1 | DN172: 24 | DO172: 16 | DP172: 24 | DQ172: 134 | DR172: 0 | DS172: 0 | DT172: 0 | DU172: 0 | DV172: 0 | DW172: 0 | DX172: 0 | DY172: 0 | DZ172: 0 | EA172: 0 | EB172: 0 | EC172: 0 | ED172: 0 | EE172: 0 | EF172: 0 | EG172: 0 | EH172: 0 | EI172: 0 | EJ172: 0 | EK172: 0 | EL172: 0 | EM172: 0 | EN172: 0 | EO172: 0 | EP172: 0 | EQ172: 0 | ER172: 0 | ES172: 0 | ET172: 0 | EU172: 0 | EV172: 51 | EW172: 13 | EX172: 58 | EY172: 64 | EZ172: 6 | FA172: 0 | FB172: 21 | FC172: 8 | FD172: 23 | FE172: 112 | FF172: 0 | FG172: 0 | FH172: 0 | FI172: 0 | FJ172: 0 | FK172: 0 | FL172: 0 | FM172: 0 | FN172: 0 | FO172: 0 | FP172: 0 | FQ172: 0 | FR172: 0 | FS172: 0 | FT172: 0 | FU172: 0 | FV172: 0 | FW172: 0 | FX172: 0 | FY172: 0 | FZ172: 3 | GA172: 0 | GB172: 2 | GC172: 10 | GD172: 1 | GE172: 0 | GF172: 0 | GG172: 0 | GH172: 0 | GI172: 12 | GJ172: 0 | GK172: 0 | GL172: 0 | GM172: 0 | GN172: 0 | GO172: 0 | GP172: 0 | GQ172: 0 | GR172: 0 | GS172: 0 | GT172: 0 | GU172: 0 | GV172: 0 | GW172: 0 | GX172: 0 | GY172: 0 | GZ172: 0 | HA172: 0 | HB172: 0 | HC172: 0 | HD172: 0 | HE172: 0 | HF172: 0 | HG172: 0 | HH172: 0 | HI172: 0 | HJ172: 0 | HK172: 0 | HL172: 0 | HM172: 0 | HN172: 0 | HO172: 0 | HP172: 0 | HQ172: 0 | HR172: 0 | HS172: 0 | HT172: 0 | HU172: 0 | HV172: 0 | HW172: 0
A173: 6 | B173: 2247 | C173: 1558 | D173: 1816 | E173: 3996 | F173: 1214 | G173: 10831 | H173: 0 | I173: 0 | J173: 0 | K173: 0 | L173: 0 | M173: 0 | N173: 0 | O173: 0 | P173: 0 | Q173: 0 | R173: 0 | S173: 0 | T173: 0 | U173: 0 | V173: 0 | W173: 0 | X173: 0 | Y173: 0 | Z173: 0 | AA173: 0 | AB173: 0 | AC173: 0 | AD173: 0 | AE173: 0 | AF173: 0 | AG173: 0 | AH173: 0 | AI173: 0 | AJ173: 0 | AK173: 0 | AL173: 0 | AM173: 0 | AN173: 0 | AO173: 0 | AP173: 0 | AQ173: 0 | AR173: 0 | AS173: 0 | AT173: 0 | AU173: 0 | AV173: 0 | AW173: 0 | AX173: 0 | AY173: 0 | AZ173: 0 | BA173: 0 | BB173: 0 | BC173: 0 | BD173: 0 | BE173: 0 | BF173: 0 | BG173: 0 | BH173: 0 | BI173: 0 | BJ173: 0 | BK173: 0 | BL173: 0 | BM173: 0 | BN173: 0 | BO173: 0 | BP173: 0 | BQ173: 0 | BR173: 0 | BS173: 0 | BT173: 0 | BU173: 0 | BV173: 0 | BW173: 0 | BX173: 0 | BY173: 0 | BZ173: 0 | CA173: 0 | CB173: 0 | CC173: 0 | CD173: 0 | CE173: 0 | CF173: 0 | CG173: 0 | CH173: 0 | CI173: 0 | CJ173: 0 | CK173: 0 | CL173: 0 | CM173: 0 | CN173: 0 | CO173: 0 | CP173: 0 | CQ173: 0 | CR173: 0 | CS173: 0 | CT173: 0 | CU173: 0 | CV173: 0 | CW173: 0 | CX173: 67 | CY173: 57 | CZ173: 112 | DA173: 154 | DB173: 56 | DC173: 3 | DD173: 50 | DE173: 38 | DF173: 61 | DG173: 238 | DH173: 10 | DI173: 7 | DJ173: 16 | DK173: 46 | DL173: 7 | DM173: 1 | DN173: 6 | DO173: 5 | DP173: 5 | DQ173: 60 | DR173: 0 | DS173: 0 | DT173: 0 | DU173: 0 | DV173: 0 | DW173: 0 | DX173: 0 | DY173: 0 | DZ173: 0 | EA173: 0 | EB173: 0 | EC173: 0 | ED173: 0 | EE173: 0 | EF173: 0 | EG173: 0 | EH173: 0 | EI173: 0 | EJ173: 0 | EK173: 0 | EL173: 0 | EM173: 0 | EN173: 0 | EO173: 0 | EP173: 0 | EQ173: 0 | ER173: 0 | ES173: 0 | ET173: 0 | EU173: 0 | EV173: 21 | EW173: 3 | EX173: 15 | EY173: 20 | EZ173: 4 | FA173: 0 | FB173: 8 | FC173: 3 | FD173: 3 | FE173: 35 | FF173: 0 | FG173: 0 | FH173: 0 | FI173: 0 | FJ173: 0 | FK173: 0 | FL173: 0 | FM173: 0 | FN173: 0 | FO173: 0 | FP173: 0 | FQ173: 0 | FR173: 0 | FS173: 0 | FT173: 0 | FU173: 0 | FV173: 0 | FW173: 0 | FX173: 0 | FY173: 0 | FZ173: 0 | GA173: 0 | GB173: 0 | GC173: 0 | GD173: 0 | GE173: 0 | GF173: 0 | GG173: 0 | GH173: 0 | GI173: 0 | GJ173: 0 | GK173: 0 | GL173: 0 | GM173: 0 | GN173: 0 | GO173: 0 | GP173: 0 | GQ173: 0 | GR173: 0 | GS173: 0 | GT173: 0 | GU173: 0 | GV173: 0 | GW173: 0 | GX173: 0 | GY173: 0 | GZ173: 0 | HA173: 0 | HB173: 0 | HC173: 0 | HD173: 0 | HE173: 0 | HF173: 0 | HG173: 0 | HH173: 0 | HI173: 0 | HJ173: 0 | HK173: 0 | HL173: 0 | HM173: 0 | HN173: 0 | HO173: 0 | HP173: 0 | HQ173: 0 | HR173: 0 | HS173: 0 | HT173: 0 | HU173: 0 | HV173: 0 | HW173: 0
A174: 7 | B174: 1026 | C174: 545 | D174: 1503 | E174: 2928 | F174: 961 | G174: 6963 | H174: 0 | I174: 0 | J174: 0 | K174: 0 | L174: 0 | M174: 0 | N174: 0 | O174: 0 | P174: 0 | Q174: 0 | R174: 0 | S174: 0 | T174: 0 | U174: 0 | V174: 0 | W174: 0 | X174: 0 | Y174: 0 | Z174: 0 | AA174: 0 | AB174: 0 | AC174: 0 | AD174: 0 | AE174: 0 | AF174: 0 | AG174: 0 | AH174: 0 | AI174: 0 | AJ174: 0 | AK174: 0 | AL174: 0 | AM174: 0 | AN174: 0 | AO174: 0 | AP174: 0 | AQ174: 0 | AR174: 0 | AS174: 0 | AT174: 0 | AU174: 0 | AV174: 0 | AW174: 0 | AX174: 0 | AY174: 0 | AZ174: 0 | BA174: 0 | BB174: 0 | BC174: 0 | BD174: 0 | BE174: 0 | BF174: 0 | BG174: 0 | BH174: 0 | BI174: 0 | BJ174: 0 | BK174: 0 | BL174: 0 | BM174: 0 | BN174: 0 | BO174: 0 | BP174: 0 | BQ174: 0 | BR174: 0 | BS174: 0 | BT174: 0 | BU174: 0 | BV174: 0 | BW174: 0 | BX174: 0 | BY174: 0 | BZ174: 0 | CA174: 0 | CB174: 0 | CC174: 0 | CD174: 0 | CE174: 0 | CF174: 0 | CG174: 0 | CH174: 0 | CI174: 0 | CJ174: 0 | CK174: 0 | CL174: 0 | CM174: 0 | CN174: 0 | CO174: 0 | CP174: 0 | CQ174: 0 | CR174: 0 | CS174: 0 | CT174: 0 | CU174: 0 | CV174: 0 | CW174: 0 | CX174: 43 | CY174: 25 | CZ174: 67 | DA174: 122 | DB174: 47 | DC174: 2 | DD174: 32 | DE174: 22 | DF174: 19 | DG174: 182 | DH174: 4 | DI174: 0 | DJ174: 7 | DK174: 8 | DL174: 4 | DM174: 0 | DN174: 4 | DO174: 0 | DP174: 0 | DQ174: 15 | DR174: 0 | DS174: 0 | DT174: 0 | DU174: 0 | DV174: 0 | DW174: 0 | DX174: 0 | DY174: 0 | DZ174: 0 | EA174: 0 | EB174: 0 | EC174: 0 | ED174: 0 | EE174: 0 | EF174: 0 | EG174: 0 | EH174: 0 | EI174: 0 | EJ174: 0 | EK174: 0 | EL174: 0 | EM174: 0 | EN174: 0 | EO174: 0 | EP174: 0 | EQ174: 0 | ER174: 0 | ES174: 0 | ET174: 0 | EU174: 0 | EV174: 11 | EW174: 5 | EX174: 3 | EY174: 10 | EZ174: 2 | FA174: 0 | FB174: 4 | FC174: 2 | FD174: 6 | FE174: 12 | FF174: 0 | FG174: 0 | FH174: 0 | FI174: 0 | FJ174: 0 | FK174: 0 | FL174: 0 | FM174: 0 | FN174: 0 | FO174: 0 | FP174: 0 | FQ174: 0 | FR174: 0 | FS174: 0 | FT174: 0 | FU174: 0 | FV174: 0 | FW174: 0 | FX174: 0 | FY174: 0 | FZ174: 0 | GA174: 0 | GB174: 0 | GC174: 0 | GD174: 0 | GE174: 0 | GF174: 0 | GG174: 0 | GH174: 0 | GI174: 0 | GJ174: 0 | GK174: 0 | GL174: 0 | GM174: 0 | GN174: 0 | GO174: 0 | GP174: 0 | GQ174: 0 | GR174: 0 | GS174: 0 | GT174: 0 | GU174: 0 | GV174: 0 | GW174: 0 | GX174: 0 | GY174: 0 | GZ174: 0 | HA174: 0 | HB174: 0 | HC174: 0 | HD174: 0 | HE174: 0 | HF174: 0 | HG174: 0 | HH174: 0 | HI174: 0 | HJ174: 0 | HK174: 0 | HL174: 0 | HM174: 0 | HN174: 0 | HO174: 0 | HP174: 0 | HQ174: 0 | HR174: 0 | HS174: 0 | HT174: 0 | HU174: 0 | HV174: 0 | HW174: 0
A175: 8 | B175: 845 | C175: 456 | D175: 1275 | E175: 2188 | F175: 805 | G175: 5569 | H175: 0 | I175: 0 | J175: 0 | K175: 0 | L175: 0 | M175: 0 | N175: 0 | O175: 0 | P175: 0 | Q175: 0 | R175: 0 | S175: 0 | T175: 0 | U175: 0 | V175: 0 | W175: 0 | X175: 0 | Y175: 0 | Z175: 0 | AA175: 0 | AB175: 0 | AC175: 0 | AD175: 0 | AE175: 0 | AF175: 0 | AG175: 0 | AH175: 0 | AI175: 0 | AJ175: 0 | AK175: 0 | AL175: 0 | AM175: 0 | AN175: 0 | AO175: 0 | AP175: 0 | AQ175: 0 | AR175: 0 | AS175: 0 | AT175: 0 | AU175: 0 | AV175: 0 | AW175: 0 | AX175: 0 | AY175: 0 | AZ175: 0 | BA175: 0 | BB175: 0 | BC175: 0 | BD175: 0 | BE175: 0 | BF175: 0 | BG175: 0 | BH175: 0 | BI175: 0 | BJ175: 0 | BK175: 0 | BL175: 0 | BM175: 0 | BN175: 0 | BO175: 0 | BP175: 0 | BQ175: 0 | BR175: 0 | BS175: 0 | BT175: 0 | BU175: 0 | BV175: 0 | BW175: 0 | BX175: 0 | BY175: 0 | BZ175: 0 | CA175: 0 | CB175: 0 | CC175: 0 | CD175: 0 | CE175: 0 | CF175: 0 | CG175: 0 | CH175: 0 | CI175: 0 | CJ175: 0 | CK175: 0 | CL175: 0 | CM175: 0 | CN175: 0 | CO175: 0 | CP175: 0 | CQ175: 0 | CR175: 0 | CS175: 0 | CT175: 0 | CU175: 0 | CV175: 0 | CW175: 0 | CX175: 21 | CY175: 16 | CZ175: 37 | DA175: 98 | DB175: 36 | DC175: 2 | DD175: 17 | DE175: 10 | DF175: 16 | DG175: 127 | DH175: 0 | DI175: 1 | DJ175: 3 | DK175: 2 | DL175: 2 | DM175: 0 | DN175: 0 | DO175: 1 | DP175: 0 | DQ175: 5 | DR175: 0 | DS175: 0 | DT175: 0 | DU175: 0 | DV175: 0 | DW175: 0 | DX175: 0 | DY175: 0 | DZ175: 0 | EA175: 0 | EB175: 0 | EC175: 0 | ED175: 0 | EE175: 0 | EF175: 0 | EG175: 0 | EH175: 0 | EI175: 0 | EJ175: 0 | EK175: 0 | EL175: 0 | EM175: 0 | EN175: 0 | EO175: 0 | EP175: 0 | EQ175: 0 | ER175: 0 | ES175: 0 | ET175: 0 | EU175: 0 | EV175: 3 | EW175: 0 | EX175: 1 | EY175: 2 | EZ175: 2 | FA175: 0 | FB175: 3 | FC175: 0 | FD175: 0 | FE175: 3 | FF175: 0 | FG175: 0 | FH175: 0 | FI175: 0 | FJ175: 0 | FK175: 0 | FL175: 0 | FM175: 0 | FN175: 0 | FO175: 0 | FP175: 0 | FQ175: 0 | FR175: 0 | FS175: 0 | FT175: 0 | FU175: 0 | FV175: 0 | FW175: 0 | FX175: 0 | FY175: 0 | FZ175: 0 | GA175: 0 | GB175: 0 | GC175: 0 | GD175: 0 | GE175: 0 | GF175: 0 | GG175: 0 | GH175: 0 | GI175: 0 | GJ175: 0 | GK175: 0 | GL175: 0 | GM175: 0 | GN175: 0 | GO175: 0 | GP175: 0 | GQ175: 0 | GR175: 0 | GS175: 0 | GT175: 0 | GU175: 0 | GV175: 0 | GW175: 0 | GX175: 0 | GY175: 0 | GZ175: 0 | HA175: 0 | HB175: 0 | HC175: 0 | HD175: 0 | HE175: 0 | HF175: 0 | HG175: 0 | HH175: 0 | HI175: 0 | HJ175: 0 | HK175: 0 | HL175: 0 | HM175: 0 | HN175: 0 | HO175: 0 | HP175: 0 | HQ175: 0 | HR175: 0 | HS175: 0 | HT175: 0 | HU175: 0 | HV175: 0 | HW175: 0
A176: 10 | B176: 873 | C176: 320 | D176: 1146 | E176: 2038 | F176: 679 | G176: 5056 | H176: 0 | I176: 0 | J176: 0 | K176: 0 | L176: 0 | M176: 0 | N176: 0 | O176: 0 | P176: 0 | Q176: 0 | R176: 0 | S176: 0 | T176: 0 | U176: 0 | V176: 0 | W176: 0 | X176: 0 | Y176: 0 | Z176: 0 | AA176: 0 | AB176: 0 | AC176: 0 | AD176: 0 | AE176: 0 | AF176: 0 | AG176: 0 | AH176: 0 | AI176: 0 | AJ176: 0 | AK176: 0 | AL176: 0 | AM176: 0 | AN176: 0 | AO176: 0 | AP176: 0 | AQ176: 0 | AR176: 0 | AS176: 0 | AT176: 0 | AU176: 0 | AV176: 0 | AW176: 0 | AX176: 0 | AY176: 0 | AZ176: 0 | BA176: 0 | BB176: 0 | BC176: 0 | BD176: 0 | BE176: 0 | BF176: 0 | BG176: 0 | BH176: 0 | BI176: 0 | BJ176: 0 | BK176: 0 | BL176: 0 | BM176: 0 | BN176: 0 | BO176: 0 | BP176: 0 | BQ176: 0 | BR176: 0 | BS176: 0 | BT176: 0 | BU176: 0 | BV176: 0 | BW176: 0 | BX176: 0 | BY176: 0 | BZ176: 0 | CA176: 0 | CB176: 0 | CC176: 0 | CD176: 0 | CE176: 0 | CF176: 0 | CG176: 0 | CH176: 0 | CI176: 0 | CJ176: 0 | CK176: 0 | CL176: 0 | CM176: 0 | CN176: 0 | CO176: 0 | CP176: 0 | CQ176: 0 | CR176: 0 | CS176: 0 | CT176: 0 | CU176: 0 | CV176: 0 | CW176: 0 | CX176: 8 | CY176: 6 | CZ176: 38 | DA176: 62 | DB176: 17 | DC176: 0 | DD176: 6 | DE176: 4 | DF176: 14 | DG176: 90 | DH176: 0 | DI176: 0 | DJ176: 0 | DK176: 1 | DL176: 0 | DM176: 0 | DN176: 0 | DO176: 0 | DP176: 0 | DQ176: 1 | DR176: 0 | DS176: 0 | DT176: 1 | DU176: 0 | DV176: 0 | DW176: 0 | DX176: 0 | DY176: 0 | DZ176: 0 | EA176: 1 | EB176: 0 | EC176: 0 | ED176: 0 | EE176: 0 | EF176: 0 | EG176: 0 | EH176: 0 | EI176: 0 | EJ176: 0 | EK176: 0 | EL176: 0 | EM176: 0 | EN176: 0 | EO176: 0 | EP176: 0 | EQ176: 0 | ER176: 0 | ES176: 0 | ET176: 0 | EU176: 0 | EV176: 1 | EW176: 0 | EX176: 3 | EY176: 4 | EZ176: 0 | FA176: 0 | FB176: 1 | FC176: 0 | FD176: 1 | FE176: 6 | FF176: 0 | FG176: 1 | FH176: 0 | FI176: 0 | FJ176: 0 | FK176: 0 | FL176: 0 | FM176: 0 | FN176: 1 | FO176: 0 | FP176: 0 | FQ176: 0 | FR176: 0 | FS176: 0 | FT176: 0 | FU176: 0 | FV176: 0 | FW176: 0 | FX176: 0 | FY176: 0 | FZ176: 0 | GA176: 0 | GB176: 0 | GC176: 0 | GD176: 0 | GE176: 0 | GF176: 0 | GG176: 0 | GH176: 0 | GI176: 0 | GJ176: 0 | GK176: 0 | GL176: 0 | GM176: 0 | GN176: 0 | GO176: 0 | GP176: 0 | GQ176: 0 | GR176: 0 | GS176: 0 | GT176: 0 | GU176: 0 | GV176: 0 | GW176: 0 | GX176: 0 | GY176: 0 | GZ176: 0 | HA176: 0 | HB176: 0 | HC176: 0 | HD176: 0 | HE176: 0 | HF176: 0 | HG176: 0 | HH176: 0 | HI176: 0 | HJ176: 0 | HK176: 0 | HL176: 0 | HM176: 0 | HN176: 0 | HO176: 0 | HP176: 0 | HQ176: 0 | HR176: 0 | HS176: 0 | HT176: 0 | HU176: 0 | HV176: 0 | HW176: 0
A177: 11 | B177: 729 | C177: 417 | D177: 1139 | E177: 2278 | F177: 626 | G177: 5189 | H177: 0 | I177: 0 | J177: 0 | K177: 0 | L177: 0 | M177: 0 | N177: 0 | O177: 0 | P177: 0 | Q177: 0 | R177: 0 | S177: 0 | T177: 0 | U177: 0 | V177: 0 | W177: 0 | X177: 0 | Y177: 0 | Z177: 0 | AA177: 0 | AB177: 0 | AC177: 0 | AD177: 0 | AE177: 0 | AF177: 0 | AG177: 0 | AH177: 0 | AI177: 0 | AJ177: 0 | AK177: 0 | AL177: 0 | AM177: 0 | AN177: 0 | AO177: 0 | AP177: 0 | AQ177: 0 | AR177: 0 | AS177: 0 | AT177: 0 | AU177: 0 | AV177: 0 | AW177: 0 | AX177: 0 | AY177: 0 | AZ177: 0 | BA177: 0 | BB177: 0 | BC177: 0 | BD177: 0 | BE177: 0 | BF177: 0 | BG177: 0 | BH177: 0 | BI177: 0 | BJ177: 0 | BK177: 0 | BL177: 0 | BM177: 0 | BN177: 0 | BO177: 0 | BP177: 0 | BQ177: 0 | BR177: 0 | BS177: 0 | BT177: 0 | BU177: 0 | BV177: 0 | BW177: 0 | BX177: 0 | BY177: 0 | BZ177: 0 | CA177: 0 | CB177: 0 | CC177: 0 | CD177: 0 | CE177: 0 | CF177: 0 | CG177: 0 | CH177: 0 | CI177: 0 | CJ177: 0 | CK177: 0 | CL177: 0 | CM177: 0 | CN177: 0 | CO177: 0 | CP177: 0 | CQ177: 0 | CR177: 0 | CS177: 0 | CT177: 0 | CU177: 0 | CV177: 0 | CW177: 0 | CX177: 30 | CY177: 15 | CZ177: 79 | DA177: 121 | DB177: 24 | DC177: 0 | DD177: 30 | DE177: 7 | DF177: 27 | DG177: 181 | DH177: 0 | DI177: 0 | DJ177: 0 | DK177: 0 | DL177: 0 | DM177: 0 | DN177: 0 | DO177: 0 | DP177: 0 | DQ177: 0 | DR177: 0 | DS177: 0 | DT177: 0 | DU177: 0 | DV177: 0 | DW177: 0 | DX177: 0 | DY177: 0 | DZ177: 0 | EA177: 0 | EB177: 0 | EC177: 0 | ED177: 0 | EE177: 0 | EF177: 0 | EG177: 0 | EH177: 0 | EI177: 0 | EJ177: 0 | EK177: 0 | EL177: 0 | EM177: 0 | EN177: 0 | EO177: 0 | EP177: 0 | EQ177: 0 | ER177: 0 | ES177: 0 | ET177: 0 | EU177: 0 | EV177: 0 | EW177: 0 | EX177: 0 | EY177: 1 | EZ177: 1 | FA177: 0 | FB177: 0 | FC177: 0 | FD177: 0 | FE177: 1 | FF177: 0 | FG177: 0 | FH177: 0 | FI177: 0 | FJ177: 0 | FK177: 0 | FL177: 0 | FM177: 0 | FN177: 0 | FO177: 0 | FP177: 0 | FQ177: 0 | FR177: 0 | FS177: 0 | FT177: 0 | FU177: 0 | FV177: 0 | FW177: 0 | FX177: 0 | FY177: 0 | FZ177: 0 | GA177: 0 | GB177: 0 | GC177: 0 | GD177: 0 | GE177: 0 | GF177: 0 | GG177: 0 | GH177: 0 | GI177: 0 | GJ177: 0 | GK177: 0 | GL177: 0 | GM177: 0 | GN177: 0 | GO177: 0 | GP177: 0 | GQ177: 0 | GR177: 0 | GS177: 0 | GT177: 0 | GU177: 0 | GV177: 0 | GW177: 0 | GX177: 0 | GY177: 0 | GZ177: 0 | HA177: 0 | HB177: 0 | HC177: 0 | HD177: 0 | HE177: 0 | HF177: 0 | HG177: 0 | HH177: 0 | HI177: 0 | HJ177: 0 | HK177: 0 | HL177: 0 | HM177: 0 | HN177: 0 | HO177: 0 | HP177: 0 | HQ177: 0 | HR177: 0 | HS177: 0 | HT177: 0 | HU177: 0 | HV177: 0 | HW177: 0
A178: 9 | B178: 1150 | C178: 353 | D178: 1350 | E178: 2089 | F178: 646 | G178: 5588 | H178: 0 | I178: 0 | J178: 0 | K178: 0 | L178: 0 | M178: 0 | N178: 0 | O178: 0 | P178: 0 | Q178: 0 | R178: 0 | S178: 0 | T178: 0 | U178: 0 | V178: 0 | W178: 0 | X178: 0 | Y178: 0 | Z178: 0 | AA178: 0 | AB178: 0 | AC178: 0 | AD178: 0 | AE178: 0 | AF178: 0 | AG178: 0 | AH178: 0 | AI178: 0 | AJ178: 0 | AK178: 0 | AL178: 0 | AM178: 0 | AN178: 0 | AO178: 0 | AP178: 0 | AQ178: 0 | AR178: 0 | AS178: 0 | AT178: 0 | AU178: 0 | AV178: 0 | AW178: 0 | AX178: 0 | AY178: 0 | AZ178: 0 | BA178: 0 | BB178: 0 | BC178: 0 | BD178: 0 | BE178: 0 | BF178: 0 | BG178: 0 | BH178: 0 | BI178: 0 | BJ178: 0 | BK178: 0 | BL178: 0 | BM178: 0 | BN178: 0 | BO178: 0 | BP178: 0 | BQ178: 0 | BR178: 0 | BS178: 0 | BT178: 0 | BU178: 0 | BV178: 0 | BW178: 0 | BX178: 0 | BY178: 0 | BZ178: 0 | CA178: 0 | CB178: 0 | CC178: 0 | CD178: 0 | CE178: 0 | CF178: 0 | CG178: 0 | CH178: 0 | CI178: 0 | CJ178: 0 | CK178: 0 | CL178: 0 | CM178: 0 | CN178: 0 | CO178: 0 | CP178: 0 | CQ178: 0 | CR178: 0 | CS178: 0 | CT178: 0 | CU178: 0 | CV178: 0 | CW178: 0 | CX178: 19 | CY178: 16 | CZ178: 29 | DA178: 48 | DB178: 23 | DC178: 0 | DD178: 15 | DE178: 9 | DF178: 16 | DG178: 72 | DH178: 0 | DI178: 0 | DJ178: 0 | DK178: 0 | DL178: 0 | DM178: 0 | DN178: 0 | DO178: 0 | DP178: 0 | DQ178: 0 | DR178: 0 | DS178: 0 | DT178: 0 | DU178: 0 | DV178: 0 | DW178: 0 | DX178: 0 | DY178: 0 | DZ178: 0 | EA178: 0 | EB178: 0 | EC178: 0 | ED178: 0 | EE178: 0 | EF178: 0 | EG178: 0 | EH178: 0 | EI178: 0 | EJ178: 0 | EK178: 0 | EL178: 0 | EM178: 0 | EN178: 0 | EO178: 0 | EP178: 0 | EQ178: 0 | ER178: 0 | ES178: 0 | ET178: 0 | EU178: 0 | EV178: 0 | EW178: 0 | EX178: 1 | EY178: 1 | EZ178: 0 | FA178: 0 | FB178: 0 | FC178: 0 | FD178: 1 | FE178: 1 | FF178: 0 | FG178: 0 | FH178: 0 | FI178: 0 | FJ178: 0 | FK178: 0 | FL178: 0 | FM178: 0 | FN178: 0 | FO178: 0 | FP178: 0 | FQ178: 0 | FR178: 0 | FS178: 0 | FT178: 0 | FU178: 0 | FV178: 0 | FW178: 0 | FX178: 0 | FY178: 0 | FZ178: 0 | GA178: 0 | GB178: 0 | GC178: 0 | GD178: 0 | GE178: 0 | GF178: 0 | GG178: 0 | GH178: 0 | GI178: 0 | GJ178: 0 | GK178: 0 | GL178: 0 | GM178: 0 | GN178: 0 | GO178: 0 | GP178: 0 | GQ178: 0 | GR178: 0 | GS178: 0 | GT178: 0 | GU178: 0 | GV178: 0 | GW178: 0 | GX178: 0 | GY178: 0 | GZ178: 0 | HA178: 0 | HB178: 0 | HC178: 0 | HD178: 0 | HE178: 0 | HF178: 0 | HG178: 0 | HH178: 0 | HI178: 0 | HJ178: 0 | HK178: 0 | HL178: 0 | HM178: 0 | HN178: 0 | HO178: 0 | HP178: 0 | HQ178: 0 | HR178: 0 | HS178: 0 | HT178: 0 | HU178: 0 | HV178: 0 | HW178: 0
A179: Total general | B179: 25997 | C179: 11548 | D179: 22337 | E179: 44037 | F179: 15919 | G179: 119838 | H179: 0 | I179: 0 | J179: 0 | K179: 0 | L179: 0 | M179: 0 | N179: 0 | O179: 0 | P179: 0 | Q179: 0 | R179: 0 | S179: 0 | T179: 0 | U179: 0 | V179: 0 | W179: 0 | X179: 0 | Y179: 0 | Z179: 0 | AA179: 0 | AB179: 0 | AC179: 0 | AD179: 0 | AE179: 0 | AF179: 0 | AG179: 0 | AH179: 0 | AI179: 0 | AJ179: 0 | AK179: 0 | AL179: 0 | AM179: 0 | AN179: 0 | AO179: 0 | AP179: 0 | AQ179: 0 | AR179: 0 | AS179: 0 | AT179: 0 | AU179: 0 | AV179: 0 | AW179: 0 | AX179: 0 | AY179: 0 | AZ179: 0 | BA179: 0 | BB179: 0 | BC179: 0 | BD179: 0 | BE179: 0 | BF179: 0 | BG179: 0 | BH179: 0 | BI179: 0 | BJ179: 0 | BK179: 0 | BL179: 0 | BM179: 0 | BN179: 0 | BO179: 0 | BP179: 0 | BQ179: 0 | BR179: 0 | BS179: 0 | BT179: 0 | BU179: 0 | BV179: 0 | BW179: 0 | BX179: 0 | BY179: 0 | BZ179: 0 | CA179: 0 | CB179: 0 | CC179: 0 | CD179: 0 | CE179: 0 | CF179: 0 | CG179: 0 | CH179: 0 | CI179: 0 | CJ179: 0 | CK179: 0 | CL179: 0 | CM179: 0 | CN179: 0 | CO179: 0 | CP179: 0 | CQ179: 0 | CR179: 0 | CS179: 0 | CT179: 0 | CU179: 0 | CV179: 0 | CW179: 0 | CX179: 775 | CY179: 670 | CZ179: 1511 | DA179: 2407 | DB179: 717 | DC179: 25 | DD179: 533 | DE179: 547 | DF179: 647 | DG179: 3611 | DH179: 119 | DI179: 111 | DJ179: 341 | DK179: 593 | DL179: 126 | DM179: 2 | DN179: 78 | DO179: 73 | DP179: 107 | DQ179: 887 | DR179: 0 | DS179: 0 | DT179: 1 | DU179: 1 | DV179: 0 | DW179: 0 | DX179: 0 | DY179: 0 | DZ179: 0 | EA179: 2 | EB179: 0 | EC179: 0 | ED179: 0 | EE179: 0 | EF179: 0 | EG179: 0 | EH179: 0 | EI179: 0 | EJ179: 0 | EK179: 0 | EL179: 0 | EM179: 0 | EN179: 0 | EO179: 0 | EP179: 0 | EQ179: 0 | ER179: 0 | ES179: 0 | ET179: 0 | EU179: 0 | EV179: 207 | EW179: 58 | EX179: 291 | EY179: 463 | EZ179: 91 | FA179: 2 | FB179: 79 | FC179: 23 | FD179: 100 | FE179: 712 | FF179: 1 | FG179: 2 | FH179: 0 | FI179: 3 | FJ179: 0 | FK179: 0 | FL179: 0 | FM179: 0 | FN179: 2 | FO179: 3 | FP179: 0 | FQ179: 0 | FR179: 0 | FS179: 0 | FT179: 0 | FU179: 0 | FV179: 0 | FW179: 0 | FX179: 0 | FY179: 0 | FZ179: 6 | GA179: 0 | GB179: 32 | GC179: 39 | GD179: 2 | GE179: 0 | GF179: 0 | GG179: 0 | GH179: 0 | GI179: 71 | GJ179: 0 | GK179: 0 | GL179: 0 | GM179: 0 | GN179: 0 | GO179: 0 | GP179: 0 | GQ179: 0 | GR179: 0 | GS179: 0 | GT179: 0 | GU179: 0 | GV179: 0 | GW179: 0 | GX179: 0 | GY179: 0 | GZ179: 0 | HA179: 0 | HB179: 0 | HC179: 0 | HD179: 0 | HE179: 0 | HF179: 0 | HG179: 0 | HH179: 0 | HI179: 0 | HJ179: 0 | HK179: 0 | HL179: 0 | HM179: 0 | HN179: 0 | HO179: 0 | HP179: 0 | HQ179: 0 | HR179: 0 | HS179: 0 | HT179: 0 | HU179: 0 | HV179: 0 | HW179: 0

Sheet Menu
E2: GERESA CUSCO
E3: REPORTE HISMINSA 2024
E4: METAXENICAS
F31: Fecha Actulización DATA | I31: 30/11/2024

Sheet MALARIA
B1: DIRECCION REGIONAL DE SALUD CUSCO
B2: DIRECCION EJECUTIVA DE INTELIGENCIA SANITARIA
B3: DIRECCION DE ESTADISTICA Y TELECOMUNICACIONES
B4: METAXENICAS MALARIA
B5: INFORME OPERACIONAL MENSUAL
C7: RED DE SALUD | F7: =TD!F3 -> LA CONVENCION | N7: PROVINCIA | P7: =TD!F6 -> (All) | X7: AÑO : | Z7: =TD!C10 -> 2024
C9: MICRO RED | F9: =TD!F4 -> (All) | N9: DISTRITO | P9: =TD!F7 -> (All) | X9: MES : | Z9: =TD!O17 -> ENERO - NOVIEMBRE
C11: ESTABLECIMIENTO | F11: =TD!F5 -> (All) | N11: U. E. | P11: =TD!F8 -> (All) | V11: POBLACION EN RIESGO | Z11: 197907
V13: POBLACION TOTAL | X13: POBLACION TOTAL | Z13: 1342562
B15: I. | C15: LOCALIZACION DE CASOS | U15: LOCALIZACION DE CASOS | X15: 00-11a | Y15: 12-17a | Z15: 18-29a | AA15: 30-59a | AB15: 60-99a | AC15: TOTAL
C17: 1. Febriles Esperados (Ex30,25,15,10 ó 5) | H17: 0 | U17: 1. Febriles Esperados (Ex30,25,15,10 ó 5) | X17: 0 | Y17: 0 | Z17: 0 | AA17: 0 | AB17: 0 | AC17: =SUM(X17:AB17) -> 0
C19: 2. Febriles Identificados | H19: =+GETPIVOTDATA(" BAS016",TD!$A$34) -> 13565 | U19: 2. Febriles Identificados | X19: =+GETPIVOTDATA(" BAS011",TD!$A$34) -> 2736 | Y19: =+GETPIVOTDATA(" BAS012",TD!$A$34) -> 1452 | Z19: =+GETPIVOTDATA(" BAS013",TD!$A$34) -> 2403 | AA19: =+GETPIVOTDATA(" BAS014",TD!$A$34) -> 5107 | AB19: =+GETPIVOTDATA(" BAS015",TD!$A$34) -> 1867 | AC19: =SUM(X19:AB19) -> 13565
C21: 3. Febriles Examinados | H21: =H23+H25 -> 13464 | U21: 3. Febriles Examinados | X21: =X23+X25 -> 2718 | Y21: =Y23+Y25 -> 1441 | Z21: =Z23+Z25 -> 2384 | AA21: =AA23+AA25 -> 5066 | AB21: =AB23+AB25 -> 1855 | AC21: =SUM(X21:AB21) -> 13464
C23: 3.1 Febriles Examinados con Gota Gruesa | H23: =+GETPIVOTDATA(" BAS022",TD!$A$34) -> 13463 | U23: 3.1 Febriles Examinados con Gota Gruesa | X23: =+GETPIVOTDATA(" BAS017",TD!$A$34) -> 2718 | Y23: =+GETPIVOTDATA(" BAS018",TD!$A$34) -> 1441 | Z23: =+GETPIVOTDATA(" BAS019",TD!$A$34) -> 2384 | AA23: =+GETPIVOTDATA(" BAS020",TD!$A$34) -> 5066 | AB23: =+GETPIVOTDATA(" BAS021",TD!$A$34) -> 1854 | AC23: =SUM(X23:AB23) -> 13463
C25: 3.2 Febriles Examinados con Tira Reactiva | H25: =+GETPIVOTDATA(" BAS028",TD!$A$34) -> 1 | U25: 3.2 Febriles Examinados con Tira Reactiva | X25: =+GETPIVOTDATA(" BAS023",TD!$A$34) -> 0 | Y25: =+GETPIVOTDATA(" BAS024",TD!$A$34) -> 0 | Z25: =+GETPIVOTDATA(" BAS025",TD!$A$34) -> 0 | AA25: =+GETPIVOTDATA(" BAS026",TD!$A$34) -> 0 | AB25: =+GETPIVOTDATA(" BAS027",TD!$A$34) -> 1 | AC25: =SUM(X25:AB25) -> 1
C27: 4. Febriles Examinados (+) | H27: =H29+H31 -> 0 | U27: 4. Febriles Examinados (+) | X27: =X29+X31 -> 0 | Y27: =Y29+Y31 -> 0 | Z27: =Z29+Z31 -> 0 | AA27: =AA29+AA31 -> 0 | AB27: =AB29+AB31 -> 0 | AC27: =SUM(X27:AB27) -> 0
C29: 4.1 Febriles Examinados con Gota Gruesa (+) | U29: 4.1 Febriles Examinados con Gota Gruesa (+) | AC29: =SUM(X29:AB29) -> 0
C31: 4.2 Febriles Examinados con Tira Reactiva (+) | U31: 4.2 Febriles Examinados con Tira Reactiva (+) | AC31: =SUM(X31:AB31) -> 0
B35: II. | C35: CONTROL DE COLATERALES | U35: CONTROL DE COLATERALES | X35: 00-11a | Y35: 12-17a | Z35: 18-29a | AA35: 30-59a | AB35: 60-99a | AC35: TOTAL
C37: 1. Colaterales Esperados (Ex5) | H37: - | U37: 1. Colaterales Esperados (Ex5) | X37: =+X60*5 -> 5 | Y37: =+Y60*5 -> 15 | Z37: =+Z60*5 -> 40 | AA37: =+AA60*5 -> 115 | AB37: =+AB60*5 -> 10 | AC37: =SUM(X37:AB37) -> 185
C39: 2. Colaterales Censados | H39: =+GETPIVOTDATA(" BAS046",TD!$A$34) -> 4 | U39: 2. Colaterales Censados | X39: =+GETPIVOTDATA(" BAS041",TD!$A$34)+(+GETPIVOTDATA(" BAS047",TD!$A$34)) -> 0 | Y39: =+GETPIVOTDATA(" BAS042",TD!$A$34)+(+GETPIVOTDATA(" BAS048",TD!$A$34)) -> 0 | Z39: =+GETPIVOTDATA(" BAS043",TD!$A$34)+(+GETPIVOTDATA(" BAS049",TD!$A$34)) -> 0 | AA39: =+GETPIVOTDATA(" BAS044",TD!$A$34)+(+GETPIVOTDATA(" BAS050",TD!$A$34)) -> 4 | AB39: =+GETPIVOTDATA(" BAS045",TD!$A$34)+(+GETPIVOTDATA(" BAS051",TD!$A$34)) -> 0 | AC39: =SUM(X39:AB39) -> 4
C41: 3. Colaterales Con Anamnesis y Ex. Fisico | H41: =+GETPIVOTDATA(" BAS058",TD!$A$34) -> 0 | U41: 3. Colaterales Con Anamnesis y Ex. Fisico | X41: =+GETPIVOTDATA(" BAS053",TD!$A$34) -> 0 | Y41: =+GETPIVOTDATA(" BAS054",TD!$A$34) -> 0 | Z41: =+GETPIVOTDATA(" BAS055",TD!$A$34) -> 0 | AA41: =+GETPIVOTDATA(" BAS056",TD!$A$34) -> 0 | AB41: =+GETPIVOTDATA(" BAS057",TD!$A$34) -> 0 | AC41: =SUM(X41:AB41) -> 0
C43: 4. Colaterales Catalogados como Febriles | H43: =+GETPIVOTDATA(" BAS064",TD!$A$34) -> 0 | U43: 4. Colaterales Catalogados como Febriles | X43: =+GETPIVOTDATA(" BAS059",TD!$A$34) -> 0 | Y43: =+GETPIVOTDATA(" BAS060",TD!$A$34) -> 0 | Z43: =+GETPIVOTDATA(" BAS061",TD!$A$34) -> 0 | AA43: =+GETPIVOTDATA(" BAS062",TD!$A$34) -> 0 | AB43: =+GETPIVOTDATA(" BAS063",TD!$A$34) -> 0 | AC43: =SUM(X43:AB43) -> 0
C45: 5. Colaterales Febriles Examinados | H45: =H47+H49 -> 0 | U45: 5. Colaterales Febriles Examinados | X45: =X47+X49 -> 0 | Y45: =Y47+Y49 -> 0 | Z45: =Z47+Z49 -> 0 | AA45: =AA47+AA49 -> 0 | AB45: =AB47+AB49 -> 0 | AC45: =SUM(X45:AB45) -> 0
C47: 5.1 Colateral Febril Examinado con GG | H47: =+GETPIVOTDATA(" BAS070",TD!$A$34) -> 0 | U47: 5.1 Colateral Febril Examinado con GG | X47: =+GETPIVOTDATA(" BAS065",TD!$A$34) -> 0 | Y47: =+GETPIVOTDATA(" BAS066",TD!$A$34) -> 0 | Z47: =+GETPIVOTDATA(" BAS067",TD!$A$34) -> 0 | AA47: =+GETPIVOTDATA(" BAS068",TD!$A$34) -> 0 | AB47: =+GETPIVOTDATA(" BAS069",TD!$A$34) -> 0 | AC47: =SUM(X47:AB47) -> 0
C49: 5.2 Colateral Febril Examinados con TR | H49: =+GETPIVOTDATA(" BAS076",TD!$A$34) -> 0 | U49: 5.2 Colateral Febril Examinados con TR | X49: =+GETPIVOTDATA(" BAS071",TD!$A$34) -> 0 | Y49: =+GETPIVOTDATA(" BAS072",TD!$A$34) -> 0 | Z49: =+GETPIVOTDATA(" BAS073",TD!$A$34) -> 0 | AA49: =+GETPIVOTDATA(" BAS074",TD!$A$34) -> 0 | AB49: =+GETPIVOTDATA(" BAS075",TD!$A$34) -> 0 | AC49: =SUM(X49:AB49) -> 0
C51: 6. Colateral Febril Examinado (+) | H51: =H53+H55 -> 0 | U51: 6. Colateral Febril Examinado (+) | X51: =X53+X55 -> 0 | Y51: =Y53+Y55 -> 0 | Z51: =Z53+Z55 -> 0 | AA51: =AA53+AA55 -> 0 | AB51: =AB53+AB55 -> 0 | AC51: =SUM(X51:AB51) -> 0
C53: 6.1 Colateral Febril Examinado con GG (+) | H53: =+GETPIVOTDATA(" BAS082",TD!$A$34) -> 0 | U53: 6.1 Colateral Febril Examinado con GG (+) | X53: =+GETPIVOTDATA(" BAS077",TD!$A$34) -> 0 | Y53: =+GETPIVOTDATA(" BAS078",TD!$A$34) -> 0 | Z53: =+GETPIVOTDATA(" BAS079",TD!$A$34) -> 0 | AA53: =+GETPIVOTDATA(" BAS080",TD!$A$34) -> 0 | AB53: =+GETPIVOTDATA(" BAS081",TD!$A$34) -> 0 | AC53: =SUM(X53:AB53) -> 0
C55: 6.2 Colateral Febril Examinado con TR (+) | H55: =+GETPIVOTDATA(" BAS088",TD!$A$34) -> 0 | U55: 6.2 Colateral Febril Examinado con TR (+) | X55: =+GETPIVOTDATA(" BAS083",TD!$A$34) -> 0 | Y55: =+GETPIVOTDATA(" BAS084",TD!$A$34) -> 0 | Z55: =+GETPIVOTDATA(" BAS085",TD!$A$34) -> 0 | AA55: =+GETPIVOTDATA(" BAS086",TD!$A$34) -> 0 | AB55: =+GETPIVOTDATA(" BAS087",TD!$A$34) -> 0 | AC55: =SUM(X55:AB55) -> 0
B58: IV | C58: INFORME DE CASOS | U58: INFORME DE CASOS
J59: < 1 a | K59: 1-9a | L59: 10-14a | M59: 15-19a | N59: 20-59a | O59: 60a Y + | P59: TOTAL | R59: % | X59: 00-11a | Y59: 12-17a | Z59: 18-29a | AA59: 30-59a | AB59: 60-99a | AC59: TOTAL
C60: 1. Total de Casos de Malaria | J60: =J62+J72 -> 0 | K60: 1 | L60: 1 | M60: 2 | N60: 31 | O60: 2 | P60: =J60+K60+L60+M60+N60+O60 -> 37 | R60: 1 | U60: 1. Total de Casos de Malaria | X60: =X62+X72 -> 1 | Y60: =Y62+Y72 -> 3 | Z60: =Z62+Z72 -> 8 | AA60: =AA62+AA72 -> 23 | AB60: =AB62+AB72 -> 2 | AC60: =SUM(X60:AB60) -> 37
C62: 1.1 Total de Casos Confirmados | J62: =J64+J66+J68+J70 -> 0 | K62: 0 | L62: 0 | M62: 0 | N62: 1 | O62: 0 | P62: =J62+K62+L62+M62+N62+O62 -> 1 | R62: =P62/P60 -> 0.02702702703 | U62: 1.1 Total de Casos Confirmados | X62: =X64+X66+X68+X70 -> 0 | Y62: =Y64+Y66+Y68+Y70 -> 0 | Z62: =Z64+Z66+Z68+Z70 -> 0 | AA62: =AA64+AA66+AA68+AA70 -> 1 | AB62: =AB64+AB66+AB68+AB70 -> 0 | AC62: =SUM(X62:AB62) -> 1
C64: a) Plasmodium Vivax | J64: =+GETPIVOTDATA(" BAS094",TD!$A$34) -> 0 | K64: =+GETPIVOTDATA(" BAS095",TD!$A$34) -> 0 | L64: =+GETPIVOTDATA(" BAS096",TD!$A$34) -> 0 | M64: =+GETPIVOTDATA(" BAS097",TD!$A$34) -> 0 | N64: =+GETPIVOTDATA(" BAS098",TD!$A$34) -> 1 | O64: =+GETPIVOTDATA(" BAS093",TD!$A$34) -> 0 | P64: =J64+K64+L64+M64+N64+O64 -> 1 | R64: =P64/P62 -> 1 | U64: a) Plasmodium Vivax | X64: =+GETPIVOTDATA(" BAS089",TD!$A$34) -> 0 | Y64: =+GETPIVOTDATA(" BAS090",TD!$A$34) -> 0 | Z64: =+GETPIVOTDATA(" BAS091",TD!$A$34) -> 0 | AA64: =+GETPIVOTDATA(" BAS092",TD!$A$34) -> 1 | AB64: =+GETPIVOTDATA(" BAS093",TD!$A$34) -> 0 | AC64: =SUM(X64:AB64) -> 1
C66: b) Plasmodium Falciparum | J66: =+GETPIVOTDATA(" BAS104",TD!$A$34) -> 0 | K66: =+GETPIVOTDATA(" BAS105",TD!$A$34) -> 0 | L66: =+GETPIVOTDATA(" BAS106",TD!$A$34) -> 0 | M66: =+GETPIVOTDATA(" BAS107",TD!$A$34) -> 0 | N66: =+GETPIVOTDATA(" BAS108",TD!$A$34) -> 0 | O66: =+GETPIVOTDATA(" BAS103",TD!$A$34) -> 0 | P66: =J66+K66+L66+M66+N66+O66 -> 0 | R66: =P66/P62 -> 0 | U66: b) Plasmodium Falciparum | X66: =+GETPIVOTDATA(" BAS099",TD!$A$34) -> 0 | Y66: =+GETPIVOTDATA(" BAS100",TD!$A$34) -> 0 | Z66: =+GETPIVOTDATA(" BAS101",TD!$A$34) -> 0 | AA66: =+GETPIVOTDATA(" BAS102",TD!$A$34) -> 0 | AB66: =+GETPIVOTDATA(" BAS103",TD!$A$34) -> 0 | AC66: =SUM(X66:AB66) -> 0
C68: c) Plasmodium Malariae | J68: =+GETPIVOTDATA(" BAS114",TD!$A$34) -> 0 | K68: =+GETPIVOTDATA(" BAS115",TD!$A$34) -> 0 | L68: =+GETPIVOTDATA(" BAS116",TD!$A$34) -> 0 | M68: =+GETPIVOTDATA(" BAS117",TD!$A$34) -> 0 | N68: =+GETPIVOTDATA(" BAS118",TD!$A$34) -> 0 | O68: =+GETPIVOTDATA(" BAS113",TD!$A$34) -> 0 | P68: =J68+K68+L68+M68+N68+O68 -> 0 | R68: =P68/P62 -> 0 | U68: c) Plasmodium Malariae | X68: =+GETPIVOTDATA(" BAS109",TD!$A$34) -> 0 | Y68: =+GETPIVOTDATA(" BAS110",TD!$A$34) -> 0 | Z68: =+GETPIVOTDATA(" BAS111",TD!$A$34) -> 0 | AA68: =+GETPIVOTDATA(" BAS112",TD!$A$34) -> 0 | AB68: =+GETPIVOTDATA(" BAS113",TD!$A$34) -> 0 | AC68: =SUM(X68:AB68) -> 0
C70: d) Mixto | J70: =+GETPIVOTDATA(" BAS124",TD!$A$34) -> 0 | K70: =+GETPIVOTDATA(" BAS125",TD!$A$34) -> 0 | L70: =+GETPIVOTDATA(" BAS126",TD!$A$34) -> 0 | M70: =+GETPIVOTDATA(" BAS127",TD!$A$34) -> 0 | N70: =+GETPIVOTDATA(" BAS128",TD!$A$34) -> 0 | O70: =+GETPIVOTDATA(" BAS123",TD!$A$34) -> 0 | P70: =J70+K70+L70+M70+N70+O70 -> 0 | R70: =P70/P62 -> 0 | U70: d) Mixto | X70: =+GETPIVOTDATA(" BAS119",TD!$A$34) -> 0 | Y70: =+GETPIVOTDATA(" BAS120",TD!$A$34) -> 0 | Z70: =+GETPIVOTDATA(" BAS121",TD!$A$34) -> 0 | AA70: =+GETPIVOTDATA(" BAS122",TD!$A$34) -> 0 | AB70: =+GETPIVOTDATA(" BAS123",TD!$A$34) -> 0 | AC70: =SUM(X70:AB70) -> 0
C72: 1.2 Casos Probables | J72: =+GETPIVOTDATA(" BAS134",TD!$A$34) -> 0 | K72: =+GETPIVOTDATA(" BAS135",TD!$A$34) -> 1 | L72: =+GETPIVOTDATA(" BAS136",TD!$A$34) -> 1 | M72: =+GETPIVOTDATA(" BAS137",TD!$A$34) -> 2 | N72: =+GETPIVOTDATA(" BAS138",TD!$A$34) -> 30 | O72: =+GETPIVOTDATA(" BAS133",TD!$A$34) -> 2 | P72: =J72+K72+L72+M72+N72+O72 -> 36 | R72: =P72/P60 -> 0.972972973 | U72: 1.2 Casos Probables | X72: =+GETPIVOTDATA(" BAS129",TD!$A$34) -> 1 | Y72: =+GETPIVOTDATA(" BAS130",TD!$A$34) -> 3 | Z72: =+GETPIVOTDATA(" BAS131",TD!$A$34) -> 8 | AA72: =+GETPIVOTDATA(" BAS132",TD!$A$34) -> 22 | AB72: =+GETPIVOTDATA(" BAS133",TD!$A$34) -> 2 | AC72: =SUM(X72:AB72) -> 36
C74: 1.3 Total de casos Conf. En Gestantes | L74: =L76+L78 -> 0 | M74: =M76+M78 -> 0 | N74: =N76+N78 -> 0 | O74: =O76+O78 -> 0 | P74: =O74+N74+M74+L74 -> 0 | R74: =P74/P60 -> 0 | U74: 1.3 Total de casos Conf. En Gestantes | X74: =X76+X78 -> 0 | Y74: =Y76+Y78 -> 0 | Z74: =Z76+Z78 -> 0 | AA74: =AA76+AA78 -> 0 | AB74: =AB76+AB78 -> 0 | AC74: =SUM(X74:AB74) -> 0
C76: a) Plasmodium Vivax | L76: =+GETPIVOTDATA(" BAS144",TD!$A$34) -> 0 | M76: =+GETPIVOTDATA(" BAS145",TD!$A$34) -> 0 | N76: =+GETPIVOTDATA(" BAS146",TD!$A$34) -> 0 | O76: =+GETPIVOTDATA(" BAS143",TD!$A$34) -> 0 | P76: =O76+N76+M76+L76 -> 0 | R76: =IFERROR(P76/P74,0) -> 0 | U76: a) Plasmodium Vivax | X76: =+GETPIVOTDATA(" BAS139",TD!$A$34) -> 0 | Y76: =+GETPIVOTDATA(" BAS140",TD!$A$34) -> 0 | Z76: =+GETPIVOTDATA(" BAS141",TD!$A$34) -> 0 | AA76: =+GETPIVOTDATA(" BAS142",TD!$A$34) -> 0 | AB76: =+GETPIVOTDATA(" BAS143",TD!$A$34) -> 0 | AC76: =SUM(X76:AB76) -> 0
C78: b) Plasmodium Falciparum | L78: =+GETPIVOTDATA(" BAS152",TD!$A$34) -> 0 | M78: =+GETPIVOTDATA(" BAS153",TD!$A$34) -> 0 | N78: =+GETPIVOTDATA(" BAS154",TD!$A$34) -> 0 | O78: =+GETPIVOTDATA(" BAS151",TD!$A$34) -> 0 | P78: =O78+N78+M78+L78 -> 0 | R78: =IFERROR(P78/P74,0) -> 0 | U78: b) Plasmodium Falciparum | X78: =+GETPIVOTDATA(" BAS147",TD!$A$34) -> 0 | Y78: =+GETPIVOTDATA(" BAS148",TD!$A$34) -> 0 | Z78: =+GETPIVOTDATA(" BAS149",TD!$A$34) -> 0 | AA78: =+GETPIVOTDATA(" BAS150",TD!$A$34) -> 0 | AB78: =+GETPIVOTDATA(" BAS151",TD!$A$34) -> 0 | AC78: =SUM(X78:AB78) -> 0
C80: 1.4 Casos de Malaria Grave - Complicada | J80: =J82+J84 -> 0 | K80: 0 | L80: 0 | M80: 0 | N80: 0 | O80: 0 | P80: =O80+N80+M80+L80+K80+J80 -> 0 | R80: =P80/P60 -> 0 | U80: 1.4 Casos de Malaria Grave - Complicada | X80: =X82+X84 -> 0 | Y80: =Y82+Y84 -> 0 | Z80: =Z82+Z84 -> 0 | AA80: =AA82+AA84 -> 0 | AB80: =AB82+AB84 -> 0 | AC80: =SUM(X80:AB80) -> 0
C82: a) Plasmodium Vivax | J82: 0 | K82: 0 | L82: 0 | M82: 0 | N82: 0 | O82: 0 | P82: =O82+N82+M82+L82+K82+J82 -> 0 | R82: =IFERROR(P82/$P$80,0) -> 0 | U82: a) Plasmodium Vivax | AC82: =SUM(X82:AB82) -> 0
C84: b) Plasmodium Falciparum | J84: 0 | K84: 0 | L84: 0 | M84: 0 | N84: 0 | O84: 0 | P84: =O84+N84+M84+L84+K84+J84 -> 0 | R84: =IFERROR(P84/$P$80,0) -> 0 | U84: b) Plasmodium Falciparum | AC84: =SUM(X84:AB84) -> 0
B86: V. | C86: TOTAL DE FALLECIDOS | J86: =J88+J90 -> 0 | K86: 0 | L86: 0 | M86: 0 | N86: 0 | O86: 0 | P86: =O86+N86+M86+L86+K86+J86 -> 0 | R86: 1 | U86: TOTAL DE FALLECIDOS | X86: =X88+X90 -> 0 | Y86: =Y88+Y90 -> 0 | Z86: =Z88+Z90 -> 0 | AA86: =AA88+AA90 -> 0 | AB86: =AB88+AB90 -> 0 | AC86: =SUM(X86:AB86) -> 0
C88: 1. Fallecidos por MGC a Plamodium Vivax | J88: =+GETPIVOTDATA(" BAS160",TD!$A$34) -> 0 | K88: =+GETPIVOTDATA(" BAS161",TD!$A$34) -> 0 | L88: =+GETPIVOTDATA(" BAS162",TD!$A$34) -> 0 | M88: =+GETPIVOTDATA(" BAS163",TD!$A$34) -> 0 | N88: =+GETPIVOTDATA(" BAS164",TD!$A$34) -> 0 | O88: =+GETPIVOTDATA(" BAS159",TD!$A$34) -> 0 | P88: =O88+N88+M88+L88+K88+J88 -> 0 | R88: =IFERROR(P88/$P$86,0) -> 0 | U88: 1. Fallecidos por MGC a Plamodium Vivax | X88: =+GETPIVOTDATA(" BAS155",TD!$A$34) -> 0 | Y88: =+GETPIVOTDATA(" BAS156",TD!$A$34) -> 0 | Z88: =+GETPIVOTDATA(" BAS157",TD!$A$34) -> 0 | AA88: =+GETPIVOTDATA(" BAS158",TD!$A$34) -> 0 | AB88: =+GETPIVOTDATA(" BAS159",TD!$A$34) -> 0 | AC88: =SUM(X88:AB88) -> 0
C90: 2. Fallecidos por MGC a Plamodium Falciparum | P90: =O90+N90+M90+L90+K90+J90 -> 0 | R90: =IFERROR(P90/$P$86,0) -> 0 | U90: 2. Fallecidos por MGC a Plamodium Falciparum | AC90: =SUM(X90:AB90) -> 0
B92: VI | C92: RAM | J92: =+GETPIVOTDATA(" BAS170",TD!$A$34) -> 0 | K92: =+GETPIVOTDATA(" BAS171",TD!$A$34) -> 0 | L92: =+GETPIVOTDATA(" BAS172",TD!$A$34) -> 0 | M92: =+GETPIVOTDATA(" BAS173",TD!$A$34) -> 0 | N92: =+GETPIVOTDATA(" BAS174",TD!$A$34) -> 0 | O92: =+GETPIVOTDATA(" BAS169",TD!$A$34) -> 0 | P92: =O92+N92+M92+L92+K92+J92 -> 0 | R92: =P92/P60 -> 0 | U92: RAM | X92: =+GETPIVOTDATA(" BAS165",TD!$A$34) -> 0 | Y92: =+GETPIVOTDATA(" BAS166",TD!$A$34) -> 0 | Z92: =+GETPIVOTDATA(" BAS167",TD!$A$34) -> 0 | AA92: =+GETPIVOTDATA(" BAS168",TD!$A$34) -> 0 | AB92: =+GETPIVOTDATA(" BAS169",TD!$A$34) -> 0 | AC92: =SUM(X92:AB92) -> 0
B94: VII. | C94: TRATAMIENTOS | H94: ADMINISTRADOS | K94: RECIBIDOS | L94: VIII. QUIMIOPROFILAXIS | U94: TRATAMIENTOS | X94: 00-11a | Y94: 12-17a | Z94: 18-29a | AA94: 30-59a | AB94: 60-99a | AC94: TOTAL
C95: 1. Total de Tratamientos | H95: =H97+H111 -> 0 | J95: 1 | K95: =K97+K111 -> 0 | L95: 1. Total Quimioprofilaxis Iniciadas | P95: =P97+P99 -> 0 | R95: 1 | U95: 1. Total de Tratamientos | X95: =X97+X111 -> 0 | Y95: =Y97+Y111 -> 0 | Z95: =Z97+Z111 -> 0 | AA95: =AA97+AA111 -> 0 | AB95: =AB97+AB111 -> 0 | AC95: =SUM(X95:AB95) -> 0
C97: 2. Ttos. Para Casos Confirmados | H97: =H99+H101 -> 0 | J97: =H97/H95 ->  | K97: =K99+K101 -> 0 | L97: 2. Quimioprofilaxis Malaria P. Vivax | P97: 0 | R97: =IFERROR(P97/$P$95,0) -> 0 | U97: 2. Ttos. Para Casos Confirmados | X97: =X99+X101 -> 0 | Y97: =Y99+Y101 -> 0 | Z97: =Z99+Z101 -> 0 | AA97: =AA99+AA101 -> 0 | AB97: =AB99+AB101 -> 0 | AC97: =SUM(X97:AB97) -> 0
C99: 2.1 Tratamiento Malaria P. Vivax | H99: =+GETPIVOTDATA(" BAS180",TD!$A$34) -> 0 | J99: =H99/H97 ->  | K99: 0 | L99: 3. Quimioprofilaxis Malaria P. Falciparum | P99: =P101+P103+P105 -> 0 | R99: =IFERROR(P99/$P$95,0) -> 0 | U99: 2.1 Tratamiento Malaria P. Vivax | X99: =+GETPIVOTDATA(" BAS175",TD!$A$34) -> 0 | Y99: =+GETPIVOTDATA(" BAS176",TD!$A$34) -> 0 | Z99: =+GETPIVOTDATA(" BAS177",TD!$A$34) -> 0 | AA99: =+GETPIVOTDATA(" BAS178",TD!$A$34) -> 0 | AB99: =+GETPIVOTDATA(" BAS179",TD!$A$34) -> 0 | AC99: =SUM(X99:AB99) -> 0
C101: 2.2 Tratamiento Malaria P. Falciparum | H101: =H103+H105+H107+H109 -> 0 | J101: =H101/H97 ->  | K101: =K103+K105+K107+K109 -> 0 | L101: 3.1 Cloroquina - Primaquina | P101: 0 | R101: =IFERROR(P101/$P$99,0) -> 0 | U101: 2.2 Tratamiento Malaria P. Falciparum | X101: =X103+X105+X107+X109 -> 0 | Y101: =Y103+Y105+Y107+Y109 -> 0 | Z101: =Z103+Z105+Z107+Z109 -> 0 | AA101: =AA103+AA105+AA107+AA109 -> 0 | AB101: =AB103+AB105+AB107+AB109 -> 0 | AC101: =SUM(X101:AB101) -> 0
C103: a. Cloroquina - Primaquina | H103: =+GETPIVOTDATA(" BAS186",TD!$A$34) -> 0 | J103: =IFERROR(H103/H101,0) -> 0 | K103: 0 | L103: 3.2 Mefloquina - Primaquina | P103: 0 | R103: =IFERROR(P103/$P$99,0) -> 0 | U103: a. Cloroquina - Primaquina | X103: =+GETPIVOTDATA(" BAS181",TD!$A$34) -> 0 | Y103: =+GETPIVOTDATA(" BAS182",TD!$A$34) -> 0 | Z103: =+GETPIVOTDATA(" BAS183",TD!$A$34) -> 0 | AA103: =+GETPIVOTDATA(" BAS184",TD!$A$34) -> 0 | AB103: =+GETPIVOTDATA(" BAS185",TD!$A$34) -> 0 | AC103: =SUM(X103:AB103) -> 0
C105: b. Sulfadoxina - Pirimetamina | H105: 0 | J105: =IFERROR(H105/H101,0) -> 0 | K105: 0 | L105: 3.3 Cloroquina- Progunanil/Primaqina | P105: 0 | R105: =IFERROR(P105/$P$99,0) -> 0 | U105: b. Sulfadoxina - Pirimetamina | AC105: =SUM(X105:AB105) -> 0
C107: c. Mefloquina - Artemeter | H107: 0 | J107: =IFERROR(H107/H101,0) -> 0 | K107: 0 | U107: c. Mefloquina - Artemeter | AC107: =SUM(X107:AB107) -> 0
C109: d. Quinina - Clindamicina | H109: 0 | J109: =IFERROR(H109/H101,0) -> 0 | K109: 0 | U109: d. Quinina - Clindamicina | AC109: =SUM(X109:AB109) -> 0
C111: 3. Ttos. Para Casos Probables | H111: =+GETPIVOTDATA(" BAS192",TD!$A$34) -> 0 | J111: =H111/H95 ->  | K111: 0 | U111: 3. Ttos. Para Casos Probables | X111: =+GETPIVOTDATA(" BAS187",TD!$A$34) -> 0 | Y111: =+GETPIVOTDATA(" BAS188",TD!$A$34) -> 0 | Z111: =+GETPIVOTDATA(" BAS189",TD!$A$34) -> 0 | AA111: =+GETPIVOTDATA(" BAS190",TD!$A$34) -> 0 | AB111: =+GETPIVOTDATA(" BAS191",TD!$A$34) -> 0 | AC111: =SUM(X111:AB111) -> 0
B113: IX. | C113: SALDO MEDICAMENTOS
C114: 1. Cloroquina x 250 mg | J114: 0 | O114: 0
C116: 2. Primaquina x 15 mg | J116: 0 | O116: 0
C118: 3. Primaquina x 7.5 mg | J118: 0 | O118: 0
C120: 4. Primaquina x 5 mg | J120: 0 | O120: 0
C122: 5. Sulfadoxina/Primetamina x 5000/25 mg | J122: 0
C125: Lugar y Fecha | M125: Firma y Sello del Coordinador del PCMOEM

Sheet BARTONELOSIS
B1: DIRECCION REGIONAL DE SALUD CUSCO
B2: DIRECCION EJECUTIVA DE INTELIGENCIA SANITARIA
B3: DIRECCION DE ESTADISTICA Y TELECOMUNICACIONES
B4: METAXENICAS BARTONELOSIS
B5: INFORME OPERACIONAL MENSUAL
C7: RED DE SALUD | F7: =TD!F3 -> LA CONVENCION | N7: PROVINCIA | P7: =TD!F6 -> (All) | W7: AÑO : | Z7: =TD!C10 -> 2024
C9: MICRO RED | F9: =TD!F4 -> (All) | N9: DISTRITO | P9: =TD!F7 -> (All) | W9: MES : | Z9: =TD!O17 -> ENERO - NOVIEMBRE
C11: ESTABLECIMIENTO | F11: =TD!F5 -> (All) | N11: U. E. | P11: =TD!F8 -> (All) | W11: POBLACION EN RIESGO | Z11: 335132
W13: POBLACION TOTAL | Z13: 1342562
B17: I. LOCALIZACION DE CASOS: | O17: I. LOCALIZACION DE CASOS: | T17: 00-11a | U17: 12-17a | V17: 18-29a | W17: 30-59a | X17: 60-99a | Y17: TOTAL
B19: 1. Nº Febriles Anémicos Agudos/Verrucosos esperados | F19: 0 | H19: 6. Nº Verrucosos Examinados | K19: 0 | O19: 1. Nº Febriles Anémicos Agudos/Verrucosos esperados | Y19: =SUM(T19:X19) -> 0
B20: 2. Nº Febriles Anémicos Agudos Identificados | F20: =+GETPIVOTDATA(" BAS016",TD!$A$122) -> 998 | H20: 7. Nº Verrucosos Frotis (+) | K20: 0 | O20: 2. Nº Febriles Anémicos Agudos Identificados | T20: =+GETPIVOTDATA(" BAS011",TD!$A$122) -> 210 | U20: =+GETPIVOTDATA(" BAS012",TD!$A$122) -> 101 | V20: =+GETPIVOTDATA(" BAS013",TD!$A$122) -> 241 | W20: =+GETPIVOTDATA(" BAS014",TD!$A$122) -> 383 | X20: =+GETPIVOTDATA(" BAS015",TD!$A$122) -> 63 | Y20: =SUM(T20:X20) -> 998
B21: 3. Nº Febriles Anémicos Agudos Examinados | F21: =+GETPIVOTDATA(" BAS022",TD!$A$122) -> 976 | H21: 8. Nº Total Láminas de Diagnóstico | O21: 3. Nº Febriles Anémicos Agudos Examinados | T21: =+GETPIVOTDATA(" BAS017",TD!$A$122) -> 196 | U21: =+GETPIVOTDATA(" BAS018",TD!$A$122) -> 98 | V21: =+GETPIVOTDATA(" BAS019",TD!$A$122) -> 240 | W21: =+GETPIVOTDATA(" BAS020",TD!$A$122) -> 379 | X21: =+GETPIVOTDATA(" BAS021",TD!$A$122) -> 63 | Y21: =SUM(T21:X21) -> 976
B22: 4. Nº Febriles Anémicos Agudos Frotis (+) | H22: 9. Nº Láminas de Diagnóstico (+) | O22: 4. Nº Febriles Anémicos Agudos Frotis (+) | Y22: =SUM(T22:X22) -> 0
B23: 5. Nº Verrucosos Identificados | F23: 0 | H23: 10. Nº Láminas de Control | K23: 0 | O23: 5. Nº Verrucosos Identificados | Y23: =SUM(T23:X23) -> 0
B25: II. INFORME DE CASOS: | E25: <1a | F25: 1-9a | G25: 10-14a | H25: 15-19a | I25: 20-59a | J25: 60a y + | K25: TOTAL | O25: II. INFORME DE CASOS: | T25: 00-11a | U25: 12-17a | V25: 18-29a | W25: 30-59a | X25: 60-99a | Y25: TOTAL
B26: 1. Total de Casos | E26: =E28+E32 -> 0 | F26: 2 | G26: 0 | H26: 0 | I26: 4 | J26: 1 | K26: =SUM(E26:J26) -> 7 | O26: 1. Total de Casos | T26: =T28+T32 -> 2 | U26: =U28+U32 -> 0 | V26: =V28+V32 -> 2 | W26: =W28+W32 -> 2 | X26: =X28+X32 -> 1 | Y26: =SUM(T26:X26) -> 7
B28: 2. Casos Confirmados: | E28: =SUM(E29:E31) -> 0 | F28: 0 | G28: 0 | H28: 0 | I28: 0 | J28: 0 | K28: 0 | O28: 2. Casos Confirmados: | T28: =SUM(T29:T31) -> 0 | U28: =SUM(U29:U31) -> 0 | V28: =SUM(V29:V31) -> 0 | W28: =SUM(W29:W31) -> 0 | X28: =SUM(X29:X31) -> 0 | Y28: =SUM(T28:X28) -> 0
B29: 2.1. B. Aguda | E29: =+GETPIVOTDATA(" BAS034",TD!$A$122) -> 0 | F29: =+GETPIVOTDATA(" BAS035",TD!$A$122) -> 0 | G29: =+GETPIVOTDATA(" BAS036",TD!$A$122) -> 0 | H29: =+GETPIVOTDATA(" BAS037",TD!$A$122) -> 0 | I29: =+GETPIVOTDATA(" BAS038",TD!$A$122) -> 0 | J29: =+GETPIVOTDATA(" BAS033",TD!$A$122) -> 0 | K29: 0 | O29: 2.1. B. Aguda | T29: =+GETPIVOTDATA(" BAS029",TD!$A$122) -> 0 | U29: =+GETPIVOTDATA(" BAS030",TD!$A$122) -> 0 | V29: =+GETPIVOTDATA(" BAS031",TD!$A$122) -> 0 | W29: =+GETPIVOTDATA(" BAS032",TD!$A$122) -> 0 | X29: =+GETPIVOTDATA(" BAS033",TD!$A$122) -> 0 | Y29: =SUM(T29:X29) -> 0
B30: 2.2. B. Verrucosa o Crónica | E30: =+GETPIVOTDATA(" BAS044",TD!$A$122) -> 0 | F30: =+GETPIVOTDATA(" BAS045",TD!$A$122) -> 0 | G30: =+GETPIVOTDATA(" BAS046",TD!$A$122) -> 0 | H30: =+GETPIVOTDATA(" BAS047",TD!$A$122) -> 0 | I30: =+GETPIVOTDATA(" BAS048",TD!$A$122) -> 0 | J30: =+GETPIVOTDATA(" BAS043",TD!$A$122) -> 0 | K30: 0 | O30: 2.2. B. Verrucosa o Crónica | T30: =+GETPIVOTDATA(" BAS039",TD!$A$122) -> 0 | U30: =+GETPIVOTDATA(" BAS040",TD!$A$122) -> 0 | V30: =+GETPIVOTDATA(" BAS041",TD!$A$122) -> 0 | W30: =+GETPIVOTDATA(" BAS042",TD!$A$122) -> 0 | X30: =+GETPIVOTDATA(" BAS043",TD!$A$122) -> 0 | Y30: =SUM(T30:X30) -> 0
B31: 2.3. B. Grave Complicada | E31: =+GETPIVOTDATA(" BAS054",TD!$A$122) -> 0 | F31: =+GETPIVOTDATA(" BAS055",TD!$A$122) -> 0 | G31: =+GETPIVOTDATA(" BAS056",TD!$A$122) -> 0 | H31: =+GETPIVOTDATA(" BAS057",TD!$A$122) -> 0 | I31: =+GETPIVOTDATA(" BAS058",TD!$A$122) -> 0 | J31: =+GETPIVOTDATA(" BAS053",TD!$A$122) -> 0 | K31: 0 | O31: 2.3. B. Grave Complicada | T31: =+GETPIVOTDATA(" BAS049",TD!$A$122) -> 0 | U31: =+GETPIVOTDATA(" BAS050",TD!$A$122) -> 0 | V31: =+GETPIVOTDATA(" BAS051",TD!$A$122) -> 0 | W31: =+GETPIVOTDATA(" BAS052",TD!$A$122) -> 0 | X31: =+GETPIVOTDATA(" BAS053",TD!$A$122) -> 0 | Y31: =SUM(T31:X31) -> 0
B32: 3. Casos Probables | E32: =+GETPIVOTDATA(" BAS064",TD!$A$122) -> 0 | F32: =+GETPIVOTDATA(" BAS065",TD!$A$122) -> 2 | G32: =+GETPIVOTDATA(" BAS066",TD!$A$122) -> 0 | H32: =+GETPIVOTDATA(" BAS067",TD!$A$122) -> 0 | I32: =+GETPIVOTDATA(" BAS068",TD!$A$122) -> 4 | J32: =+GETPIVOTDATA(" BAS063",TD!$A$122) -> 1 | K32: 7 | O32: 3. Casos Probables | T32: =+GETPIVOTDATA(" BAS059",TD!$A$122) -> 2 | U32: =+GETPIVOTDATA(" BAS060",TD!$A$122) -> 0 | V32: =+GETPIVOTDATA(" BAS061",TD!$A$122) -> 2 | W32: =+GETPIVOTDATA(" BAS062",TD!$A$122) -> 2 | X32: =+GETPIVOTDATA(" BAS063",TD!$A$122) -> 1 | Y32: =SUM(T32:X32) -> 7
B34: III. FALLECIDOS | E34: =+GETPIVOTDATA(" BAS074",TD!$A$122) -> 0 | F34: =+GETPIVOTDATA(" BAS075",TD!$A$122) -> 0 | G34: =+GETPIVOTDATA(" BAS076",TD!$A$122) -> 0 | H34: =+GETPIVOTDATA(" BAS077",TD!$A$122) -> 0 | I34: =+GETPIVOTDATA(" BAS078",TD!$A$122) -> 0 | J34: =+GETPIVOTDATA(" BAS073",TD!$A$122) -> 0 | K34: 0 | O34: III. FALLECIDOS | T34: =+GETPIVOTDATA(" BAS069",TD!$A$122) -> 0 | U34: =+GETPIVOTDATA(" BAS070",TD!$A$122) -> 0 | V34: =+GETPIVOTDATA(" BAS071",TD!$A$122) -> 0 | W34: =+GETPIVOTDATA(" BAS072",TD!$A$122) -> 0 | X34: =+GETPIVOTDATA(" BAS073",TD!$A$122) -> 0 | Y34: =SUM(T34:X34) -> 0
B36: IV. RAM | E36: =+GETPIVOTDATA(" BAS083",TD!$A$122) -> 0 | O36: IV. RAM | T36: =+GETPIVOTDATA(" BAS079",TD!$A$122) -> 0 | U36: =+GETPIVOTDATA(" BAS080",TD!$A$122) -> 0 | V36: =+GETPIVOTDATA(" BAS081",TD!$A$122) -> 0 | W36: =+GETPIVOTDATA(" BAS082",TD!$A$122) -> 0 | X36: =+GETPIVOTDATA(" BAS083",TD!$A$122) -> 0 | Y36: =SUM(T36:X36) -> 0
B38: V. CONTROL DE COLATERALES | O38: V. CONTROL DE COLATERALES | T38: 00-11a | U38: 12-17a | V38: 18-29a | W38: 30-59a | X38: 60-99a | Y38: TOTAL
B40: 1. Colaterales Censados | E40: =+GETPIVOTDATA(" BAS094",TD!$A$122)+(+GETPIVOTDATA(" BAS054",TD!$A$122)) -> 0 | O40: 1. Colaterales Censados | T40: =+GETPIVOTDATA(" BAS089",TD!$A$122)+(+GETPIVOTDATA(" BAS095",TD!$A$122)) -> 0 | U40: =+GETPIVOTDATA(" BAS090",TD!$A$122)+(+GETPIVOTDATA(" BAS096",TD!$A$122)) -> 0 | V40: =+GETPIVOTDATA(" BAS091",TD!$A$122)+(+GETPIVOTDATA(" BAS097",TD!$A$122)) -> 0 | W40: =+GETPIVOTDATA(" BAS092",TD!$A$122)+(+GETPIVOTDATA(" BAS098",TD!$A$122)) -> 0 | X40: =+GETPIVOTDATA(" BAS093",TD!$A$122)+(+GETPIVOTDATA(" BAS099",TD!$A$122)) -> 0 | Y40: =SUM(T40:X40) -> 0
B41: 2. Colaterales Examinados | E41: =+GETPIVOTDATA(" BAS106",TD!$A$122) -> 0 | O41: 2. Colaterales Examinados | T41: =+GETPIVOTDATA(" BAS101",TD!$A$122) -> 0 | U41: =+GETPIVOTDATA(" BAS102",TD!$A$122) -> 0 | V41: =+GETPIVOTDATA(" BAS103",TD!$A$122) -> 0 | W41: =+GETPIVOTDATA(" BAS104",TD!$A$122) -> 0 | X41: =+GETPIVOTDATA(" BAS105",TD!$A$122) -> 0 | Y41: =SUM(T41:X41) -> 0
B42: 3. Colaterales Examinados Frotis + | E42: =+GETPIVOTDATA(" BAS112",TD!$A$122) -> 0 | O42: 3. Colaterales Examinados Frotis + | T42: =+GETPIVOTDATA(" BAS107",TD!$A$122) -> 0 | U42: =+GETPIVOTDATA(" BAS108",TD!$A$122) -> 0 | V42: =+GETPIVOTDATA(" BAS109",TD!$A$122) -> 0 | W42: =+GETPIVOTDATA(" BAS110",TD!$A$122) -> 0 | X42: =+GETPIVOTDATA(" BAS111",TD!$A$122) -> 0 | Y42: =SUM(T42:X42) -> 0
B44: VI. TRATAMIENTO UTILIZADOS | O44: VI. TRATAMIENTO UTILIZADOS | T44: 00-11a | U44: 12-17a | V44: 18-29a | W44: 30-59a | X44: 60-99a | Y44: TOTAL
B46: 1. Bartonellosis Aguda | E46: =+GETPIVOTDATA(" BAS118",TD!$A$122) -> 0 | O46: 1. Bartonellosis Aguda | T46: =+GETPIVOTDATA(" BAS113",TD!$A$122) -> 0 | U46: =+GETPIVOTDATA(" BAS114",TD!$A$122) -> 0 | V46: =+GETPIVOTDATA(" BAS115",TD!$A$122) -> 0 | W46: =+GETPIVOTDATA(" BAS116",TD!$A$122) -> 0 | X46: =+GETPIVOTDATA(" BAS117",TD!$A$122) -> 0 | Y46: =SUM(T46:X46) -> 0
B47: 2. Bartonellosis Grave-Complicada | E47: =+GETPIVOTDATA(" BAS124",TD!$A$122) -> 0 | O47: 2. Bartonellosis Grave-Complicada | T47: =+GETPIVOTDATA(" BAS119",TD!$A$122) -> 0 | U47: =+GETPIVOTDATA(" BAS120",TD!$A$122) -> 0 | V47: =+GETPIVOTDATA(" BAS121",TD!$A$122) -> 0 | W47: =+GETPIVOTDATA(" BAS122",TD!$A$122) -> 0 | X47: =+GETPIVOTDATA(" BAS123",TD!$A$122) -> 0 | Y47: =SUM(T47:X47) -> 0
B48: 3. Bartonellosis Verrucosa-Crónica | E48: =+GETPIVOTDATA(" BAS130",TD!$A$122) -> 0 | O48: 3. Bartonellosis Verrucosa-Crónica | T48: =+GETPIVOTDATA(" BAS125",TD!$A$122) -> 0 | U48: =+GETPIVOTDATA(" BAS126",TD!$A$122) -> 0 | V48: =+GETPIVOTDATA(" BAS127",TD!$A$122) -> 0 | W48: =+GETPIVOTDATA(" BAS128",TD!$A$122) -> 0 | X48: =+GETPIVOTDATA(" BAS129",TD!$A$122) -> 0 | Y48: =SUM(T48:X48) -> 0
B50: VII. SALDO DE MEDICAMENTOS
B52: CAF Cap. X 500 mg. | E52: 0 | H52: REP. Cap. X 300 mgs. | K52: 0
B53: CAF Cap. X 250 mg. | E53: 0 | H53: Norfloxacina x 400 mgs | K53: 0
B54: CAF Fco. X 1 gr. | E54: 0 | H54: Ciproxina x 500 mgs. | K54: 0
B55: PGNa x 1000,000 | E55: 0 | H55: Ciproxina x 250 mgs. | K55: 0
B56: CAF. Fco. X125 mg. | E56: 0
B57: STM Fco. X 1 gr. | E57: 0
B61: FECHA: | H61: Coordinador del Prog. Control Malaria y OEM

Sheet LEISHMANIA
B1: DIRECCION REGIONAL DE SALUD CUSCO
B2: DIRECCION EJECUTIVA DE INTELIGENCIA SANITARIA
B3: DIRECCION DE ESTADISTICA Y TELECOMUNICACIONES
B4: METAXENICAS LEISHMANIASIS
B5: INFORME OPERACIONAL MENSUAL
C7: RED DE SALUD | F7: =TD!F3 -> LA CONVENCION | L7: PROVINCIA | P7: =TD!F6 -> (All) | V7: AÑO : | Y7: =TD!C10 -> 2024
C9: MICRO RED | F9: =TD!F4 -> (All) | L9: DISTRITO | P9: =TD!F7 -> (All) | V9: MES : | Y9: =TD!O17 -> ENERO - NOVIEMBRE
C11: ESTABLECIMIENTO | F11: =TD!F5 -> (All) | L11: U. E. | P11: =TD!F8 -> (All) | V11: POBLACION EN RIESGO | Y11: 342825
V13: POBLACION TOTAL | Y13: 1342562
B16: I. LOCALIZACION DE CASOS . | D16: NRO | E16: % | J16: NRO | K16: % | N16: I. LOCALIZACION DE CASOS . | T16: 00-11a | U16: 12-17a | V16: 18-29a | W16: 30-59a | X16: 60-99a | Y16: TOTAL
B18: 1. NRO. DE PERSONAS CON LESIONES | N18: 1. NRO. DE PERSONAS CON LESIONES
B19: SOSPECHOSAS DE LESHMANIASIS | D19: =+GETPIVOTDATA(" BAS015",TD!$A$58) -> 180 | E19: 1 | F19: 4. NRO. DE MUESTRA P/ DIAGNOSTICO | J19: 0 | N19: SOSPECHOSAS DE LESHMANIASIS | T19: =GETPIVOTDATA(" BAS011",TD!$A$58) -> 111 | U19: =+GETPIVOTDATA(" BAS012",TD!$A$58) -> 57 | V19: =+GETPIVOTDATA(" BAS013",TD!$A$58) -> 144 | W19: =+GETPIVOTDATA(" BAS014",TD!$A$58) -> 426 | X19: =+GETPIVOTDATA(" BAS015",TD!$A$58) -> 180 | Y19: =SUM(T19:X19) -> 918
B20: 2. NRO. DE PERSONAS EXAMINADAS | D20: =SUM(D21:D24) -> 596 | E20: =IFERROR(D19/D20,0) -> 0.3020134228 | F20: 4.1. FROTIS + | J20: 0 | N20: 2. NRO. DE PERSONAS EXAMINADAS | T20: =SUM(T21:T24) -> 84 | U20: =SUM(U21:U24) -> 44 | V20: =SUM(V21:V24) -> 97 | W20: =SUM(W21:W24) -> 270 | X20: =SUM(X21:X24) -> 101 | Y20: 596
B21: 2.1. NRO. EX/FROTIS | D21: =+GETPIVOTDATA(" BAS022",TD!$A$58) -> 420 | E21: =IFERROR(D21/D20,0) -> 0.7046979866 | F21: CULTIVO + | J21: 0 | N21: 2.1. NRO. EX/FROTIS | T21: =+GETPIVOTDATA(" BAS017",TD!$A$58) -> 69 | U21: =+GETPIVOTDATA(" BAS018",TD!$A$58) -> 38 | V21: =+GETPIVOTDATA(" BAS019",TD!$A$58) -> 72 | W21: =+GETPIVOTDATA(" BAS020",TD!$A$58) -> 181 | X21: =+GETPIVOTDATA(" BAS021",TD!$A$58) -> 60 | Y21: 420
B22: 2.2. NRO. EX/LEISHMANIA | D22: =+GETPIVOTDATA(" BAS028",TD!$A$58) -> 0 | E22: =IFERROR(D22/D20,0) -> 0 | F22: SEROLOGIA + | J22: 0 | N22: 2.2. NRO. EX/LEISHMANIA | T22: =+GETPIVOTDATA(" BAS023",TD!$A$58) -> 0 | U22: =+GETPIVOTDATA(" BAS024",TD!$A$58) -> 0 | V22: =+GETPIVOTDATA(" BAS025",TD!$A$58) -> 0 | W22: =+GETPIVOTDATA(" BAS026",TD!$A$58) -> 0 | X22: =+GETPIVOTDATA(" BAS027",TD!$A$58) -> 0 | Y22: 0
B23: 2.3. NRO. EX/SEROLOGIA | D23: =+GETPIVOTDATA(" BAS034",TD!$A$58) -> 175 | E23: =IFERROR(D23/D20,0) -> 0.2936241611 | F23: 5. NRO. DE MUESTRA P/ CONTROL DE TTO. | J23: =SUM(J24:J26) -> 0 | N23: 2.3. NRO. EX/SEROLOGIA | T23: =+GETPIVOTDATA(" BAS029",TD!$A$58) -> 15 | U23: =+GETPIVOTDATA(" BAS030",TD!$A$58) -> 6 | V23: =+GETPIVOTDATA(" BAS031",TD!$A$58) -> 25 | W23: =+GETPIVOTDATA(" BAS032",TD!$A$58) -> 88 | X23: =+GETPIVOTDATA(" BAS033",TD!$A$58) -> 41 | Y23: 175
B24: 2.4. NRO. EX/CULTIVO | D24: =+GETPIVOTDATA(" BAS040",TD!$A$58) -> 1 | E24: =IFERROR(D24/D20,0) -> 0.001677852349 | F24: 5.1. FROTIS | J24: 0 | N24: 2.4. NRO. EX/CULTIVO | T24: =+GETPIVOTDATA(" BAS035",TD!$A$58) -> 0 | U24: =+GETPIVOTDATA(" BAS036",TD!$A$58) -> 0 | V24: =+GETPIVOTDATA(" BAS037",TD!$A$58) -> 0 | W24: =+GETPIVOTDATA(" BAS038",TD!$A$58) -> 1 | X24: =+GETPIVOTDATA(" BAS039",TD!$A$58) -> 0 | Y24: 1
B25: 3. NRO. DE PERSONAS EXAMINADAS R+ | D25: =SUM(D26:D28) -> 0 | E25: 1 | F25: CULTIVO | J25: 0 | N25: 3. NRO. DE PERSONAS EXAMINADAS R+ | T25: =SUM(T26:T28) -> 0 | U25: =SUM(U26:U28) -> 0 | V25: =SUM(V26:V28) -> 0 | W25: =SUM(W26:W28) -> 0 | X25: =SUM(X26:X28) -> 0 | Y25: 0
B26: RESULTADOS +A FROTIS | D26: - | F26: SEROLOGIA | J26: Total | N26: RESULTADOS+ A | Q26: FROTIS | Y26: 0
B27: CULTIVO | D27: - | Q27: CULTIVO | Y27: =SUM(T27:X27) -> 0
B28: SEROLOGIA | D28: - | Q28: SEROLOGIA | Y28: =SUM(T28:X28) -> 0
B30: II. INFORME DE CASOS : | N30: II. INFORME DE CASOS :
E31: <1a | F31: 1-9a | G31: 10-14a | H31: 15-19a | I31: 20-59a | J31: 60a y + | K31: TOTAL | T31: 00-11a | U31: 12-17a | V31: 18-29a | W31: 30-59a | X31: 60-99a | Y31: TOTAL
B32: A. LEISHMANIASIS TOTAL | E32: =E33+E38+E43+E45+E49 -> 0 | F32: 12 | G32: 7 | H32: 5 | I32: 39 | J32: 14 | K32: =SUM(E32:J32) -> 77 | N32: A. LEISHMANIASIS TOTAL | T32: =T33+T38+T43+T45+T49 -> 15 | U32: =U33+U38+U43+U45+U49 -> 5 | V32: =V33+V38+V43+V45+V49 -> 11 | W32: =W33+W38+W43+W45+W49 -> 32 | X32: =X33+X38+X43+X45+X49 -> 14 | Y32: =SUM(T32:X32) -> 77
B33: A.1. LEISHMANIASIS CUTANEA | E33: =SUM(E34:E37) -> 0 | F33: 11 | G33: 7 | H33: 5 | I33: 34 | J33: 14 | K33: =SUM(E33:J33) -> 71 | N33: A.1. LEISHMANIASIS CUTANEA | T33: =SUM(T34:T37) -> 14 | U33: =SUM(U34:U37) -> 5 | V33: =SUM(V34:V37) -> 10 | W33: =SUM(W34:W37) -> 28 | X33: =SUM(X34:X37) -> 14 | Y33: =SUM(T33:X33) -> 71
B34: 1. CONF. FROTIS | E34: =+GETPIVOTDATA(" BAS046",TD!$A$58) -> 0 | F34: =+GETPIVOTDATA(" BAS047",TD!$A$58) -> 7 | G34: =+GETPIVOTDATA(" BAS048",TD!$A$58) -> 4 | H34: =+GETPIVOTDATA(" BAS049",TD!$A$58) -> 5 | I34: =+GETPIVOTDATA(" BAS050",TD!$A$58) -> 24 | J34: =+GETPIVOTDATA(" BAS045",TD!$A$58) -> 10 | K34: =SUM(E34:J34) -> 50 | N34: 1. CONF. FROTIS | T34: =+GETPIVOTDATA(" BAS041",TD!$A$58) -> 9 | U34: =+GETPIVOTDATA(" BAS042",TD!$A$58) -> 3 | V34: =+GETPIVOTDATA(" BAS043",TD!$A$58) -> 9 | W34: =+GETPIVOTDATA(" BAS044",TD!$A$58) -> 19 | X34: =+GETPIVOTDATA(" BAS045",TD!$A$58) -> 10 | Y34: =SUM(T34:X34) -> 50
B35: 2.CONF. BIOPSIA | E35: =+GETPIVOTDATA(" BAS055",TD!$A$58) -> 0 | F35: =+GETPIVOTDATA(" BAS056",TD!$A$58) -> 0 | G35: =+GETPIVOTDATA(" BAS057",TD!$A$58) -> 0 | H35: =+GETPIVOTDATA(" BAS058",TD!$A$58) -> 0 | I35: =+GETPIVOTDATA(" BAS059",TD!$A$58) -> 0 | J35: =+GETPIVOTDATA(" BAS054",TD!$A$58) -> 0 | K35: 0 | N35: 2.CONF. BIOPSIA | T35: =+GETPIVOTDATA(" BAS051",TD!$A$58) -> 0 | U35: =+GETPIVOTDATA(" BAS052",TD!$A$58) -> 0 | V35: =+GETPIVOTDATA(" BAS053",TD!$A$58) -> 0 | W35: =+GETPIVOTDATA(" BAS054",TD!$A$58) -> 0 | X35: =+GETPIVOTDATA(" BAS055",TD!$A$58) -> 0 | Y35: 0
B36: 3.CONF. CULTIVO | E36: =+GETPIVOTDATA(" BAS065",TD!$A$58) -> 0 | F36: =+GETPIVOTDATA(" BAS066",TD!$A$58) -> 0 | G36: =+GETPIVOTDATA(" BAS067",TD!$A$58) -> 0 | H36: =+GETPIVOTDATA(" BAS068",TD!$A$58) -> 0 | I36: =+GETPIVOTDATA(" BAS069",TD!$A$58) -> 1 | J36: =+GETPIVOTDATA(" BAS064",TD!$A$58) -> 0 | K36: 1 | N36: 3.CONF. CULTIVO | T36: =+GETPIVOTDATA(" BAS060",TD!$A$58) -> 0 | U36: =+GETPIVOTDATA(" BAS061",TD!$A$58) -> 0 | V36: =+GETPIVOTDATA(" BAS062",TD!$A$58) -> 0 | W36: =+GETPIVOTDATA(" BAS063",TD!$A$58) -> 1 | X36: =+GETPIVOTDATA(" BAS064",TD!$A$58) -> 0 | Y36: 1
B37: 4.CONF. SEROLOGIA | E37: =+GETPIVOTDATA(" BAS075",TD!$A$58) -> 0 | F37: =+GETPIVOTDATA(" BAS076",TD!$A$58) -> 4 | G37: =+GETPIVOTDATA(" BAS077",TD!$A$58) -> 3 | H37: =+GETPIVOTDATA(" BAS078",TD!$A$58) -> 0 | I37: =+GETPIVOTDATA(" BAS079",TD!$A$58) -> 9 | J37: =+GETPIVOTDATA(" BAS074",TD!$A$58) -> 4 | K37: 20 | N37: 4.CONF. SEROLOGIA | T37: =+GETPIVOTDATA(" BAS070",TD!$A$58) -> 5 | U37: =+GETPIVOTDATA(" BAS071",TD!$A$58) -> 2 | V37: =+GETPIVOTDATA(" BAS072",TD!$A$58) -> 1 | W37: =+GETPIVOTDATA(" BAS073",TD!$A$58) -> 8 | X37: =+GETPIVOTDATA(" BAS074",TD!$A$58) -> 4 | Y37: 20
B38: A.2. LEISHMANIASIS MUCOCUTANEA | E38: =SUM(E39:E42) -> 0 | F38: 0 | G38: 0 | H38: 0 | I38: 5 | J38: 0 | K38: 5 | N38: A.2. LEISHMANIASIS MUCOCUTANEA | T38: =SUM(T39:T42) -> 0 | U38: =SUM(U39:U42) -> 0 | V38: =SUM(V39:V42) -> 1 | W38: =SUM(W39:W42) -> 4 | X38: =SUM(X39:X42) -> 0 | Y38: 5
B39: 1. CONF. FROTIS | E39: =+GETPIVOTDATA(" BAS085",TD!$A$58) -> 0 | F39: =+GETPIVOTDATA(" BAS086",TD!$A$58) -> 0 | G39: =+GETPIVOTDATA(" BAS087",TD!$A$58) -> 0 | H39: =+GETPIVOTDATA(" BAS088",TD!$A$58) -> 0 | I39: =+GETPIVOTDATA(" BAS089",TD!$A$58) -> 1 | J39: =+GETPIVOTDATA(" BAS084",TD!$A$58) -> 0 | K39: 1 | N39: 1. CONF. FROTIS | T39: =+GETPIVOTDATA(" BAS080",TD!$A$58) -> 0 | U39: =+GETPIVOTDATA(" BAS081",TD!$A$58) -> 0 | V39: =+GETPIVOTDATA(" BAS082",TD!$A$58) -> 0 | W39: =+GETPIVOTDATA(" BAS083",TD!$A$58) -> 1 | X39: =+GETPIVOTDATA(" BAS084",TD!$A$58) -> 0 | Y39: 1
B40: 2.CONF. BIOPSIA | E40: =+GETPIVOTDATA(" BAS095",TD!$A$58) -> 0 | F40: =+GETPIVOTDATA(" BAS096",TD!$A$58) -> 0 | G40: =+GETPIVOTDATA(" BAS097",TD!$A$58) -> 0 | H40: =+GETPIVOTDATA(" BAS098",TD!$A$58) -> 0 | I40: =+GETPIVOTDATA(" BAS099",TD!$A$58) -> 0 | J40: =+GETPIVOTDATA(" BAS094",TD!$A$58) -> 0 | K40: 0 | N40: 2.CONF. BIOPSIA | T40: =+GETPIVOTDATA(" BAS090",TD!$A$58) -> 0 | U40: =+GETPIVOTDATA(" BAS091",TD!$A$58) -> 0 | V40: =+GETPIVOTDATA(" BAS092",TD!$A$58) -> 0 | W40: =+GETPIVOTDATA(" BAS093",TD!$A$58) -> 0 | X40: =+GETPIVOTDATA(" BAS094",TD!$A$58) -> 0 | Y40: 0
B41: 3.CONF. CULTIVO | E41: =+GETPIVOTDATA(" BAS105",TD!$A$58) -> 0 | F41: =+GETPIVOTDATA(" BAS106",TD!$A$58) -> 0 | G41: =+GETPIVOTDATA(" BAS107",TD!$A$58) -> 0 | H41: =+GETPIVOTDATA(" BAS108",TD!$A$58) -> 0 | I41: =+GETPIVOTDATA(" BAS109",TD!$A$58) -> 0 | J41: =+GETPIVOTDATA(" BAS104",TD!$A$58) -> 0 | K41: 0 | N41: 3.CONF. CULTIVO | T41: =+GETPIVOTDATA(" BAS100",TD!$A$58) -> 0 | U41: =+GETPIVOTDATA(" BAS101",TD!$A$58) -> 0 | V41: =+GETPIVOTDATA(" BAS102",TD!$A$58) -> 0 | W41: =+GETPIVOTDATA(" BAS103",TD!$A$58) -> 0 | X41: =+GETPIVOTDATA(" BAS104",TD!$A$58) -> 0 | Y41: 0
B42: 4.CONF. SEROLOGIA | E42: =+GETPIVOTDATA(" BAS115",TD!$A$58) -> 0 | F42: =+GETPIVOTDATA(" BAS116",TD!$A$58) -> 0 | G42: =+GETPIVOTDATA(" BAS117",TD!$A$58) -> 0 | H42: =+GETPIVOTDATA(" BAS118",TD!$A$58) -> 0 | I42: =+GETPIVOTDATA(" BAS119",TD!$A$58) -> 4 | J42: =+GETPIVOTDATA(" BAS114",TD!$A$58) -> 0 | K42: 4 | N42: 4.CONF. SEROLOGIA | T42: =+GETPIVOTDATA(" BAS110",TD!$A$58) -> 0 | U42: =+GETPIVOTDATA(" BAS111",TD!$A$58) -> 0 | V42: =+GETPIVOTDATA(" BAS112",TD!$A$58) -> 1 | W42: =+GETPIVOTDATA(" BAS113",TD!$A$58) -> 3 | X42: =+GETPIVOTDATA(" BAS114",TD!$A$58) -> 0 | Y42: 4
B43: A.3. LEISHMANIASIS VISCERAL | E43: =E44 -> 0 | F43: 0 | G43: 0 | H43: 0 | I43: 0 | J43: 0 | K43: 0 | N43: A.3. LEISHMANIASIS VISCERAL | T43: =T44 -> 0 | U43: =U44 -> 0 | V43: =V44 -> 0 | W43: =W44 -> 0 | X43: =X44 -> 0 | Y43: 0
B44: LEISH. VISCERAL CONF.SEROLOGIA | E44: =+GETPIVOTDATA(" BAS125",TD!$A$58) -> 0 | F44: =+GETPIVOTDATA(" BAS126",TD!$A$58) -> 0 | G44: =+GETPIVOTDATA(" BAS127",TD!$A$58) -> 0 | H44: =+GETPIVOTDATA(" BAS128",TD!$A$58) -> 0 | I44: =+GETPIVOTDATA(" BAS129",TD!$A$58) -> 0 | J44: =+GETPIVOTDATA(" BAS124",TD!$A$58) -> 0 | K44: 0 | N44: LEISH. VISCERAL CONF.SEROLOGIA | T44: =+GETPIVOTDATA(" BAS120",TD!$A$58) -> 0 | U44: =+GETPIVOTDATA(" BAS121",TD!$A$58) -> 0 | V44: =+GETPIVOTDATA(" BAS122",TD!$A$58) -> 0 | W44: =+GETPIVOTDATA(" BAS123",TD!$A$58) -> 0 | X44: =+GETPIVOTDATA(" BAS124",TD!$A$58) -> 0 | Y44: 0
B45: A.4. LEISHMANIASIS SIN CONFIRMACION PARASITOLOGICA | E45: =SUM(E46:E48) -> 0 | F45: 0 | G45: 0 | H45: 0 | I45: 0 | J45: 0 | K45: =SUM(E45:J45) -> 0 | N45: A.4. LEISHMANIASIS SIN CONFIRMACION PARASITOLOGICA | T45: =SUM(T46:T48) -> 0 | U45: =SUM(U46:U48) -> 0 | V45: =SUM(V46:V48) -> 0 | W45: =SUM(W46:W48) -> 0 | X45: =SUM(X46:X48) -> 0 | Y45: 0
B46: 1. LEISHMANINA | E46: =+GETPIVOTDATA(" BAS135",TD!$A$58) -> 0 | F46: =+GETPIVOTDATA(" BAS136",TD!$A$58) -> 0 | G46: =+GETPIVOTDATA(" BAS137",TD!$A$58) -> 0 | H46: =+GETPIVOTDATA(" BAS138",TD!$A$58) -> 0 | I46: =+GETPIVOTDATA(" BAS139",TD!$A$58) -> 0 | J46: =+GETPIVOTDATA(" BAS134",TD!$A$58) -> 0 | K46: =SUM(E46:J46) -> 0 | N46: 1. LEISHMANINA | T46: =+GETPIVOTDATA(" BAS130",TD!$A$58) -> 0 | U46: =+GETPIVOTDATA(" BAS131",TD!$A$58) -> 0 | V46: =+GETPIVOTDATA(" BAS132",TD!$A$58) -> 0 | W46: =+GETPIVOTDATA(" BAS133",TD!$A$58) -> 0 | X46: =+GETPIVOTDATA(" BAS134",TD!$A$58) -> 0 | Y46: 0
B47: 2. SIN EXAMEN DE LABORATORIO | E47: =+GETPIVOTDATA(" BAS145",TD!$A$58) -> 0 | F47: =+GETPIVOTDATA(" BAS146",TD!$A$58) -> 0 | G47: =+GETPIVOTDATA(" BAS147",TD!$A$58) -> 0 | H47: =+GETPIVOTDATA(" BAS148",TD!$A$58) -> 0 | I47: =+GETPIVOTDATA(" BAS149",TD!$A$58) -> 0 | J47: =+GETPIVOTDATA(" BAS144",TD!$A$58) -> 0 | K47: 0 | N47: 2. SIN EXAMEN DE LABORATORIO | T47: =+GETPIVOTDATA(" BAS140",TD!$A$58) -> 0 | U47: =+GETPIVOTDATA(" BAS141",TD!$A$58) -> 0 | V47: =+GETPIVOTDATA(" BAS142",TD!$A$58) -> 0 | W47: =+GETPIVOTDATA(" BAS143",TD!$A$58) -> 0 | X47: =+GETPIVOTDATA(" BAS144",TD!$A$58) -> 0 | Y47: 0
B48: 3. CON RESULTADO DE LABORATORIO (-) | E48: =+GETPIVOTDATA(" BAS155",TD!$A$58) -> 0 | F48: =+GETPIVOTDATA(" BAS156",TD!$A$58) -> 0 | G48: =+GETPIVOTDATA(" BAS157",TD!$A$58) -> 0 | H48: =+GETPIVOTDATA(" BAS158",TD!$A$58) -> 0 | I48: =+GETPIVOTDATA(" BAS159",TD!$A$58) -> 0 | J48: =+GETPIVOTDATA(" BAS154",TD!$A$58) -> 0 | K48: 0 | N48: 3. CON RESULTADO DE LABORATORIO (-) | T48: =+GETPIVOTDATA(" BAS150",TD!$A$58) -> 0 | U48: =+GETPIVOTDATA(" BAS151",TD!$A$58) -> 0 | V48: =+GETPIVOTDATA(" BAS152",TD!$A$58) -> 0 | W48: =+GETPIVOTDATA(" BAS153",TD!$A$58) -> 0 | X48: =+GETPIVOTDATA(" BAS154",TD!$A$58) -> 0 | Y48: 0
B49: A.5. LEISHMANIASIS PARA ANFOTERECIN "B" (*) | E49: =SUM(E50:E51) -> 0 | F49: 1 | G49: 0 | H49: 0 | I49: 0 | J49: 0 | K49: 1 | N49: A.5. LEISHMANIASIS PARA ANFOTERECIN "B" (*) | T49: =SUM(T50:T51) -> 1 | U49: =SUM(U50:U51) -> 0 | V49: =SUM(V50:V51) -> 0 | W49: =SUM(W50:W51) -> 0 | X49: =SUM(X50:X51) -> 0 | Y49: 1
B50: 1. LEISHMANIASIS CUTANEA | E50: =+GETPIVOTDATA(" BAS165",TD!$A$58) -> 0 | F50: =+GETPIVOTDATA(" BAS166",TD!$A$58) -> 1 | G50: =+GETPIVOTDATA(" BAS167",TD!$A$58) -> 0 | H50: =+GETPIVOTDATA(" BAS168",TD!$A$58) -> 0 | I50: =+GETPIVOTDATA(" BAS169",TD!$A$58) -> 0 | J50: =+GETPIVOTDATA(" BAS164",TD!$A$58) -> 0 | K50: 1 | N50: 1. LEISHMANIASIS CUTANEA | T50: =+GETPIVOTDATA(" BAS160",TD!$A$58) -> 1 | U50: =+GETPIVOTDATA(" BAS161",TD!$A$58) -> 0 | V50: =+GETPIVOTDATA(" BAS162",TD!$A$58) -> 0 | W50: =+GETPIVOTDATA(" BAS163",TD!$A$58) -> 0 | X50: =+GETPIVOTDATA(" BAS164",TD!$A$58) -> 0 | Y50: 1
B51: 2. LEISHMANIASIS MUCOSO | E51: =+GETPIVOTDATA(" BAS175",TD!$A$58) -> 0 | F51: =+GETPIVOTDATA(" BAS176",TD!$A$58) -> 0 | G51: =+GETPIVOTDATA(" BAS177",TD!$A$58) -> 0 | H51: =+GETPIVOTDATA(" BAS178",TD!$A$58) -> 0 | I51: =+GETPIVOTDATA(" BAS179",TD!$A$58) -> 0 | J51: =+GETPIVOTDATA(" BAS174",TD!$A$58) -> 0 | K51: 0 | N51: 2. LEISHMANIASIS MUCOSO | T51: =+GETPIVOTDATA(" BAS170",TD!$A$58) -> 0 | U51: =+GETPIVOTDATA(" BAS171",TD!$A$58) -> 0 | V51: =+GETPIVOTDATA(" BAS172",TD!$A$58) -> 0 | W51: =+GETPIVOTDATA(" BAS173",TD!$A$58) -> 0 | X51: =+GETPIVOTDATA(" BAS174",TD!$A$58) -> 0 | Y51: 0
B53: III. FALLECIDOS | E53: =+GETPIVOTDATA(" BAS185",TD!$A$58) -> 0 | F53: =+GETPIVOTDATA(" BAS186",TD!$A$58) -> 0 | G53: =+GETPIVOTDATA(" BAS187",TD!$A$58) -> 0 | H53: =+GETPIVOTDATA(" BAS188",TD!$A$58) -> 0 | I53: =+GETPIVOTDATA(" BAS189",TD!$A$58) -> 0 | J53: =+GETPIVOTDATA(" BAS184",TD!$A$58) -> 0 | K53: 0 | N53: III. FALLECIDOS | T53: =+GETPIVOTDATA(" BAS180",TD!$A$58) -> 0 | U53: =+GETPIVOTDATA(" BAS181",TD!$A$58) -> 0 | V53: =+GETPIVOTDATA(" BAS182",TD!$A$58) -> 0 | W53: =+GETPIVOTDATA(" BAS183",TD!$A$58) -> 0 | X53: =+GETPIVOTDATA(" BAS184",TD!$A$58) -> 0 | Y53: =SUM(T53:X53) -> 0
E54: =+GETPIVOTDATA(" BAS195",TD!$A$58) -> 0 | F54: =+GETPIVOTDATA(" BAS196",TD!$A$58) -> 0 | G54: =+GETPIVOTDATA(" BAS197",TD!$A$58) -> 1 | H54: =+GETPIVOTDATA(" BAS198",TD!$A$58) -> 1 | I54: =+GETPIVOTDATA(" BAS199",TD!$A$58) -> 1 | J54: =+GETPIVOTDATA(" BAS194",TD!$A$58) -> 0
B55: IV. RAM Nº | D55: =SUM(E54:J54) -> 3 | E55: % | F55: =D55/K32 -> 0.03896103896 | N55: IV. RAM | T55: =+GETPIVOTDATA(" BAS190",TD!$A$58) -> 1 | U55: =+GETPIVOTDATA(" BAS191",TD!$A$58) -> 1 | V55: =+GETPIVOTDATA(" BAS192",TD!$A$58) -> 1 | W55: =+GETPIVOTDATA(" BAS193",TD!$A$58) -> 0 | X55: =+GETPIVOTDATA(" BAS194",TD!$A$58) -> 0 | Y55: =SUM(T55:X55) -> 3
B57: V. NRO. DE TRATAMIENTO UTILIZADOS : | D57: =SUM(E58:J58)+SUM(E59:J59) -> 99 | N57: V. NRO. DE TRATAMIENTO UTILIZADOS : | T57: =SUM(T62:T63) -> 29 | U57: =SUM(U62:U63) -> 3 | V57: =SUM(V62:V63) -> 15 | W57: =SUM(W62:W63) -> 36 | X57: =SUM(X62:X63) -> 14 | Y57: =SUM(T57:X57) -> 97
B58: NRO. DE AMPOLLAS X TRATAMIENTO: | D58: =+K58+K59 -> 2090 | E58: =+GETPIVOTDATA(" BAS205",TD!$A$58) -> 0 | F58: =+GETPIVOTDATA(" BAS206",TD!$A$58) -> 14 | G58: =+GETPIVOTDATA(" BAS207",TD!$A$58) -> 14 | H58: =+GETPIVOTDATA(" BAS208",TD!$A$58) -> 8 | I58: =+GETPIVOTDATA(" BAS209",TD!$A$58) -> 39 | J58: =+GETPIVOTDATA(" BAS204",TD!$A$58) -> 13 | K58: =SUM(E58:J58)*20 -> 1760 | N58: NRO. DE AMPOLLAS X TRATAMIENTO: | T58: =+T62*20+T63*30 -> 590 | U58: =+U62*20+U63*30 -> 60 | V58: =+V62*20+V63*30 -> 320 | W58: =+W62*20+W63*30 -> 790 | X58: =+X62*20+X63*30 -> 290 | Y58: =SUM(T58:X58) -> 2050
B59: ABANDONOS : | D59: 0 | E59: =+GETPIVOTDATA(" BAS215",TD!$A$58) -> 0 | F59: =+GETPIVOTDATA(" BAS216",TD!$A$58) -> 0 | G59: =+GETPIVOTDATA(" BAS217",TD!$A$58) -> 1 | H59: =+GETPIVOTDATA(" BAS218",TD!$A$58) -> 0 | I59: =+GETPIVOTDATA(" BAS219",TD!$A$58) -> 9 | J59: =+GETPIVOTDATA(" BAS214",TD!$A$58) -> 1 | K59: =SUM(E59:J59)*30 -> 330 | N59: ABANDONOS : | Y59: =SUM(T59:X59) -> 0
B62: VI. ACTIVIDADES DE CONTROL VECTORIAL | F62: SALDO DE MEDICAMENTOS . | T62: =+GETPIVOTDATA(" BAS200",TD!$A$58) -> 28 | U62: =+GETPIVOTDATA(" BAS201",TD!$A$58) -> 3 | V62: =+GETPIVOTDATA(" BAS202",TD!$A$58) -> 13 | W62: =+GETPIVOTDATA(" BAS203",TD!$A$58) -> 29 | X62: =+GETPIVOTDATA(" BAS204",TD!$A$58) -> 13
B63: 6.1. SANEAMIETO | F63: _Amp. X 1.5 grs. A.M | H63: 0 | T63: =+GETPIVOTDATA(" BAS210",TD!$A$58) -> 1 | U63: =+GETPIVOTDATA(" BAS211",TD!$A$58) -> 0 | V63: =+GETPIVOTDATA(" BAS212",TD!$A$58) -> 2 | W63: =+GETPIVOTDATA(" BAS213",TD!$A$58) -> 7 | X63: =+GETPIVOTDATA(" BAS214",TD!$A$58) -> 1
B64: 6.2. RESIDUALES | F64: _Amp. X 1.5 grs. SNa | H64: 0
B65: 6.3. U.L.V. | F65: _Amp. X 30 mgs. Aph. | H65: 0
B67: VII. SALDO DE INSECTICIDA :
B68: ESPECIFICAR PRODUCTO : -
B73: Lugar y Fecha | G73: Firma y Sello del Coordinador del PCMOEM

Sheet OTROS
B1: DIRECCION REGIONAL DE SALUD CUSCO
B2: DIRECCION EJECUTIVA DE INTELIGENCIA SANITARIA
B3: DIRECCION DE ESTADISTICA Y TELECOMUNICACIONES
B4: METAXENICAS OTROS
B5: INFORME OPERACIONAL MENSUAL
C7: RED DE SALUD | F7: =TD!F3 -> LA CONVENCION | N7: PROVINCIA | P7: =TD!F6 -> (All) | W7: AÑO : | Y7: =TD!C10 -> 2024
C9: MICRO RED | F9: =TD!F4 -> (All) | N9: DISTRITO | P9: =TD!F7 -> (All) | W9: MES : | Y9: =TD!O17 -> ENERO - NOVIEMBRE
C11: ESTABLECIMIENTO | F11: =TD!F5 -> (All)
C15: I. DENGUE : | N15: I. DENGUE :
C16: GRUPO ETAREO/CASOS | E16: <1a | F16: 1-9a | G16: 10-14a | H16: 15-19a | I16: 20-59a | J16: 60a y + | K16: TOTAL | N16: GRUPO ETAREO/CASOS | P16: 00-11a | Q16: 12-17a | R16: 18-29a | S16: 30-59a | T16: 60-99a | U16: TOTAL
C17: CASOS CONFIRMADOS | E17: =GETPIVOTDATA(" BAS116",TD!$A$167)+GETPIVOTDATA(" BAS126",TD!$A$167)+GETPIVOTDATA(" BAS136",TD!$A$167) -> 2 | F17: =+GETPIVOTDATA(" BAS117",TD!$A$167)+GETPIVOTDATA(" BAS127",TD!$A$167)+GETPIVOTDATA(" BAS137",TD!$A$167) -> 78 | G17: =+GETPIVOTDATA(" BAS118",TD!$A$167)+(+GETPIVOTDATA(" BAS128",TD!$A$167))+(+GETPIVOTDATA(" BAS138",TD!$A$167)) -> 73 | H17: =+GETPIVOTDATA(" BAS119",TD!$A$167)+(+GETPIVOTDATA(" BAS129",TD!$A$167))+(+GETPIVOTDATA(" BAS139",TD!$A$167)) -> 107 | I17: =+GETPIVOTDATA(" BAS120",TD!$A$167)+(+GETPIVOTDATA(" BAS130",TD!$A$167))+(+GETPIVOTDATA(" BAS140",TD!$A$167)) -> 889 | J17: =+GETPIVOTDATA(" BAS115",TD!$A$167)+(+GETPIVOTDATA(" BAS125",TD!$A$167))+(+GETPIVOTDATA(" BAS135",TD!$A$167)) -> 126 | K17: =SUM(E17:J17) -> 1275 | N17: CASOS CONFIRMADOS | P17: =SUM(P18:P20) -> 119 | Q17: =SUM(Q18:Q20) -> 111 | R17: =SUM(R18:R20) -> 342 | S17: =SUM(S18:S20) -> 594 | T17: =SUM(T18:T20) -> 126 | U17: =SUM(P17:T17) -> 1292
C18: CASOS PROBABLES | E18: =+GETPIVOTDATA(" BAS106",TD!$A$167) -> 25 | F18: =+GETPIVOTDATA(" BAS107",TD!$A$167) -> 533 | G18: =+GETPIVOTDATA(" BAS108",TD!$A$167) -> 547 | H18: =+GETPIVOTDATA(" BAS109",TD!$A$167) -> 647 | I18: =+GETPIVOTDATA(" BAS110",TD!$A$167) -> 3611 | J18: =+GETPIVOTDATA(" BAS105",TD!$A$167) -> 717 | K18: =SUM(E18:J18) -> 6080 | N18: Dengue sin signos de alarma | P18: =+GETPIVOTDATA(" BAS111",TD!$A$167) -> 119 | Q18: =+GETPIVOTDATA(" BAS112",TD!$A$167) -> 111 | R18: =+GETPIVOTDATA(" BAS113",TD!$A$167) -> 341 | S18: =+GETPIVOTDATA(" BAS114",TD!$A$167) -> 593 | T18: =+GETPIVOTDATA(" BAS115",TD!$A$167) -> 126 | U18: =SUM(P18:T18) -> 1290
C19: DEFUNCIONES | E19: =+GETPIVOTDATA(" BAS146",TD!$A$167) -> 0 | F19: =+GETPIVOTDATA(" BAS147",TD!$A$167) -> 0 | G19: =+GETPIVOTDATA(" BAS148",TD!$A$167) -> 0 | H19: =+GETPIVOTDATA(" BAS149",TD!$A$167) -> 0 | I19: =+GETPIVOTDATA(" BAS150",TD!$A$167) -> 0 | J19: =+GETPIVOTDATA(" BAS145",TD!$A$167) -> 0 | K19: =SUM(E19:J19) -> 0 | N19: Dengue con signos de alarma | P19: =+GETPIVOTDATA(" BAS121",TD!$A$167) -> 0 | Q19: =+GETPIVOTDATA(" BAS122",TD!$A$167) -> 0 | R19: =+GETPIVOTDATA(" BAS123",TD!$A$167) -> 1 | S19: =+GETPIVOTDATA(" BAS124",TD!$A$167) -> 1 | T19: =+GETPIVOTDATA(" BAS125",TD!$A$167) -> 0 | U19: =SUM(P19:T19) -> 2
C20: TOTAL DE CASOS | E20: =SUM(E17:E18) -> 27 | F20: 611 | G20: 620 | H20: 754 | I20: 4500 | J20: 843 | K20: =SUM(E20:J20) -> 7355 | N20: Dengue Grave | P20: =+GETPIVOTDATA(" BAS131",TD!$A$167) -> 0 | Q20: =+GETPIVOTDATA(" BAS132",TD!$A$167) -> 0 | R20: =+GETPIVOTDATA(" BAS133",TD!$A$167) -> 0 | S20: =+GETPIVOTDATA(" BAS134",TD!$A$167) -> 0 | T20: =+GETPIVOTDATA(" BAS135",TD!$A$167) -> 0 | U20: =SUM(P20:T20) -> 0
C22: SEROTIPOS PRESENTADOS: | E22: I | F22: II | G22: III | I22: CASOS AUTOCTONOS | K22: 0 | N22: CASOS PROBABLES | P22: =+GETPIVOTDATA(" BAS101",TD!$A$167) -> 775 | Q22: =+GETPIVOTDATA(" BAS102",TD!$A$167) -> 670 | R22: =+GETPIVOTDATA(" BAS103",TD!$A$167) -> 1511 | S22: =+GETPIVOTDATA(" BAS104",TD!$A$167) -> 2407 | T22: =+GETPIVOTDATA(" BAS105",TD!$A$167) -> 717 | U22: =SUM(P22:T22) -> 6080
I23: CASOS IMPORTADOS | K23: 0 | N23: DEFUNCIONES | P23: =+GETPIVOTDATA(" BAS141",TD!$A$167) -> 0 | Q23: =+GETPIVOTDATA(" BAS142",TD!$A$167) -> 0 | R23: =+GETPIVOTDATA(" BAS143",TD!$A$167) -> 0 | S23: =+GETPIVOTDATA(" BAS144",TD!$A$167) -> 0 | T23: =+GETPIVOTDATA(" BAS145",TD!$A$167) -> 0 | U23: =SUM(P23:T23) -> 0
C25: II. FIEBRE AMARILLA: | J25: 0 | N25: TOTAL DE CASOS | P25: =+P22+P17 -> 894 | Q25: =+Q22+Q17 -> 781 | R25: =+R22+R17 -> 1853 | S25: =+S22+S17 -> 3001 | T25: =+T22+T17 -> 843 | U25: =SUM(P25:T25) -> 7372
C26: GRUPO ETAREO/CASOS | E26: <1a | F26: 1-9a | G26: 10-14a | H26: 15-19a | I26: 20-59a | J26: 60a y + | K26: TOTAL | N26: TRATAMIENTOS | P26: =+GETPIVOTDATA(" BAS151",TD!$A$167)+(+GETPIVOTDATA(" BAS161",TD!$A$167))+(+GETPIVOTDATA(" BAS171",TD!$A$167)) -> 208 | Q26: =+GETPIVOTDATA(" BAS152",TD!$A$167)+(+GETPIVOTDATA(" BAS162",TD!$A$167))+(+GETPIVOTDATA(" BAS172",TD!$A$167)) -> 60 | R26: =+GETPIVOTDATA(" BAS153",TD!$A$167)+(+GETPIVOTDATA(" BAS163",TD!$A$167))+(+GETPIVOTDATA(" BAS173",TD!$A$167)) -> 291 | S26: =+GETPIVOTDATA(" BAS154",TD!$A$167)+(+GETPIVOTDATA(" BAS164",TD!$A$167))+(+GETPIVOTDATA(" BAS174",TD!$A$167)) -> 466 | T26: =+GETPIVOTDATA(" BAS155",TD!$A$167)+(+GETPIVOTDATA(" BAS165",TD!$A$167))+(+GETPIVOTDATA(" BAS175",TD!$A$167)) -> 91 | U26: =SUM(P26:T26) -> 1116
C27: CASOS CONFIRMADOS | E27: =+GETPIVOTDATA(" BAS026",TD!$A$167) -> 0 | F27: =+GETPIVOTDATA(" BAS027",TD!$A$167) -> 0 | G27: =+GETPIVOTDATA(" BAS028",TD!$A$167) -> 0 | H27: =+GETPIVOTDATA(" BAS029",TD!$A$167) -> 0 | I27: =+GETPIVOTDATA(" BAS030",TD!$A$167) -> 0 | J27: =+GETPIVOTDATA(" BAS025",TD!$A$167) -> 0 | K27: =SUM(E27:J27) -> 0 | N27: NEXO EPIDEMIOLOGICO | P27: =+GETPIVOTDATA(" BAS181",TD!$A$167) -> 6 | Q27: =+GETPIVOTDATA(" BAS182",TD!$A$167) -> 0 | R27: =+GETPIVOTDATA(" BAS183",TD!$A$167) -> 32 | S27: =+GETPIVOTDATA(" BAS184",TD!$A$167) -> 39 | T27: =+GETPIVOTDATA(" BAS185",TD!$A$167) -> 2 | U27: =SUM(P27:T27) -> 79
C28: CASOS PROBABLES | E28: =+GETPIVOTDATA(" BAS016",TD!$A$167) -> 0 | F28: =+GETPIVOTDATA(" BAS017",TD!$A$167) -> 0 | G28: =+GETPIVOTDATA(" BAS018",TD!$A$167) -> 0 | H28: =+GETPIVOTDATA(" BAS019",TD!$A$167) -> 0 | I28: =+GETPIVOTDATA(" BAS020",TD!$A$167) -> 0 | J28: =+GETPIVOTDATA(" BAS015",TD!$A$167) -> 0 | K28: =SUM(E28:J28) -> 0
C29: DEFUNCIONES | E29: =+GETPIVOTDATA(" BAS036",TD!$A$167) -> 0 | F29: =+GETPIVOTDATA(" BAS037",TD!$A$167) -> 0 | G29: =+GETPIVOTDATA(" BAS038",TD!$A$167) -> 0 | H29: =+GETPIVOTDATA(" BAS039",TD!$A$167) -> 0 | I29: =+GETPIVOTDATA(" BAS040",TD!$A$167) -> 0 | J29: =+GETPIVOTDATA(" BAS035",TD!$A$167) -> 0 | K29: =SUM(E29:J29) -> 0
C30: TOTAL DE CASOS | E30: =SUM(E27:E28) -> 0 | F30: 0 | G30: 0 | H30: 0 | I30: 0 | J30: 0 | K30: =SUM(E30:J30) -> 0
C32: Nº CASOS CON VACUNACION: | E32: 0 | F32: Nº CASOS SIN VACUNACION: | H32: 0 | I32: CASOS AUTOCTONOS | K32: 0
C33: FIEBRE AMARILLA SELVATICA: | E33: 0 | F33: FIEBRE AMARILLA URBANA: | H33: 0 | I33: CASOS IMPORTADOS | K33: 0
N35: II. FIEBRE AMARILLA:
N36: GRUPO ETAREO/CASOS | P36: 00-11a | Q36: 12-17a | R36: 18-29a | S36: 30-59a | T36: 60-99a | U36: TOTAL
C37: V. ENFERMEDAD DE CHAGAS: | G37: POBLACION EN RIESGO: | N37: CASOS CONFIRMADOS | P37: =+GETPIVOTDATA(" BAS021",TD!$A$167) -> 0 | Q37: =+GETPIVOTDATA(" BAS022",TD!$A$167) -> 0 | R37: =+GETPIVOTDATA(" BAS023",TD!$A$167) -> 0 | S37: =+GETPIVOTDATA(" BAS024",TD!$A$167) -> 0 | T37: =+GETPIVOTDATA(" BAS025",TD!$A$167) -> 0 | U37: =SUM(P37:T37) -> 0
C38: GRUPO ETAREO/CASOS | E38: <1a | F38: 1-9a | G38: 10-14a | H38: 15-19a | I38: 20-59a | J38: 60a y + | K38: TOTAL | N38: CASOS PROBABLES | P38: =+GETPIVOTDATA(" BAS011",TD!$A$167) -> 0 | Q38: =+GETPIVOTDATA(" BAS012",TD!$A$167) -> 0 | R38: =+GETPIVOTDATA(" BAS013",TD!$A$167) -> 0 | S38: =+GETPIVOTDATA(" BAS014",TD!$A$167) -> 0 | T38: =+GETPIVOTDATA(" BAS015",TD!$A$167) -> 0 | U38: =SUM(P38:T38) -> 0
C39: CASOS CONFIRMADOS | E39: 0 | F39: 0 | G39: 0 | H39: 0 | I39: 0 | J39: 0 | K39: =SUM(E39:J39) -> 0 | N39: TOTAL DE CASOS | P39: =SUM(P37:P38) -> 0 | Q39: =SUM(Q37:Q38) -> 0 | R39: =SUM(R37:R38) -> 0 | S39: =SUM(S37:S38) -> 0 | T39: =SUM(T37:T38) -> 0 | U39: =SUM(P39:T39) -> 0
C40: CASOS PROBABLES | E40: 0 | F40: 0 | G40: 0 | H40: 0 | I40: 0 | J40: 0 | K40: =SUM(E40:J40) -> 0 | N40: DEFUNCIONES | P40: =+GETPIVOTDATA(" BAS031",TD!$A$167) -> 0 | Q40: =+GETPIVOTDATA(" BAS032",TD!$A$167) -> 0 | R40: =+GETPIVOTDATA(" BAS033",TD!$A$167) -> 0 | S40: =+GETPIVOTDATA(" BAS034",TD!$A$167) -> 0 | T40: =+GETPIVOTDATA(" BAS035",TD!$A$167) -> 0 | U40: =SUM(P40:T40) -> 0
C41: DEFUNCIONES | E41: 0 | F41: 0 | G41: 0 | H41: 0 | I41: 0 | J41: 0 | K41: =SUM(E41:J41) -> 0
C42: TOTAL DE CASOS | E42: =SUM(E39:E40) -> 0 | F42: 0 | G42: 0 | H42: 0 | I42: 0 | J42: 0 | K42: =SUM(E42:J42) -> 0 | N42: TRATAMIENTOS | P42: =+GETPIVOTDATA(" BAS041",TD!$A$167) -> 0 | Q42: =+GETPIVOTDATA(" BAS042",TD!$A$167) -> 0 | R42: =+GETPIVOTDATA(" BAS043",TD!$A$167) -> 0 | S42: =+GETPIVOTDATA(" BAS044",TD!$A$167) -> 0 | T42: =+GETPIVOTDATA(" BAS045",TD!$A$167) -> 0 | U42: =SUM(P42:T42) -> 0
N43: NEXO EPIDEMIOLOGICO | P43: =+GETPIVOTDATA(" BAS051",TD!$A$167) -> 0 | Q43: =+GETPIVOTDATA(" BAS052",TD!$A$167) -> 0 | R43: =+GETPIVOTDATA(" BAS053",TD!$A$167) -> 0 | S43: =+GETPIVOTDATA(" BAS054",TD!$A$167) -> 0 | T43: =+GETPIVOTDATA(" BAS055",TD!$A$167) -> 0 | U43: =SUM(P43:T43) -> 0
C44: CASOS AUTOCTONOS | E44: 0 | I44: CASOS IMPORTADOS | K44: 0
C45: CASOS AGUDOS | E45: 0 | I45: CASOS CRONICOS | K45: 0
I46: CASOS ASINTOMATICOS | K46: 0
